﻿Department Family,Entity,Date,Expense Type,Expense Area,Supplier,Transaction Number,Amount,Item Description
BEIS,UKRI - AHRC,01/10/2021,Fees (Including College Members),New Programme Development,Unspecified,99049007,170.00,Fees (Including College Members)
BEIS,UKRI - AHRC,01/10/2021,Fees (Including College Members),FIC- US,Unspecified,99049008,340.00,Fees (Including College Members)
BEIS,UKRI - AHRC,01/10/2021,Fees (Including College Members),FIC- US,Unspecified,99049009,340.00,Fees (Including College Members)
BEIS,UKRI - AHRC,01/10/2021,Fees (Including College Members),FIC- US,Unspecified,99049010,340.00,Fees (Including College Members)
BEIS,UKRI - AHRC,01/10/2021,Health & Safety (inc. Medicals & Opticians),AHRC - Creative Industries,Unspecified,99049690,45.00,Health & Safety (inc. Medicals & Opticians)
BEIS,UKRI - AHRC,01/10/2021,Education Fees & Study Materials,AI&Design,Unspecified,99049691,28.00,Education Fees & Study Materials
BEIS,UKRI - AHRC,04/10/2021,Non-staff travel and subsistance,SMT,Unspecified,99049875,112.10,Non-staff travel and subsistance
BEIS,UKRI - AHRC,04/10/2021,Non-staff travel and subsistance,SMT,Unspecified,99049876,50.00,Non-staff travel and subsistance
BEIS,UKRI - AHRC,04/10/2021,Unspecified,Infrastruture Roadmap,Alexander Mann Solutions Ltd,99049953,2772.24,Legal & Professional Services
BEIS,UKRI - AHRC,04/10/2021,T&S UK - Public Transport,AHRC - Creative Industries,Unspecified,99050506,18.30,T&S UK - Public Transport
BEIS,UKRI - AHRC,05/10/2021,Research Grant Expenditure,Cross Council Responsive Mode Awards,UKRI - Economic & Social Research Council,98994731,-29262.68,Research Grant Expenditure
BEIS,UKRI - AHRC,05/10/2021,Research Grant Expenditure,Cross Council Responsive Mode Awards,UKRI - Economic & Social Research Council,98994733,-29262.68,Research Grant Expenditure
BEIS,UKRI - AHRC,05/10/2021,Research Grant Expenditure,Urban Living,UKRI - Economic & Social Research Council,98996151,-2818.99,Research Grant Expenditure
BEIS,UKRI - AHRC,05/10/2021,T&S UK - Accommodation,SMT,Unspecified,99044849,102.60,T&S UK - Accommodation
BEIS,UKRI - AHRC,05/10/2021,T&S UK - Public Transport,SMT,Unspecified,99044849,3.40,T&S UK - Public Transport
BEIS,UKRI - AHRC,05/10/2021,Research Grant Expenditure,Urban Living,UKRI - Economic & Social Research Council,99046466,-1582.77,Research Grant Expenditure
BEIS,UKRI - AHRC,05/10/2021,Research Grant Expenditure,Urban Living,UKRI - Economic & Social Research Council,99046466,-2472.23,Research Grant Expenditure
BEIS,UKRI - AHRC,05/10/2021,Research Grant Expenditure,GCRF - Programme Delivery,UKRI - Economic & Social Research Council,99046469,23710.00,Research Grant Expenditure
BEIS,UKRI - AHRC,05/10/2021,Research Grant Expenditure,Cross Council Responsive Mode Awards,UKRI - Economic & Social Research Council,99049280,22810.67,Research Grant Expenditure
BEIS,UKRI - AHRC,05/10/2021,Research Grant Expenditure,Commissioned Research,UKRI - Economic & Social Research Council,99049418,14351.16,Research Grant Expenditure
BEIS,UKRI - AHRC,05/10/2021,Research Grant Expenditure,Urban Living,UKRI - Economic & Social Research Council,99049422,11648.83,Research Grant Expenditure
BEIS,UKRI - AHRC,05/10/2021,Research Grant Expenditure,Urban Living,UKRI - Economic & Social Research Council,99050253,1814.11,Research Grant Expenditure
BEIS,UKRI - AHRC,05/10/2021,Research Grant Expenditure,Urban Living,UKRI - Economic & Social Research Council,99050253,10694.38,Research Grant Expenditure
BEIS,UKRI - AHRC,05/10/2021,Research Grant Expenditure,Commissioned Research,UKRI - Economic & Social Research Council,99050274,22548.12,Research Grant Expenditure
BEIS,UKRI - AHRC,05/10/2021,Research Grant Expenditure,Commissioned Research,UKRI - Economic & Social Research Council,99050274,5990.62,Research Grant Expenditure
BEIS,UKRI - AHRC,05/10/2021,Research Grant Expenditure,Commissioned Research,UKRI - Economic & Social Research Council,99050274,6999.69,Research Grant Expenditure
BEIS,UKRI - AHRC,05/10/2021,Research Grant Expenditure,Commissioned Research,UKRI - Economic & Social Research Council,99050274,6851.55,Research Grant Expenditure
BEIS,UKRI - AHRC,05/10/2021,Research Grant Expenditure,Commissioned Research,UKRI - Economic & Social Research Council,99050274,10792.77,Research Grant Expenditure
BEIS,UKRI - AHRC,05/10/2021,Research Grant Expenditure,Commissioned Research,UKRI - Economic & Social Research Council,99050274,7230.09,Research Grant Expenditure
BEIS,UKRI - AHRC,05/10/2021,Research Grant Expenditure,Commissioned Research,UKRI - Economic & Social Research Council,99050274,11656.72,Research Grant Expenditure
BEIS,UKRI - AHRC,05/10/2021,Health & Safety (inc. Medicals & Opticians),"History, Heritage, Languages and Literature",Unspecified,99051684,14.99,Health & Safety (inc. Medicals & Opticians)
BEIS,UKRI - AHRC,06/10/2021,Unspecified,Infrastruture Roadmap,ICF Consulting Services Ltd,99051513,5160.00,Legal & Professional Services
BEIS,UKRI - AHRC,06/10/2021,Fees (Including College Members),New Programme Development,Unspecified,99052091,85.00,Fees (Including College Members)
BEIS,UKRI - AHRC,06/10/2021,Fees (Including College Members),FIC- US,Unspecified,99052092,340.00,Fees (Including College Members)
BEIS,UKRI - AHRC,06/10/2021,Fees (Including College Members),New Programme Development,Unspecified,99052093,170.00,Fees (Including College Members)
BEIS,UKRI - AHRC,06/10/2021,Fees (Including College Members),FIC- US,Unspecified,99052094,460.00,Fees (Including College Members)
BEIS,UKRI - AHRC,06/10/2021,Fees (Including College Members),Intergenerational Justice,Unspecified,99052095,85.00,Fees (Including College Members)
BEIS,UKRI - AHRC,06/10/2021,Fees (Including College Members),New Programme Development,Unspecified,99052096,170.00,Fees (Including College Members)
BEIS,UKRI - AHRC,07/10/2021,Conferences & Seminars,Industrial Strategy Challenge Fund (ISCF) - Creative Clusters,University of York,99048669,9999.00,Conferences & Seminars
BEIS,UKRI - AHRC,07/10/2021,Financial Services,Corporate Services,CCI Credit Management Ltd,99054394,1.32,Financial Services
BEIS,UKRI - AHRC,08/10/2021,Fees (Including College Members),New Programme Development,Unspecified,99054714,170.00,Fees (Including College Members)
BEIS,UKRI - AHRC,08/10/2021,Fees (Including College Members),New Programme Development,Unspecified,99054715,170.00,Fees (Including College Members)
BEIS,UKRI - AHRC,08/10/2021,Fees (Including College Members),New Programme Development,Unspecified,99054716,170.00,Fees (Including College Members)
BEIS,UKRI - AHRC,08/10/2021,Fees (Including College Members),New Programme Development,Unspecified,99054717,170.00,Fees (Including College Members)
BEIS,UKRI - AHRC,08/10/2021,Fees (Including College Members),New Programme Development,Unspecified,99054718,230.00,Fees (Including College Members)
BEIS,UKRI - AHRC,08/10/2021,Fees (Including College Members),New Programme Development,Unspecified,99054719,170.00,Fees (Including College Members)
BEIS,UKRI - AHRC,08/10/2021,Fees (Including College Members),Intergenerational Justice,Unspecified,99054720,85.00,Fees (Including College Members)
BEIS,UKRI - AHRC,08/10/2021,Fees (Including College Members),New Programme Development,Unspecified,99054763,170.00,Fees (Including College Members)
BEIS,UKRI - AHRC,08/10/2021,Fees (Including College Members),New Programme Development,Unspecified,99054764,170.00,Fees (Including College Members)
BEIS,UKRI - AHRC,08/10/2021,Fees (Including College Members),New Programme Development,Unspecified,99054765,230.00,Fees (Including College Members)
BEIS,UKRI - AHRC,08/10/2021,Fees (Including College Members),New Programme Development,Unspecified,99054766,170.00,Fees (Including College Members)
BEIS,UKRI - AHRC,08/10/2021,Health & Safety (inc. Medicals & Opticians),Health and Environmental Humanities,Unspecified,99054897,14.99,Health & Safety (inc. Medicals & Opticians)
BEIS,UKRI - AHRC,08/10/2021,Fees (Including College Members),New Programme Development,Unspecified,99055665,170.00,Fees (Including College Members)
BEIS,UKRI - AHRC,08/10/2021,Fees (Including College Members),New Programme Development,Unspecified,99055666,170.00,Fees (Including College Members)
BEIS,UKRI - AHRC,08/10/2021,Fees (Including College Members),New Programme Development,Unspecified,99055667,170.00,Fees (Including College Members)
BEIS,UKRI - AHRC,11/10/2021,Consultancy Services,AHRC - Creative Industries,Zeff Associates Ltd,99055794,600.00,Consultancy Services
BEIS,UKRI - AHRC,11/10/2021,Unspecified,Infrastruture Roadmap,Alexander Mann Solutions Ltd,99056224,2772.24,Legal & Professional Services
BEIS,UKRI - AHRC,12/10/2021,Research Grant Expenditure,Health and Environmental Humanities,UKRI - Natural Environment Research Council,99056396,50000.00,Research Grant Expenditure
BEIS,UKRI - AHRC,12/10/2021,T&S Overseas - Flights,Cultural Value EDI,Corporate Travel Management (North) Ltd,99056648,2.50,T&S Overseas - Flights
BEIS,UKRI - AHRC,12/10/2021,T&S Overseas - Flights,Cultural Value EDI,Corporate Travel Management (North) Ltd,99056648,154.83,T&S Overseas - Flights
BEIS,UKRI - AHRC,12/10/2021,T&S Overseas - Flights,SMT,Corporate Travel Management (North) Ltd,99056648,7.00,T&S Overseas - Flights
BEIS,UKRI - AHRC,12/10/2021,T&S Overseas - Flights,SMT,Corporate Travel Management (North) Ltd,99056648,77.76,T&S Overseas - Flights
BEIS,UKRI - AHRC,12/10/2021,T&S UK - Accommodation,AHRC - Creative Industries,Corporate Travel Management (North) Ltd,99056648,0.80,T&S UK - Accommodation
BEIS,UKRI - AHRC,12/10/2021,T&S UK - Accommodation,AHRC - Creative Industries,Corporate Travel Management (North) Ltd,99056648,0.16,T&S UK - Accommodation
BEIS,UKRI - AHRC,12/10/2021,T&S UK - Accommodation,ISCF Creative Clusters,Corporate Travel Management (North) Ltd,99056648,0.80,T&S UK - Accommodation
BEIS,UKRI - AHRC,12/10/2021,T&S UK - Accommodation,ISCF Creative Clusters,Corporate Travel Management (North) Ltd,99056648,85.00,T&S UK - Accommodation
BEIS,UKRI - AHRC,12/10/2021,T&S UK - Accommodation,ISCF Creative Clusters,Corporate Travel Management (North) Ltd,99056648,0.16,T&S UK - Accommodation
BEIS,UKRI - AHRC,12/10/2021,T&S UK - Accommodation,Industrial Strategy Challenge Fund (ISCF) - Creative Clusters,Corporate Travel Management (North) Ltd,99056648,0.80,T&S UK - Accommodation
BEIS,UKRI - AHRC,12/10/2021,T&S UK - Accommodation,Industrial Strategy Challenge Fund (ISCF) - Creative Clusters,Corporate Travel Management (North) Ltd,99056648,85.00,T&S UK - Accommodation
BEIS,UKRI - AHRC,12/10/2021,T&S UK - Accommodation,Industrial Strategy Challenge Fund (ISCF) - Creative Clusters,Corporate Travel Management (North) Ltd,99056648,0.16,T&S UK - Accommodation
BEIS,UKRI - AHRC,12/10/2021,T&S UK - Other Charges,Infrastruture Roadmap,Corporate Travel Management (North) Ltd,99056648,0.80,T&S UK - Other Charges
BEIS,UKRI - AHRC,12/10/2021,T&S UK - Other Charges,Infrastruture Roadmap,Corporate Travel Management (North) Ltd,99056648,61.24,T&S UK - Other Charges
BEIS,UKRI - AHRC,12/10/2021,T&S UK - Other Charges,Infrastruture Roadmap,Corporate Travel Management (North) Ltd,99056648,0.16,T&S UK - Other Charges
BEIS,UKRI - AHRC,12/10/2021,T&S UK - Public Transport,Executive Office,Corporate Travel Management (North) Ltd,99056648,0.25,T&S UK - Public Transport
BEIS,UKRI - AHRC,12/10/2021,T&S UK - Public Transport,Executive Office,Corporate Travel Management (North) Ltd,99056648,67.25,T&S UK - Public Transport
BEIS,UKRI - AHRC,12/10/2021,T&S UK - Public Transport,ISCF Creative Clusters,Corporate Travel Management (North) Ltd,99056648,0.25,T&S UK - Public Transport
BEIS,UKRI - AHRC,12/10/2021,T&S UK - Public Transport,ISCF Creative Clusters,Corporate Travel Management (North) Ltd,99056648,36.40,T&S UK - Public Transport
BEIS,UKRI - AHRC,12/10/2021,T&S UK - Public Transport,ISCF Creative Clusters,Corporate Travel Management (North) Ltd,99056648,0.25,T&S UK - Public Transport
BEIS,UKRI - AHRC,12/10/2021,T&S UK - Public Transport,ISCF Creative Clusters,Corporate Travel Management (North) Ltd,99056648,111.00,T&S UK - Public Transport
BEIS,UKRI - AHRC,12/10/2021,T&S UK - Public Transport,Industrial Strategy Challenge Fund (ISCF) - Creative Clusters,Corporate Travel Management (North) Ltd,99056648,0.25,T&S UK - Public Transport
BEIS,UKRI - AHRC,12/10/2021,T&S UK - Public Transport,Industrial Strategy Challenge Fund (ISCF) - Creative Clusters,Corporate Travel Management (North) Ltd,99056648,83.20,T&S UK - Public Transport
BEIS,UKRI - AHRC,12/10/2021,T&S UK - Public Transport,Industrial Strategy Challenge Fund (ISCF) - Creative Clusters,Corporate Travel Management (North) Ltd,99056648,0.25,T&S UK - Public Transport
BEIS,UKRI - AHRC,12/10/2021,T&S UK - Public Transport,Industrial Strategy Challenge Fund (ISCF) - Creative Clusters,Corporate Travel Management (North) Ltd,99056648,83.20,T&S UK - Public Transport
BEIS,UKRI - AHRC,12/10/2021,T&S UK - Public Transport,Industrial Strategy Challenge Fund (ISCF) - Creative Clusters,Corporate Travel Management (North) Ltd,99056648,0.25,T&S UK - Public Transport
BEIS,UKRI - AHRC,12/10/2021,T&S UK - Public Transport,Industrial Strategy Challenge Fund (ISCF) - Creative Clusters,Corporate Travel Management (North) Ltd,99056648,98.00,T&S UK - Public Transport
BEIS,UKRI - AHRC,12/10/2021,T&S UK - Public Transport,Industrial Strategy Challenge Fund (ISCF) - Creative Clusters,Corporate Travel Management (North) Ltd,99056648,0.25,T&S UK - Public Transport
BEIS,UKRI - AHRC,12/10/2021,T&S UK - Public Transport,Industrial Strategy Challenge Fund (ISCF) - Creative Clusters,Corporate Travel Management (North) Ltd,99056648,74.00,T&S UK - Public Transport
BEIS,UKRI - AHRC,12/10/2021,T&S UK - Public Transport,Infrastruture Roadmap,Corporate Travel Management (North) Ltd,99056648,0.25,T&S UK - Public Transport
BEIS,UKRI - AHRC,12/10/2021,T&S UK - Public Transport,Infrastruture Roadmap,Corporate Travel Management (North) Ltd,99056648,106.10,T&S UK - Public Transport
BEIS,UKRI - AHRC,12/10/2021,T&S UK - Public Transport,Infrastruture Roadmap,Corporate Travel Management (North) Ltd,99056648,0.50,T&S UK - Public Transport
BEIS,UKRI - AHRC,12/10/2021,T&S UK - Public Transport,Infrastruture Roadmap,Corporate Travel Management (North) Ltd,99056648,27.50,T&S UK - Public Transport
BEIS,UKRI - AHRC,12/10/2021,T&S UK - Public Transport,Infrastruture Roadmap,Corporate Travel Management (North) Ltd,99056648,37.80,T&S UK - Public Transport
BEIS,UKRI - AHRC,12/10/2021,T&S UK - Public Transport,Infrastruture Roadmap,Corporate Travel Management (North) Ltd,99056648,0.25,T&S UK - Public Transport
BEIS,UKRI - AHRC,12/10/2021,T&S UK - Public Transport,Infrastruture Roadmap,Corporate Travel Management (North) Ltd,99056648,152.60,T&S UK - Public Transport
BEIS,UKRI - AHRC,12/10/2021,T&S UK - Public Transport,Infrastruture Roadmap,Corporate Travel Management (North) Ltd,99056648,0.25,T&S UK - Public Transport
BEIS,UKRI - AHRC,12/10/2021,T&S UK - Public Transport,Infrastruture Roadmap,Corporate Travel Management (North) Ltd,99056648,57.40,T&S UK - Public Transport
BEIS,UKRI - AHRC,12/10/2021,T&S UK - Public Transport,Infrastruture Roadmap,Corporate Travel Management (North) Ltd,99056648,0.25,T&S UK - Public Transport
BEIS,UKRI - AHRC,12/10/2021,T&S UK - Public Transport,Infrastruture Roadmap,Corporate Travel Management (North) Ltd,99056648,70.30,T&S UK - Public Transport
BEIS,UKRI - AHRC,12/10/2021,T&S UK - Public Transport,International Partnership and Engagement,Corporate Travel Management (North) Ltd,99056648,0.25,T&S UK - Public Transport
BEIS,UKRI - AHRC,12/10/2021,T&S UK - Public Transport,International Partnership and Engagement,Corporate Travel Management (North) Ltd,99056648,21.60,T&S UK - Public Transport
BEIS,UKRI - AHRC,12/10/2021,T&S UK - Public Transport,SMT,Corporate Travel Management (North) Ltd,99056648,0.25,T&S UK - Public Transport
BEIS,UKRI - AHRC,12/10/2021,T&S UK - Public Transport,SMT,Corporate Travel Management (North) Ltd,99056648,8.20,T&S UK - Public Transport
BEIS,UKRI - AHRC,12/10/2021,T&S UK - Public Transport,SMT,Corporate Travel Management (North) Ltd,99056648,0.25,T&S UK - Public Transport
BEIS,UKRI - AHRC,12/10/2021,T&S UK - Public Transport,SMT,Corporate Travel Management (North) Ltd,99056648,114.40,T&S UK - Public Transport
BEIS,UKRI - AHRC,12/10/2021,T&S UK - Public Transport,SMT,Corporate Travel Management (North) Ltd,99056648,0.25,T&S UK - Public Transport
BEIS,UKRI - AHRC,12/10/2021,T&S UK - Public Transport,SMT,Corporate Travel Management (North) Ltd,99056648,38.80,T&S UK - Public Transport
BEIS,UKRI - AHRC,12/10/2021,T&S UK - Public Transport,SMT,Corporate Travel Management (North) Ltd,99056648,0.25,T&S UK - Public Transport
BEIS,UKRI - AHRC,12/10/2021,T&S UK - Public Transport,SMT,Corporate Travel Management (North) Ltd,99056648,21.60,T&S UK - Public Transport
BEIS,UKRI - AHRC,12/10/2021,T&S UK - Public Transport,SMT,Corporate Travel Management (North) Ltd,99056648,0.50,T&S UK - Public Transport
BEIS,UKRI - AHRC,12/10/2021,T&S UK - Public Transport,SMT,Corporate Travel Management (North) Ltd,99056648,84.90,T&S UK - Public Transport
BEIS,UKRI - AHRC,12/10/2021,T&S UK - Public Transport,SMT,Corporate Travel Management (North) Ltd,99056648,2.80,T&S UK - Public Transport
BEIS,UKRI - AHRC,12/10/2021,T&S UK - Public Transport,SMT,Corporate Travel Management (North) Ltd,99056648,0.25,T&S UK - Public Transport
BEIS,UKRI - AHRC,12/10/2021,T&S UK - Public Transport,SMT,Corporate Travel Management (North) Ltd,99056648,145.60,T&S UK - Public Transport
BEIS,UKRI - AHRC,12/10/2021,Health & Safety (inc. Medicals & Opticians),"History, Heritage, Languages and Literature",Unspecified,99057554,14.99,Health & Safety (inc. Medicals & Opticians)
BEIS,UKRI - AHRC,13/10/2021,T&S UK - Subsistence,AHRC - Creative Industries,Unspecified,98981724,11.50,T&S UK - Subsistence
BEIS,UKRI - AHRC,13/10/2021,Unspecified,Balance Sheet,HM Revenue & Customs,99056167,57719.36,NI Payable Salaries
BEIS,UKRI - AHRC,13/10/2021,Unspecified,Balance Sheet,HM Revenue & Customs,99056168,40134.62,PAYE Payable Salaries
BEIS,UKRI - AHRC,13/10/2021,Unspecified,Balance Sheet,HM Revenue & Customs,99056169,4951.00,Student Loans
BEIS,UKRI - AHRC,13/10/2021,Unspecified,Corporate Services,HM Revenue & Customs,99056170,1517.00,Apprenticeship Levy
BEIS,UKRI - AHRC,13/10/2021,Fees (Including College Members),Infrastructure Fund - CoSTAR,Unspecified,99058124,170.00,Fees (Including College Members)
BEIS,UKRI - AHRC,13/10/2021,Fees (Including College Members),Operations,Unspecified,99058125,170.00,Fees (Including College Members)
BEIS,UKRI - AHRC,13/10/2021,Fees (Including College Members),Operations,Unspecified,99058126,170.00,Fees (Including College Members)
BEIS,UKRI - AHRC,13/10/2021,Fees (Including College Members),Operations,Unspecified,99058127,170.00,Fees (Including College Members)
BEIS,UKRI - AHRC,13/10/2021,Fees (Including College Members),Operations,Unspecified,99058128,170.00,Fees (Including College Members)
BEIS,UKRI - AHRC,13/10/2021,Fees (Including College Members),Operations,Unspecified,99058129,170.00,Fees (Including College Members)
BEIS,UKRI - AHRC,14/10/2021,Voluntary Deductions,Balance Sheet,Swindon Office Sports and Social Club,99056171,26.00,Voluntary Deductions
BEIS,UKRI - AHRC,14/10/2021,Union Deductions,Balance Sheet,PCS Union,99056172,69.93,Union Deductions
BEIS,UKRI - AHRC,14/10/2021,Unspecified,Balance Sheet,Unspecified,99056173,9599.08,Ees Pension Deductions - JSS
BEIS,UKRI - AHRC,14/10/2021,Unspecified,Balance Sheet,Unspecified,99056174,42408.19,Ers Pension Deductions - JSS
BEIS,UKRI - AHRC,14/10/2021,Unspecified,Balance Sheet,Scottish Widows,99056175,384.68,Partnership Pension Deductions
BEIS,UKRI - AHRC,14/10/2021,Unspecified,Balance Sheet,Cabinet Office RM Shared Services,99056176,8373.71,Ees Pension Deductions - MyCSP
BEIS,UKRI - AHRC,14/10/2021,Unspecified,Balance Sheet,Cabinet Office RM Shared Services,99056177,41361.14,Ers Pension Deductions - MyCSP
BEIS,UKRI - AHRC,14/10/2021,Unspecified,Balance Sheet,Unspecified,99056178,173.51,Ees Pension Deductions - MRC
BEIS,UKRI - AHRC,14/10/2021,Unspecified,Balance Sheet,Unspecified,99056179,427.09,Ers Pension Deductions - MRC
BEIS,UKRI - AHRC,14/10/2021,Nursery Deductions,Balance Sheet,UKRI - Engineering & Physical Sciences Research Council,99056180,821.00,Nursery Deductions
BEIS,UKRI - AHRC,15/10/2021,Fees (Including College Members),Operations,Unspecified,99059177,230.00,Fees (Including College Members)
BEIS,UKRI - AHRC,15/10/2021,Fees (Including College Members),Infrastructure Fund - CoSTAR,Unspecified,99059194,170.00,Fees (Including College Members)
BEIS,UKRI - AHRC,15/10/2021,Consultancy Services,AHRC - Creative Industries,Zeff Associates Ltd,99059410,600.00,Consultancy Services
BEIS,UKRI - AHRC,15/10/2021,Conferences & Seminars,Skills Strategy,Unspecified,99059521,72.00,Conferences & Seminars
BEIS,UKRI - AHRC,18/10/2021,Training Awards - Postgraduates,Collabrative Doctoral Grants - Block Payment,University of Sussex,99055811,5539.75,Training Awards - Postgraduates
BEIS,UKRI - AHRC,18/10/2021,Training Awards - Postgraduates,Collabrative Doctoral Grants - Block Payment,University of Leeds,99055812,5539.75,Training Awards - Postgraduates
BEIS,UKRI - AHRC,18/10/2021,Training Awards - Postgraduates,Collabrative Doctoral Grants - Block Payment,University of Edinburgh,99055813,5289.75,Training Awards - Postgraduates
BEIS,UKRI - AHRC,18/10/2021,Training Awards - Postgraduates,Collabrative Doctoral Grants - Block Payment,University of Southampton GRANT,99055814,5539.75,Training Awards - Postgraduates
BEIS,UKRI - AHRC,18/10/2021,Training Awards - Postgraduates,Collabrative Doctoral Grants - Block Payment,University of Leeds,99055815,5289.75,Training Awards - Postgraduates
BEIS,UKRI - AHRC,18/10/2021,Training Awards - Postgraduates,Collabrative Doctoral Grants - Block Payment,University of Exeter,99055816,5539.75,Training Awards - Postgraduates
BEIS,UKRI - AHRC,18/10/2021,Training Awards - Postgraduates,Collabrative Doctoral Grants - Block Payment,University of Exeter,99055817,5539.75,Training Awards - Postgraduates
BEIS,UKRI - AHRC,18/10/2021,Training Awards - Postgraduates,Collabrative Doctoral Grants - Block Payment,University of Hull,99055818,5289.75,Training Awards - Postgraduates
BEIS,UKRI - AHRC,18/10/2021,Training Awards - Postgraduates,Collabrative Doctoral Grants - Block Payment,University of Exeter,99055819,5289.75,Training Awards - Postgraduates
BEIS,UKRI - AHRC,18/10/2021,Training Awards - Postgraduates,Collabrative Doctoral Grants - Block Payment,University of Edinburgh,99055820,5289.75,Training Awards - Postgraduates
BEIS,UKRI - AHRC,18/10/2021,Training Awards - Postgraduates,Collabrative Doctoral Grants - Block Payment,University of Leeds,99055821,5706.85,Training Awards - Postgraduates
BEIS,UKRI - AHRC,18/10/2021,Training Awards - Postgraduates,Collabrative Doctoral Grants - Block Payment,University of York,99055822,5531.00,Training Awards - Postgraduates
BEIS,UKRI - AHRC,18/10/2021,Training Awards - Postgraduates,Collabrative Doctoral Grants - Block Payment,Cardiff University,99055823,5185.50,Training Awards - Postgraduates
BEIS,UKRI - AHRC,18/10/2021,Training Awards - Postgraduates,Collabrative Doctoral Grants - Block Payment,University of Sheffield,99055824,5531.00,Training Awards - Postgraduates
BEIS,UKRI - AHRC,18/10/2021,Training Awards - Postgraduates,Collabrative Doctoral Grants - Block Payment,Heriot Watt University,99055825,5185.50,Training Awards - Postgraduates
BEIS,UKRI - AHRC,18/10/2021,Training Awards - Postgraduates,Collabrative Doctoral Grants - Block Payment,University of East Anglia,99055826,5281.00,Training Awards - Postgraduates
BEIS,UKRI - AHRC,18/10/2021,Training Awards - Postgraduates,Collabrative Doctoral Grants - Block Payment,University of East Anglia,99055827,5531.00,Training Awards - Postgraduates
BEIS,UKRI - AHRC,18/10/2021,Training Awards - Postgraduates,Collabrative Doctoral Grants - Block Payment,University of Reading,99055828,5185.50,Training Awards - Postgraduates
BEIS,UKRI - AHRC,18/10/2021,Training Awards - Postgraduates,Collabrative Doctoral Grants - Block Payment,University of Bristol GRANT,99055829,5435.50,Training Awards - Postgraduates
BEIS,UKRI - AHRC,18/10/2021,Training Awards - Postgraduates,Collabrative Doctoral Grants - Block Payment,Birkbeck College,99055830,5781.00,Training Awards - Postgraduates
BEIS,UKRI - AHRC,18/10/2021,Training Awards - Postgraduates,Collabrative Doctoral Grants - Block Payment,University of Lincoln,99055831,5531.00,Training Awards - Postgraduates
BEIS,UKRI - AHRC,18/10/2021,Training Awards - Postgraduates,Collabrative Doctoral Grants - Block Payment,"Royal Holloway, University of London",99055832,5781.00,Training Awards - Postgraduates
BEIS,UKRI - AHRC,18/10/2021,Training Awards - Postgraduates,Collabrative Doctoral Grants - Block Payment,University of Cambridge,99055833,5531.00,Training Awards - Postgraduates
BEIS,UKRI - AHRC,18/10/2021,Training Awards - Postgraduates,Collabrative Doctoral Grants - Block Payment,University of Sheffield,99055834,5185.50,Training Awards - Postgraduates
BEIS,UKRI - AHRC,18/10/2021,Training Awards - Postgraduates,Collabrative Doctoral Grants - Block Payment,University of Cambridge,99055835,5531.00,Training Awards - Postgraduates
BEIS,UKRI - AHRC,18/10/2021,Training Awards - Postgraduates,Collabrative Doctoral Grants - Block Payment,Queen Mary University of London,99055836,5781.00,Training Awards - Postgraduates
BEIS,UKRI - AHRC,18/10/2021,Training Awards - Postgraduates,Collabrative Doctoral Grants - Block Payment,Birkbeck College,99055837,5781.00,Training Awards - Postgraduates
BEIS,UKRI - AHRC,18/10/2021,Training Awards - Postgraduates,Collabrative Doctoral Grants - Block Payment,University of Reading,99055838,5531.00,Training Awards - Postgraduates
BEIS,UKRI - AHRC,18/10/2021,Training Awards - Postgraduates,Collabrative Doctoral Grants - Block Payment,Birkbeck College,99055839,5685.50,Training Awards - Postgraduates
BEIS,UKRI - AHRC,18/10/2021,Training Awards - Postgraduates,Collabrative Doctoral Grants - Block Payment,University of Bath,99055840,5281.00,Training Awards - Postgraduates
BEIS,UKRI - AHRC,18/10/2021,Training Awards - Postgraduates,Collabrative Doctoral Grants - Block Payment,Queen Mary University of London,99055841,5685.50,Training Awards - Postgraduates
BEIS,UKRI - AHRC,18/10/2021,Training Awards - Postgraduates,Collabrative Doctoral Grants - Block Payment,University of Leeds,99055842,5435.50,Training Awards - Postgraduates
BEIS,UKRI - AHRC,18/10/2021,Training Awards - Postgraduates,Collabrative Doctoral Grants - Block Payment,University of Leeds,99055842,5531.00,Training Awards - Postgraduates
BEIS,UKRI - AHRC,18/10/2021,Training Awards - Postgraduates,Collabrative Doctoral Grants - Block Payment,University of Durham,99055843,5531.00,Training Awards - Postgraduates
BEIS,UKRI - AHRC,18/10/2021,Training Awards - Postgraduates,Collabrative Doctoral Grants - Block Payment,Manchester Metropolitan University,99055844,5185.50,Training Awards - Postgraduates
BEIS,UKRI - AHRC,18/10/2021,Training Awards - Postgraduates,Collabrative Doctoral Grants - Block Payment,Birkbeck College,99055845,5781.00,Training Awards - Postgraduates
BEIS,UKRI - AHRC,18/10/2021,Training Awards - Postgraduates,Collabrative Doctoral Grants - Block Payment,Birkbeck College,99055846,5685.50,Training Awards - Postgraduates
BEIS,UKRI - AHRC,18/10/2021,Training Awards - Postgraduates,Collabrative Doctoral Grants - Block Payment,University of London,99055847,5781.00,Training Awards - Postgraduates
BEIS,UKRI - AHRC,18/10/2021,Training Awards - Postgraduates,Collabrative Doctoral Grants - Block Payment,University of London,99055848,5781.00,Training Awards - Postgraduates
BEIS,UKRI - AHRC,18/10/2021,Training Awards - Postgraduates,Collabrative Doctoral Grants - Block Payment,University of Portsmouth,99055849,5531.00,Training Awards - Postgraduates
BEIS,UKRI - AHRC,18/10/2021,Training Awards - Postgraduates,Collabrative Doctoral Grants - Block Payment,Northumbria University,99055850,5281.00,Training Awards - Postgraduates
BEIS,UKRI - AHRC,18/10/2021,Training Awards - Postgraduates,Collabrative Doctoral Grants - Block Payment,University of Winchester,99055851,5531.00,Training Awards - Postgraduates
BEIS,UKRI - AHRC,18/10/2021,Training Awards - Postgraduates,Collabrative Doctoral Grants - Block Payment,Birkbeck College,99055852,5781.00,Training Awards - Postgraduates
BEIS,UKRI - AHRC,18/10/2021,Training Awards - Postgraduates,Collabrative Doctoral Grants - Block Payment,Cardiff University,99055853,5531.00,Training Awards - Postgraduates
BEIS,UKRI - AHRC,18/10/2021,Training Awards - Postgraduates,Collabrative Doctoral Grants - Block Payment,Manchester Metropolitan University,99055854,5531.00,Training Awards - Postgraduates
BEIS,UKRI - AHRC,18/10/2021,Training Awards - Postgraduates,Collabrative Doctoral Grants - Block Payment,University of Reading,99055855,5531.00,Training Awards - Postgraduates
BEIS,UKRI - AHRC,18/10/2021,Training Awards - Postgraduates,Collabrative Doctoral Grants - Block Payment,London School of Economics and Political Science,99055856,5781.00,Training Awards - Postgraduates
BEIS,UKRI - AHRC,18/10/2021,Training Awards - Postgraduates,Collabrative Doctoral Grants - Block Payment,University of Exeter,99055857,10035.12,Training Awards - Postgraduates
BEIS,UKRI - AHRC,18/10/2021,Training Awards - Postgraduates,Collabrative Doctoral Grants - Block Payment,University of Warwick,99055858,5281.00,Training Awards - Postgraduates
BEIS,UKRI - AHRC,18/10/2021,Training Awards - Postgraduates,Collabrative Doctoral Grants - Block Payment,Canterbury Christ Church University GRANT,99055859,5531.00,Training Awards - Postgraduates
BEIS,UKRI - AHRC,18/10/2021,Training Awards - Postgraduates,Collabrative Doctoral Grants - Block Payment,University College London,99055860,5781.00,Training Awards - Postgraduates
BEIS,UKRI - AHRC,18/10/2021,Training Awards - Postgraduates,Collabrative Doctoral Grants - Block Payment,University of Bristol GRANT,99055861,5185.50,Training Awards - Postgraduates
BEIS,UKRI - AHRC,18/10/2021,Training Awards - Postgraduates,Collabrative Doctoral Grants - Block Payment,University of Glasgow,99055862,5281.00,Training Awards - Postgraduates
BEIS,UKRI - AHRC,18/10/2021,Training Awards - Postgraduates,Collabrative Doctoral Grants - Block Payment,University of York,99055863,5531.00,Training Awards - Postgraduates
BEIS,UKRI - AHRC,18/10/2021,Training Awards - Postgraduates,Collabrative Doctoral Grants - Block Payment,University of Exeter,99055864,5531.00,Training Awards - Postgraduates
BEIS,UKRI - AHRC,18/10/2021,Training Awards - Postgraduates,Collabrative Doctoral Grants - Block Payment,University of Edinburgh,99055865,5281.00,Training Awards - Postgraduates
BEIS,UKRI - AHRC,18/10/2021,Training Awards - Postgraduates,Collabrative Doctoral Grants - Block Payment,University of Glasgow,99055866,5281.00,Training Awards - Postgraduates
BEIS,UKRI - AHRC,18/10/2021,Training Awards - Postgraduates,Collabrative Doctoral Grants - Block Payment,University of Edinburgh,99055867,5281.00,Training Awards - Postgraduates
BEIS,UKRI - AHRC,18/10/2021,Training Awards - Postgraduates,International Placement Scheme,University of London,99055868,5370.00,Training Awards - Postgraduates
BEIS,UKRI - AHRC,18/10/2021,Training Awards - Postgraduates,Collabrative Doctoral Grants - Block Payment,"Royal Holloway, University of London",99055869,5781.00,Training Awards - Postgraduates
BEIS,UKRI - AHRC,18/10/2021,Training Awards - Postgraduates,Collabrative Doctoral Grants - Block Payment,University of Brighton,99055870,5101.75,Training Awards - Postgraduates
BEIS,UKRI - AHRC,18/10/2021,Training Awards - Postgraduates,Collabrative Doctoral Grants - Block Payment,Cardiff University,99055871,4487.55,Training Awards - Postgraduates
BEIS,UKRI - AHRC,18/10/2021,Training Awards - Postgraduates,Collabrative Doctoral Grants - Block Payment,University College London,99055872,5687.25,Training Awards - Postgraduates
BEIS,UKRI - AHRC,18/10/2021,Training Awards - Postgraduates,Collabrative Doctoral Grants - Block Payment,University of Leicester,99055873,5187.25,Training Awards - Postgraduates
BEIS,UKRI - AHRC,18/10/2021,Training Awards - Postgraduates,Collabrative Doctoral Grants - Block Payment,University of Leeds,99055874,5101.75,Training Awards - Postgraduates
BEIS,UKRI - AHRC,18/10/2021,Training Awards - Postgraduates,Collabrative Doctoral Grants - Block Payment,University of Leeds,99055874,5187.25,Training Awards - Postgraduates
BEIS,UKRI - AHRC,18/10/2021,Training Awards - Postgraduates,Collabrative Doctoral Grants - Block Payment,Birkbeck College,99055875,5687.25,Training Awards - Postgraduates
BEIS,UKRI - AHRC,18/10/2021,Training Awards - Postgraduates,Collabrative Doctoral Grants - Block Payment,University of Hertfordshire,99055876,4487.55,Training Awards - Postgraduates
BEIS,UKRI - AHRC,18/10/2021,Training Awards - Postgraduates,Collabrative Doctoral Grants - Block Payment,Goldsmiths College University of London,99055877,5687.25,Training Awards - Postgraduates
BEIS,UKRI - AHRC,18/10/2021,Training Awards - Postgraduates,Collabrative Doctoral Grants - Block Payment,University of Brighton,99055878,5187.25,Training Awards - Postgraduates
BEIS,UKRI - AHRC,18/10/2021,Training Awards - Postgraduates,Collabrative Doctoral Grants - Block Payment,The Open University,99055879,5187.25,Training Awards - Postgraduates
BEIS,UKRI - AHRC,18/10/2021,Training Awards - Postgraduates,Collabrative Doctoral Grants - Block Payment,University of Bristol GRANT,99055880,5187.25,Training Awards - Postgraduates
BEIS,UKRI - AHRC,18/10/2021,Training Awards - Postgraduates,Collabrative Doctoral Grants - Block Payment,University of Bristol GRANT,99055881,5187.25,Training Awards - Postgraduates
BEIS,UKRI - AHRC,18/10/2021,Training Awards - Postgraduates,Collabrative Doctoral Grants - Block Payment,University of Oxford,99055882,5187.25,Training Awards - Postgraduates
BEIS,UKRI - AHRC,18/10/2021,Training Awards - Postgraduates,Collabrative Doctoral Grants - Block Payment,De Montfort University,99055883,4487.52,Training Awards - Postgraduates
BEIS,UKRI - AHRC,18/10/2021,Training Awards - Postgraduates,Collabrative Doctoral Grants - Block Payment,University of Kent,99055884,5187.25,Training Awards - Postgraduates
BEIS,UKRI - AHRC,18/10/2021,Training Awards - Postgraduates,Collabrative Doctoral Grants - Block Payment,University of East Anglia,99055885,5101.75,Training Awards - Postgraduates
BEIS,UKRI - AHRC,18/10/2021,Training Awards - Postgraduates,Collabrative Doctoral Grants - Block Payment,University of East Anglia,99055886,5187.25,Training Awards - Postgraduates
BEIS,UKRI - AHRC,18/10/2021,Training Awards - Postgraduates,Collabrative Doctoral Grants - Block Payment,University of East Anglia,99055887,5187.25,Training Awards - Postgraduates
BEIS,UKRI - AHRC,18/10/2021,Training Awards - Postgraduates,Collabrative Doctoral Grants - Block Payment,University of Edinburgh,99055888,5187.25,Training Awards - Postgraduates
BEIS,UKRI - AHRC,18/10/2021,Training Awards - Postgraduates,Collabrative Doctoral Grants - Block Payment,University of Southampton GRANT,99055889,5187.25,Training Awards - Postgraduates
BEIS,UKRI - AHRC,18/10/2021,Training Awards - Postgraduates,Collabrative Doctoral Grants - Block Payment,University of London,99055890,5687.25,Training Awards - Postgraduates
BEIS,UKRI - AHRC,18/10/2021,Training Awards - Postgraduates,Collabrative Doctoral Grants - Block Payment,University of Edinburgh,99055891,5187.25,Training Awards - Postgraduates
BEIS,UKRI - AHRC,18/10/2021,Training Awards - Postgraduates,Collabrative Doctoral Grants - Block Payment,University of Nottingham,99055892,5187.25,Training Awards - Postgraduates
BEIS,UKRI - AHRC,18/10/2021,Training Awards - Postgraduates,Collabrative Doctoral Grants - Block Payment,University of Brighton,99055893,5187.25,Training Awards - Postgraduates
BEIS,UKRI - AHRC,18/10/2021,Training Awards - Postgraduates,Collabrative Doctoral Grants - Block Payment,Imperial College London,99055894,5687.25,Training Awards - Postgraduates
BEIS,UKRI - AHRC,18/10/2021,Training Awards - Postgraduates,Collabrative Doctoral Grants - Block Payment,Sheffield Hallam University,99055895,5187.25,Training Awards - Postgraduates
BEIS,UKRI - AHRC,18/10/2021,Training Awards - Postgraduates,Collabrative Doctoral Grants - Block Payment,University of Glasgow,99055896,5187.25,Training Awards - Postgraduates
BEIS,UKRI - AHRC,18/10/2021,Training Awards - Postgraduates,Collabrative Doctoral Grants - Block Payment,University College London,99055897,5687.25,Training Awards - Postgraduates
BEIS,UKRI - AHRC,18/10/2021,Training Awards - Postgraduates,Collabrative Doctoral Grants - Block Payment,University of Leeds,99055898,5101.75,Training Awards - Postgraduates
BEIS,UKRI - AHRC,18/10/2021,Training Awards - Postgraduates,Collabrative Doctoral Grants - Block Payment,University of Leeds,99055898,5187.25,Training Awards - Postgraduates
BEIS,UKRI - AHRC,18/10/2021,Training Awards - Postgraduates,Collabrative Doctoral Grants - Block Payment,King's College London,99055899,5687.25,Training Awards - Postgraduates
BEIS,UKRI - AHRC,18/10/2021,Training Awards - Postgraduates,Collabrative Doctoral Grants - Block Payment,King's College London,99055900,5687.25,Training Awards - Postgraduates
BEIS,UKRI - AHRC,18/10/2021,Training Awards - Postgraduates,Collabrative Doctoral Grants - Block Payment,University of Edinburgh,99055901,5187.25,Training Awards - Postgraduates
BEIS,UKRI - AHRC,18/10/2021,Training Awards - Postgraduates,Collabrative Doctoral Grants - Block Payment,University of Leeds,99055902,5101.75,Training Awards - Postgraduates
BEIS,UKRI - AHRC,18/10/2021,Training Awards - Postgraduates,Collabrative Doctoral Grants - Block Payment,University of Leeds,99055902,5187.25,Training Awards - Postgraduates
BEIS,UKRI - AHRC,18/10/2021,Training Awards - Postgraduates,Collabrative Doctoral Grants - Block Payment,University of York,99055903,5187.25,Training Awards - Postgraduates
BEIS,UKRI - AHRC,18/10/2021,Training Awards - Postgraduates,Collabrative Doctoral Grants - Block Payment,University of Durham,99055904,5187.25,Training Awards - Postgraduates
BEIS,UKRI - AHRC,18/10/2021,Training Awards - Postgraduates,Collabrative Doctoral Grants - Block Payment,University College London,99055905,4987.53,Training Awards - Postgraduates
BEIS,UKRI - AHRC,18/10/2021,Training Awards - Postgraduates,Collabrative Doctoral Grants - Block Payment,University of the Arts London,99055906,5687.25,Training Awards - Postgraduates
BEIS,UKRI - AHRC,18/10/2021,Training Awards - Postgraduates,Collabrative Doctoral Grants - Block Payment,University of the Arts London,99055907,5687.25,Training Awards - Postgraduates
BEIS,UKRI - AHRC,18/10/2021,Training Awards - Postgraduates,Collabrative Doctoral Grants - Block Payment,University of Warwick,99055908,5187.25,Training Awards - Postgraduates
BEIS,UKRI - AHRC,18/10/2021,Training Awards - Postgraduates,Collabrative Doctoral Grants - Block Payment,University of Strathclyde,99055909,5187.25,Training Awards - Postgraduates
BEIS,UKRI - AHRC,18/10/2021,Training Awards - Postgraduates,Collabrative Doctoral Grants - Block Payment,Goldsmiths College University of London,99055910,5601.75,Training Awards - Postgraduates
BEIS,UKRI - AHRC,18/10/2021,Training Awards - Postgraduates,Collabrative Doctoral Grants - Block Payment,University of St Andrews,99055911,5187.25,Training Awards - Postgraduates
BEIS,UKRI - AHRC,18/10/2021,Training Awards - Postgraduates,Collabrative Doctoral Grants - Block Payment,University College London,99055912,5687.25,Training Awards - Postgraduates
BEIS,UKRI - AHRC,18/10/2021,Training Awards - Postgraduates,Collabrative Doctoral Grants - Block Payment,University College London,99055913,5687.25,Training Awards - Postgraduates
BEIS,UKRI - AHRC,18/10/2021,Training Awards - Postgraduates,Collabrative Doctoral Grants - Block Payment,University of Hull,99055914,5187.25,Training Awards - Postgraduates
BEIS,UKRI - AHRC,18/10/2021,Training Awards - Postgraduates,Collabrative Doctoral Grants - Block Payment,"City, University of London",99055915,5687.25,Training Awards - Postgraduates
BEIS,UKRI - AHRC,18/10/2021,Training Awards - Postgraduates,Collabrative Doctoral Grants - Block Payment,Glasgow Caledonian University,99055916,5101.75,Training Awards - Postgraduates
BEIS,UKRI - AHRC,18/10/2021,Training Awards - Postgraduates,Collabrative Doctoral Grants - Block Payment,University of Leicester,99055917,5187.25,Training Awards - Postgraduates
BEIS,UKRI - AHRC,18/10/2021,Training Awards - Postgraduates,Collabrative Doctoral Grants - Block Payment,University of York,99055918,5187.25,Training Awards - Postgraduates
BEIS,UKRI - AHRC,18/10/2021,Training Awards - Postgraduates,Collabrative Doctoral Grants - Block Payment,Loughborough University,99055919,5187.25,Training Awards - Postgraduates
BEIS,UKRI - AHRC,18/10/2021,Training Awards - Postgraduates,Collabrative Doctoral Grants - Block Payment,University of Edinburgh,99055920,5187.25,Training Awards - Postgraduates
BEIS,UKRI - AHRC,18/10/2021,Training Awards - Postgraduates,Industrial Strategy Challenge Fund (ISCF) - Skills,University of the West of England,99055921,19665.67,Training Awards - Postgraduates
BEIS,UKRI - AHRC,18/10/2021,Training Awards - Postgraduates,Industrial Strategy Challenge Fund (ISCF) - Skills,University of Nottingham,99055922,19671.98,Training Awards - Postgraduates
BEIS,UKRI - AHRC,18/10/2021,Training Awards - Postgraduates,Industrial Strategy Challenge Fund (ISCF) - Skills,"Royal Holloway, University of London",99055923,21577.56,Training Awards - Postgraduates
BEIS,UKRI - AHRC,18/10/2021,Training Awards - Postgraduates,Industrial Strategy Challenge Fund (ISCF) - Skills,The University of Manchester,99055924,19671.98,Training Awards - Postgraduates
BEIS,UKRI - AHRC,18/10/2021,Training Awards - Postgraduates,Industrial Strategy Challenge Fund (ISCF) - Skills,University of Glasgow,99055925,19671.99,Training Awards - Postgraduates
BEIS,UKRI - AHRC,18/10/2021,Training Awards - Postgraduates,Industrial Strategy Challenge Fund (ISCF) - Skills,University of Newcastle Upon Tyne,99055926,19671.98,Training Awards - Postgraduates
BEIS,UKRI - AHRC,18/10/2021,Training Awards - Postgraduates,Collabrative Doctoral Grants - Block Payment,The British Museum,99055927,16450.01,Training Awards - Postgraduates
BEIS,UKRI - AHRC,18/10/2021,Training Awards - Postgraduates,Collabrative Doctoral Grants - Block Payment,The British Museum,99055927,16450.00,Training Awards - Postgraduates
BEIS,UKRI - AHRC,18/10/2021,Training Awards - Postgraduates,Collabrative Doctoral Grants - Block Payment,The British Museum,99055927,16450.00,Training Awards - Postgraduates
BEIS,UKRI - AHRC,18/10/2021,Training Awards - Postgraduates,Collabrative Doctoral Grants - Block Payment,The National Archives,99055928,0.06,Training Awards - Postgraduates
BEIS,UKRI - AHRC,18/10/2021,Training Awards - Postgraduates,Collabrative Doctoral Grants - Block Payment,Sheffield Hallam University,99055929,2599.24,Training Awards - Postgraduates
BEIS,UKRI - AHRC,18/10/2021,Training Awards - Postgraduates,Collabrative Doctoral Grants - Block Payment,Queen Mary University of London,99055930,2849.26,Training Awards - Postgraduates
BEIS,UKRI - AHRC,18/10/2021,Training Awards - Postgraduates,Collabrative Doctoral Grants - Block Payment,De Montfort University,99055931,2599.24,Training Awards - Postgraduates
BEIS,UKRI - AHRC,18/10/2021,Training Awards - Postgraduates,Collabrative Doctoral Grants - Block Payment,Courtauld Institute of Art,99055932,2849.26,Training Awards - Postgraduates
BEIS,UKRI - AHRC,18/10/2021,Training Awards - Postgraduates,Collabrative Doctoral Grants - Block Payment,University of the Arts London,99055933,2849.26,Training Awards - Postgraduates
BEIS,UKRI - AHRC,18/10/2021,Training Awards - Postgraduates,Collabrative Doctoral Grants - Block Payment,University of Leeds,99055934,5110.00,Training Awards - Postgraduates
BEIS,UKRI - AHRC,18/10/2021,Training Awards - Postgraduates,Collabrative Doctoral Grants - Block Payment,University of Leeds,99055934,2599.26,Training Awards - Postgraduates
BEIS,UKRI - AHRC,18/10/2021,Training Awards - Postgraduates,Collabrative Doctoral Grants - Block Payment,University of Leeds,99055935,5110.00,Training Awards - Postgraduates
BEIS,UKRI - AHRC,18/10/2021,Training Awards - Postgraduates,Collabrative Doctoral Grants - Block Payment,University of Leeds,99055935,2599.26,Training Awards - Postgraduates
BEIS,UKRI - AHRC,18/10/2021,Training Awards - Postgraduates,Collabrative Doctoral Grants - Block Payment,University of Cambridge,99055936,2599.26,Training Awards - Postgraduates
BEIS,UKRI - AHRC,18/10/2021,Training Awards - Postgraduates,Collabrative Doctoral Grants - Block Payment,University of Cambridge,99055937,2599.26,Training Awards - Postgraduates
BEIS,UKRI - AHRC,18/10/2021,Training Awards - Postgraduates,Collabrative Doctoral Grants - Block Payment,University of Cambridge,99055938,2599.26,Training Awards - Postgraduates
BEIS,UKRI - AHRC,18/10/2021,Training Awards - Postgraduates,Collabrative Doctoral Grants - Block Payment,Keele University,99055939,2599.26,Training Awards - Postgraduates
BEIS,UKRI - AHRC,18/10/2021,Training Awards - Postgraduates,Collabrative Doctoral Grants - Block Payment,University of Strathclyde,99055940,2599.26,Training Awards - Postgraduates
BEIS,UKRI - AHRC,18/10/2021,Training Awards - Postgraduates,Collabrative Doctoral Grants - Block Payment,University of Kent,99055941,2599.26,Training Awards - Postgraduates
BEIS,UKRI - AHRC,18/10/2021,Training Awards - Postgraduates,Collabrative Doctoral Grants - Block Payment,University of Kent,99055942,2599.26,Training Awards - Postgraduates
BEIS,UKRI - AHRC,18/10/2021,Training Awards - Postgraduates,Collabrative Doctoral Grants - Block Payment,University College London,99055943,2849.24,Training Awards - Postgraduates
BEIS,UKRI - AHRC,18/10/2021,Training Awards - Postgraduates,Collabrative Doctoral Grants - Block Payment,University of Durham,99055944,2599.26,Training Awards - Postgraduates
BEIS,UKRI - AHRC,18/10/2021,Training Awards - Postgraduates,Collabrative Doctoral Grants - Block Payment,University of Oxford,99055945,2599.26,Training Awards - Postgraduates
BEIS,UKRI - AHRC,18/10/2021,Training Awards - Postgraduates,Collabrative Doctoral Grants - Block Payment,University of Aberdeen,99055946,2599.26,Training Awards - Postgraduates
BEIS,UKRI - AHRC,18/10/2021,Training Awards - Postgraduates,Collabrative Doctoral Grants - Block Payment,University of Newcastle Upon Tyne,99055947,2599.26,Training Awards - Postgraduates
BEIS,UKRI - AHRC,18/10/2021,Training Awards - Postgraduates,Collabrative Doctoral Grants - Block Payment,University of York,99055948,2599.26,Training Awards - Postgraduates
BEIS,UKRI - AHRC,18/10/2021,Training Awards - Postgraduates,Collabrative Doctoral Grants - Block Payment,University of Leeds,99055949,5110.00,Training Awards - Postgraduates
BEIS,UKRI - AHRC,18/10/2021,Training Awards - Postgraduates,Collabrative Doctoral Grants - Block Payment,University of Leeds,99055949,2599.26,Training Awards - Postgraduates
BEIS,UKRI - AHRC,18/10/2021,Training Awards - Postgraduates,Collabrative Doctoral Grants - Block Payment,Royal College of Art,99055950,2849.26,Training Awards - Postgraduates
BEIS,UKRI - AHRC,18/10/2021,Training Awards - Postgraduates,Collabrative Doctoral Grants - Block Payment,University of Glasgow,99055951,2599.26,Training Awards - Postgraduates
BEIS,UKRI - AHRC,18/10/2021,Training Awards - Postgraduates,Collabrative Doctoral Grants - Block Payment,De Montfort University,99055952,2599.24,Training Awards - Postgraduates
BEIS,UKRI - AHRC,18/10/2021,Training Awards - Postgraduates,Collabrative Doctoral Grants - Block Payment,Birkbeck College,99055953,2849.26,Training Awards - Postgraduates
BEIS,UKRI - AHRC,18/10/2021,Training Awards - Postgraduates,Collabrative Doctoral Grants - Block Payment,University of Southampton GRANT,99055954,2599.26,Training Awards - Postgraduates
BEIS,UKRI - AHRC,18/10/2021,Training Awards - Postgraduates,Collabrative Doctoral Grants - Block Payment,University of Stirling,99055955,2599.26,Training Awards - Postgraduates
BEIS,UKRI - AHRC,18/10/2021,Training Awards - Postgraduates,Collabrative Doctoral Grants - Block Payment,King's College London,99055956,2849.26,Training Awards - Postgraduates
BEIS,UKRI - AHRC,18/10/2021,Training Awards - Postgraduates,Collabrative Doctoral Grants - Block Payment,University of Central Lancashire,99055957,2599.26,Training Awards - Postgraduates
BEIS,UKRI - AHRC,18/10/2021,Training Awards - Postgraduates,Collabrative Doctoral Grants - Block Payment,University of Leeds,99055958,5110.00,Training Awards - Postgraduates
BEIS,UKRI - AHRC,18/10/2021,Training Awards - Postgraduates,Collabrative Doctoral Grants - Block Payment,University of Leeds,99055958,2599.24,Training Awards - Postgraduates
BEIS,UKRI - AHRC,18/10/2021,Training Awards - Postgraduates,Collabrative Doctoral Grants - Block Payment,University College London,99055959,2849.24,Training Awards - Postgraduates
BEIS,UKRI - AHRC,18/10/2021,Training Awards - Postgraduates,Collabrative Doctoral Grants - Block Payment,University College London,99055960,2849.26,Training Awards - Postgraduates
BEIS,UKRI - AHRC,18/10/2021,Training Awards - Postgraduates,Collabrative Doctoral Grants - Block Payment,"City, University of London",99055961,5610.00,Training Awards - Postgraduates
BEIS,UKRI - AHRC,18/10/2021,Training Awards - Postgraduates,Collabrative Doctoral Grants - Block Payment,University of Durham,99055962,2599.24,Training Awards - Postgraduates
BEIS,UKRI - AHRC,18/10/2021,Training Awards - Postgraduates,Collabrative Doctoral Grants - Block Payment,Goldsmiths College University of London,99055963,2849.24,Training Awards - Postgraduates
BEIS,UKRI - AHRC,18/10/2021,Training Awards - Postgraduates,Collabrative Doctoral Grants - Block Payment,Robert Gordon University,99055964,2599.26,Training Awards - Postgraduates
BEIS,UKRI - AHRC,18/10/2021,Training Awards - Postgraduates,Collabrative Doctoral Grants - Block Payment,University of Liverpool,99055965,5110.00,Training Awards - Postgraduates
BEIS,UKRI - AHRC,18/10/2021,Training Awards - Postgraduates,Collabrative Doctoral Grants - Block Payment,University of Liverpool,99055965,2599.24,Training Awards - Postgraduates
BEIS,UKRI - AHRC,18/10/2021,Training Awards - Postgraduates,Collabrative Doctoral Grants - Block Payment,University of Exeter,99055966,2599.26,Training Awards - Postgraduates
BEIS,UKRI - AHRC,18/10/2021,Training Awards - Postgraduates,Collabrative Doctoral Grants - Block Payment,University of Edinburgh,99055967,2599.24,Training Awards - Postgraduates
BEIS,UKRI - AHRC,18/10/2021,Training Awards - Postgraduates,Collabrative Doctoral Grants - Block Payment,King's College London,99055968,2849.26,Training Awards - Postgraduates
BEIS,UKRI - AHRC,18/10/2021,Training Awards - Postgraduates,Collabrative Doctoral Grants - Block Payment,University of Brighton,99055969,2599.26,Training Awards - Postgraduates
BEIS,UKRI - AHRC,18/10/2021,Training Awards - Postgraduates,Collabrative Doctoral Grants - Block Payment,Northumbria University,99055970,2599.26,Training Awards - Postgraduates
BEIS,UKRI - AHRC,18/10/2021,Training Awards - Postgraduates,Collabrative Doctoral Grants - Block Payment,"SOAS, University of London",99055971,2849.24,Training Awards - Postgraduates
BEIS,UKRI - AHRC,18/10/2021,Training Awards - Postgraduates,Collabrative Doctoral Grants - Block Payment,University of Stirling,99055972,2599.26,Training Awards - Postgraduates
BEIS,UKRI - AHRC,18/10/2021,Training Awards - Postgraduates,Collabrative Doctoral Grants - Block Payment,University College London,99055973,2847.01,Training Awards - Postgraduates
BEIS,UKRI - AHRC,18/10/2021,Training Awards - Postgraduates,Collabrative Doctoral Grants - Block Payment,University of Sheffield,99055974,2599.26,Training Awards - Postgraduates
BEIS,UKRI - AHRC,18/10/2021,Training Awards - Postgraduates,Collabrative Doctoral Grants - Block Payment,University of London,99055975,2849.26,Training Awards - Postgraduates
BEIS,UKRI - AHRC,18/10/2021,Training Awards - Postgraduates,Collabrative Doctoral Grants - Block Payment,University of Sheffield,99055976,2599.24,Training Awards - Postgraduates
BEIS,UKRI - AHRC,18/10/2021,Training Awards - Postgraduates,BGP Award,University of Sussex,99055977,629340.87,Training Awards - Postgraduates
BEIS,UKRI - AHRC,18/10/2021,Training Awards - Postgraduates,BGP Award,The University of Manchester,99055978,487950.75,Training Awards - Postgraduates
BEIS,UKRI - AHRC,18/10/2021,Training Awards - Postgraduates,BGP Award,University of Bristol GRANT,99055979,324434.25,Training Awards - Postgraduates
BEIS,UKRI - AHRC,18/10/2021,Training Awards - Postgraduates,BGP Award,"Royal Holloway, University of London",99055980,665950.95,Training Awards - Postgraduates
BEIS,UKRI - AHRC,18/10/2021,Training Awards - Postgraduates,BGP Award,University of York,99055981,519787.80,Training Awards - Postgraduates
BEIS,UKRI - AHRC,18/10/2021,Training Awards - Postgraduates,BGP Award,University of Nottingham,99055982,745680.76,Training Awards - Postgraduates
BEIS,UKRI - AHRC,18/10/2021,Training Awards - Postgraduates,BGP Award,University of Glasgow,99055983,618070.95,Training Awards - Postgraduates
BEIS,UKRI - AHRC,18/10/2021,Training Awards - Postgraduates,BGP Award,University of Oxford,99055984,828411.81,Training Awards - Postgraduates
BEIS,UKRI - AHRC,18/10/2021,Training Awards - Postgraduates,BGP Award,University College London,99055985,800852.07,Training Awards - Postgraduates
BEIS,UKRI - AHRC,18/10/2021,Training Awards - Postgraduates,BGP Award,University of Newcastle Upon Tyne,99055986,618070.95,Training Awards - Postgraduates
BEIS,UKRI - AHRC,18/10/2021,Training Awards - Postgraduates,Collabrative Doctoral Grants - Block Payment,University of Leeds,99055987,2634.47,Training Awards - Postgraduates
BEIS,UKRI - AHRC,18/10/2021,Training Awards - Postgraduates,Collabrative Doctoral Grants - Block Payment,University of Leeds,99055987,2634.52,Training Awards - Postgraduates
BEIS,UKRI - AHRC,18/10/2021,Training Awards - Postgraduates,Collabrative Doctoral Grants - Block Payment,University of Liverpool,99055988,2585.57,Training Awards - Postgraduates
BEIS,UKRI - AHRC,18/10/2021,Training Awards - Postgraduates,BGP Award,"Royal Holloway, University of London",99055989,176277.41,Training Awards - Postgraduates
BEIS,UKRI - AHRC,18/10/2021,Training Awards - Postgraduates,BGP Award,"Royal Holloway, University of London",99055989,9532.00,Training Awards - Postgraduates
BEIS,UKRI - AHRC,18/10/2021,Training Awards - Postgraduates,BGP Award,University of Bristol GRANT,99055990,105708.75,Training Awards - Postgraduates
BEIS,UKRI - AHRC,18/10/2021,Training Awards - Postgraduates,BGP Award,University of Newcastle Upon Tyne,99055991,104913.12,Training Awards - Postgraduates
BEIS,UKRI - AHRC,18/10/2021,Training Awards - Postgraduates,BGP Award,University of Glasgow,99055992,105708.75,Training Awards - Postgraduates
BEIS,UKRI - AHRC,18/10/2021,Training Awards - Postgraduates,BGP Award,The University of Manchester,99055993,168267.23,Training Awards - Postgraduates
BEIS,UKRI - AHRC,18/10/2021,Training Awards - Postgraduates,BGP Award,University of Cambridge,99055994,105708.75,Training Awards - Postgraduates
BEIS,UKRI - AHRC,18/10/2021,Training Awards - Postgraduates,BGP Award,University of Oxford,99055995,105708.75,Training Awards - Postgraduates
BEIS,UKRI - AHRC,18/10/2021,Training Awards - Postgraduates,BGP Award,University College London,99055996,226069.10,Training Awards - Postgraduates
BEIS,UKRI - AHRC,18/10/2021,Training Awards - Postgraduates,BGP Award,University of Sussex,99055997,219410.87,Training Awards - Postgraduates
BEIS,UKRI - AHRC,18/10/2021,Training Awards - Postgraduates,BGP Award,University of Nottingham,99055998,193165.74,Training Awards - Postgraduates
BEIS,UKRI - AHRC,18/10/2021,Training Awards - Postgraduates,BGP Award,University of York,99055999,210678.27,Training Awards - Postgraduates
BEIS,UKRI - AHRC,18/10/2021,Training Awards - Postgraduates,BGP Award,Northumbria University,99056000,22666.90,Training Awards - Postgraduates
BEIS,UKRI - AHRC,18/10/2021,Training Awards - Postgraduates,BGP Award,University College London,99056001,19113.29,Training Awards - Postgraduates
BEIS,UKRI - AHRC,18/10/2021,Training Awards - Postgraduates,BGP Award,University of Hull,99056002,29504.84,Training Awards - Postgraduates
BEIS,UKRI - AHRC,18/10/2021,Training Awards - Postgraduates,BGP Award,University of Glasgow,99056003,13213.60,Training Awards - Postgraduates
BEIS,UKRI - AHRC,18/10/2021,Training Awards - Postgraduates,BGP Award,University of the West of England,99056004,18499.04,Training Awards - Postgraduates
BEIS,UKRI - AHRC,18/10/2021,Training Awards - Postgraduates,BGP Award,Royal College of Art,99056005,36826.01,Training Awards - Postgraduates
BEIS,UKRI - AHRC,18/10/2021,Training Awards - Postgraduates,BGP Award,University of Reading,99056006,16221.19,Training Awards - Postgraduates
BEIS,UKRI - AHRC,18/10/2021,Training Awards - Postgraduates,Collabrative Doctoral Grants - Block Payment,University of Durham,99056007,5435.50,Training Awards - Postgraduates
BEIS,UKRI - AHRC,18/10/2021,Training Awards - Postgraduates,International Placement Scheme,University of Nottingham,99056139,-1296.20,Training Awards - Postgraduates
BEIS,UKRI - AHRC,18/10/2021,Training Awards - Postgraduates,Collabrative Doctoral Grants - Block Payment,University College London,99056140,-40285.57,Training Awards - Postgraduates
BEIS,UKRI - AHRC,18/10/2021,Training Awards - Postgraduates,Collabrative Doctoral Grants - Block Payment,"City, University of London",99056141,-225.61,Training Awards - Postgraduates
BEIS,UKRI - AHRC,18/10/2021,Training Awards - Postgraduates,Collabrative Doctoral Grants - Block Payment,University of York,99056142,-1383.64,Training Awards - Postgraduates
BEIS,UKRI - AHRC,18/10/2021,Training Awards - Postgraduates,Collabrative Doctoral Grants - Block Payment,The University of Manchester,99056143,-3273.03,Training Awards - Postgraduates
BEIS,UKRI - AHRC,18/10/2021,Training Awards - Postgraduates,Collabrative Doctoral Grants - Block Payment,The University of Manchester,99056144,-10746.00,Training Awards - Postgraduates
BEIS,UKRI - AHRC,18/10/2021,Training Awards - Postgraduates,Collabrative Doctoral Grants - Block Payment,Queen Mary University of London,99056145,-2316.50,Training Awards - Postgraduates
BEIS,UKRI - AHRC,18/10/2021,Training Awards - Postgraduates,Collabrative Doctoral Grants - Block Payment,University of Durham,99056146,-3287.18,Training Awards - Postgraduates
BEIS,UKRI - AHRC,18/10/2021,Training Awards - Postgraduates,Collabrative Doctoral Grants - Block Payment,Manchester Metropolitan University,99056147,-3873.03,Training Awards - Postgraduates
BEIS,UKRI - AHRC,18/10/2021,Training Awards - Postgraduates,Collabrative Doctoral Grants - Block Payment,Heriot Watt University,99056148,-2343.00,Training Awards - Postgraduates
BEIS,UKRI - AHRC,18/10/2021,Training Awards - Postgraduates,Collabrative Doctoral Grants - Block Payment,Birkbeck College,99056149,-3154.00,Training Awards - Postgraduates
BEIS,UKRI - AHRC,18/10/2021,Training Awards - Postgraduates,Collabrative Doctoral Grants - Block Payment,Birkbeck College,99056150,-269.34,Training Awards - Postgraduates
BEIS,UKRI - AHRC,18/10/2021,Training Awards - Postgraduates,Collabrative Doctoral Grants - Block Payment,University of York,99056151,-3260.75,Training Awards - Postgraduates
BEIS,UKRI - AHRC,18/10/2021,Training Awards - Postgraduates,Collabrative Doctoral Grants - Block Payment,University of Nottingham,99056152,-8633.57,Training Awards - Postgraduates
BEIS,UKRI - AHRC,18/10/2021,Training Awards - Postgraduates,Collabrative Doctoral Grants - Block Payment,Cardiff University,99056153,-2778.00,Training Awards - Postgraduates
BEIS,UKRI - AHRC,18/10/2021,Training Awards - Postgraduates,Collabrative Doctoral Grants - Block Payment,University of Nottingham,99056154,-4781.11,Training Awards - Postgraduates
BEIS,UKRI - AHRC,18/10/2021,Training Awards - Postgraduates,Collabrative Doctoral Grants - Block Payment,University of Liverpool,99056155,-9750.65,Training Awards - Postgraduates
BEIS,UKRI - AHRC,18/10/2021,Training Awards - Postgraduates,Collabrative Doctoral Grants - Block Payment,University of Glasgow,99056156,-37487.22,Training Awards - Postgraduates
BEIS,UKRI - AHRC,18/10/2021,Training Awards - Postgraduates,Collabrative Doctoral Grants - Block Payment,University of Glasgow,99056157,-3842.55,Training Awards - Postgraduates
BEIS,UKRI - AHRC,18/10/2021,Training Awards - Postgraduates,Collabrative Doctoral Grants - Block Payment,University of Bristol GRANT,99056158,-1636.26,Training Awards - Postgraduates
BEIS,UKRI - AHRC,18/10/2021,Fees (Including College Members),Intergenerational Justice,Unspecified,99059524,85.00,Fees (Including College Members)
BEIS,UKRI - AHRC,18/10/2021,Unspecified,Infrastruture Roadmap,Alexander Mann Solutions Ltd,99059776,2772.24,Legal & Professional Services
BEIS,UKRI - AHRC,19/10/2021,Unspecified,SMT,University of St Andrews,99054294,38448.46,Secondments
BEIS,UKRI - AHRC,20/10/2021,Staff Training,AI&Design,QA Ltd,99060792,2294.22,Staff Training
BEIS,UKRI - AHRC,20/10/2021,Staff Training,Executive Office,Open University,99061514,3168.00,Staff Training
BEIS,UKRI - AHRC,21/10/2021,Health & Safety (inc. Medicals & Opticians),SMT,Unspecified,99050507,158.00,Health & Safety (inc. Medicals & Opticians)
BEIS,UKRI - AHRC,21/10/2021,T&S Overseas - Accommodation,SMT,Unspecified,99050508,121.26,T&S Overseas - Accommodation
BEIS,UKRI - AHRC,21/10/2021,T&S Overseas - Public Transport,SMT,Unspecified,99050508,34.02,T&S Overseas - Public Transport
BEIS,UKRI - AHRC,21/10/2021,T&S Overseas - Subsistence,SMT,Unspecified,99050508,15.00,T&S Overseas - Subsistence
BEIS,UKRI - AHRC,21/10/2021,Fees (Including College Members),Operations,Unspecified,99062490,170.00,Fees (Including College Members)
BEIS,UKRI - AHRC,21/10/2021,Fees (Including College Members),Operations,Unspecified,99062491,170.00,Fees (Including College Members)
BEIS,UKRI - AHRC,21/10/2021,T&S UK - Other Charges,Operations,Unspecified,99062691,76.49,T&S UK - Other Charges
BEIS,UKRI - AHRC,22/10/2021,Fees (Including College Members),Operations,Unspecified,99063093,170.00,Fees (Including College Members)
BEIS,UKRI - AHRC,22/10/2021,Health & Safety (inc. Medicals & Opticians),Skills Strategy,Unspecified,99063162,14.99,Health & Safety (inc. Medicals & Opticians)
BEIS,UKRI - AHRC,25/10/2021,T&S UK - Public Transport,SMT,Unspecified,99063608,48.10,T&S UK - Public Transport
BEIS,UKRI - AHRC,25/10/2021,Fees (Including College Members),Infrastructure Fund - CoSTAR,Unspecified,99064123,170.00,Fees (Including College Members)
BEIS,UKRI - AHRC,25/10/2021,Unspecified,Infrastruture Roadmap,Alexander Mann Solutions Ltd,99064160,2772.24,Legal & Professional Services
BEIS,UKRI - AHRC,26/10/2021,Research Grant Expenditure,Commissioned Research,UKRI - Economic & Social Research Council,99063926,16783.39,Research Grant Expenditure
BEIS,UKRI - AHRC,26/10/2021,Research Grant Expenditure,Urban Living,UKRI - Economic & Social Research Council,99063932,1814.11,Research Grant Expenditure
BEIS,UKRI - AHRC,28/10/2021,Health & Safety (inc. Medicals & Opticians),AI&Design,Unspecified,99065772,14.99,Health & Safety (inc. Medicals & Opticians)
BEIS,UKRI - AHRC,28/10/2021,T&S UK - Other Charges,Operations,Unspecified,99065773,18.99,T&S UK - Other Charges
BEIS,UKRI - BBSRC,01/10/2021,Conferences & Seminars,Innovation and Skills Group CDSU,Westminster Forum Projects Ltd,99039031,228.00,Conferences & Seminars
BEIS,UKRI - BBSRC,04/10/2021,Fees (Including College Members),Innovation and Skills Group CDSU,Unspecified,99050465,340.00,Fees (Including College Members)
BEIS,UKRI - BBSRC,04/10/2021,Security Services,FG - Estates,Babraham Institute,99051104,8000.00,Security Services
BEIS,UKRI - BBSRC,04/10/2021,T&S UK - Parking Tolls Congestion Charges,CE - Chief Executive,Unspecified,99051218,16.40,T&S UK - Parking Tolls Congestion Charges
BEIS,UKRI - BBSRC,04/10/2021,T&S UK - Public Transport,CE - Chief Executive,Unspecified,99051218,2.50,T&S UK - Public Transport
BEIS,UKRI - BBSRC,04/10/2021,T&S UK - Public Transport,CE - Chief Executive,Unspecified,99051218,12.00,T&S UK - Public Transport
BEIS,UKRI - BBSRC,04/10/2021,T&S UK - Subsistence,CE - Chief Executive,Unspecified,99051218,3.00,T&S UK - Subsistence
BEIS,UKRI - BBSRC,04/10/2021,T&S UK - Subsistence,CE - Chief Executive,Unspecified,99051218,27.35,T&S UK - Subsistence
BEIS,UKRI - BBSRC,05/10/2021,Research Grant Expenditure,Science Group,UKRI - Medical Research Council,99049426,520000.00,Research Grant Expenditure
BEIS,UKRI - BBSRC,05/10/2021,Research Institutes - Competitive Strategic Grant,Rothamsted Research,Rothamsted Research Ltd,99051517,6463.87,Research Institutes - Competitive Strategic Grant
BEIS,UKRI - BBSRC,05/10/2021,Research Institutes - Competitive Strategic Grant,Rothamsted Research,Rothamsted Research Ltd,99051517,27171.64,Research Institutes - Competitive Strategic Grant
BEIS,UKRI - BBSRC,05/10/2021,Research Institutes - Competitive Strategic Grant,Rothamsted Research,Rothamsted Research Ltd,99051517,3757.16,Research Institutes - Competitive Strategic Grant
BEIS,UKRI - BBSRC,05/10/2021,Research Institutes - Competitive Strategic Grant,Rothamsted Research,Rothamsted Research Ltd,99051517,11445.79,Research Institutes - Competitive Strategic Grant
BEIS,UKRI - BBSRC,05/10/2021,Research Institutes - Competitive Strategic Grant,Rothamsted Research,Rothamsted Research Ltd,99051517,411.54,Research Institutes - Competitive Strategic Grant
BEIS,UKRI - BBSRC,05/10/2021,Health & Safety (inc. Medicals & Opticians),Science Group,Unspecified,99052089,12.00,Health & Safety (inc. Medicals & Opticians)
BEIS,UKRI - BBSRC,06/10/2021,Conferences & Seminars,Innovation and Skills Group CDSU,Westminster Food and Nutrition Forum,99050024,228.00,Conferences & Seminars
BEIS,UKRI - BBSRC,06/10/2021,Research Institutes - Competitive Strategic Grant,IBERS,Ibers - Aberystwyth University,99051861,86360.99,Research Institutes - Competitive Strategic Grant
BEIS,UKRI - BBSRC,06/10/2021,Research Institutes - Competitive Strategic Grant,IBERS,Ibers - Aberystwyth University,99051861,46980.67,Research Institutes - Competitive Strategic Grant
BEIS,UKRI - BBSRC,06/10/2021,Research Institutes - Competitive Strategic Grant,IBERS,Ibers - Aberystwyth University,99051861,2916.67,Research Institutes - Competitive Strategic Grant
BEIS,UKRI - BBSRC,06/10/2021,Research Institutes - Competitive Strategic Grant,IBERS,Ibers - Aberystwyth University,99051864,86360.99,Research Institutes - Competitive Strategic Grant
BEIS,UKRI - BBSRC,06/10/2021,Research Institutes - Competitive Strategic Grant,IBERS,Ibers - Aberystwyth University,99051864,46980.67,Research Institutes - Competitive Strategic Grant
BEIS,UKRI - BBSRC,06/10/2021,Research Institutes - Competitive Strategic Grant,IBERS,Ibers - Aberystwyth University,99051864,2916.67,Research Institutes - Competitive Strategic Grant
BEIS,UKRI - BBSRC,06/10/2021,Fees (Including College Members),Innovation and Skills Group CDSU,Unspecified,99052097,170.00,Fees (Including College Members)
BEIS,UKRI - BBSRC,06/10/2021,Unspecified,FG - Estates,Powis Hughes Ltd,99053765,4471.56,Legal & Professional Services
BEIS,UKRI - BBSRC,06/10/2021,T&S UK - Other Charges,FG - Estates,Unspecified,99053860,11.90,T&S UK - Other Charges
BEIS,UKRI - BBSRC,06/10/2021,T&S UK - Vehicle Hire,FG - Estates,Unspecified,99053860,72.98,T&S UK - Vehicle Hire
BEIS,UKRI - BBSRC,06/10/2021,T&S UK - Vehicle Hire,Science Group,Unspecified,99053861,20.00,T&S UK - Vehicle Hire
BEIS,UKRI - BBSRC,06/10/2021,Health & Safety (inc. Medicals & Opticians),Science Group,Unspecified,99053862,14.99,Health & Safety (inc. Medicals & Opticians)
BEIS,UKRI - BBSRC,07/10/2021,Research Institutes - Capital Grants: Minor Works,Rothamsted Research,Rothamsted Research Ltd,99044044,3692.07,Research Institutes - Capital Grants: Minor Works
BEIS,UKRI - BBSRC,07/10/2021,Research Institutes - Capital Grants: Minor Works,Babraham Institute,Babraham Institute,99046562,44480.16,Research Institutes - Capital Grants: Minor Works
BEIS,UKRI - BBSRC,07/10/2021,Research Institutes - Capital Grants: Minor Works,Babraham Institute,Babraham Institute,99049072,676834.02,Research Institutes - Capital Grants: Minor Works
BEIS,UKRI - BBSRC,07/10/2021,T&S UK - Vehicle Hire,CIMG - Director,Enterprise Rent-A-Car UK Ltd,99053726,15.61,T&S UK - Vehicle Hire
BEIS,UKRI - BBSRC,07/10/2021,T&S UK - Vehicle Hire,CIMG - Director,Enterprise Rent-A-Car UK Ltd,99053726,78.07,T&S UK - Vehicle Hire
BEIS,UKRI - BBSRC,07/10/2021,T&S UK - Vehicle Hire,FG - Director,Enterprise Rent-A-Car UK Ltd,99053726,18.39,T&S UK - Vehicle Hire
BEIS,UKRI - BBSRC,07/10/2021,T&S UK - Vehicle Hire,FG - Director,Enterprise Rent-A-Car UK Ltd,99053726,91.94,T&S UK - Vehicle Hire
BEIS,UKRI - BBSRC,07/10/2021,T&S UK - Vehicle Hire,Science Group,Enterprise Rent-A-Car UK Ltd,99053726,13.45,T&S UK - Vehicle Hire
BEIS,UKRI - BBSRC,07/10/2021,T&S UK - Vehicle Hire,Science Group,Enterprise Rent-A-Car UK Ltd,99053726,67.26,T&S UK - Vehicle Hire
BEIS,UKRI - BBSRC,07/10/2021,Fees (Including College Members),Innovation and Skills Group CDSU,Unspecified,99054165,170.00,Fees (Including College Members)
BEIS,UKRI - BBSRC,07/10/2021,Health & Safety (inc. Medicals & Opticians),CE - CPS,Unspecified,99055167,14.99,Health & Safety (inc. Medicals & Opticians)
BEIS,UKRI - BBSRC,08/10/2021,Research Grant Expenditure,NPIF EMBL EBI,EMBL (European Molecular Biology Laboratory),99045400,190394.00,Research Grant Expenditure
BEIS,UKRI - BBSRC,08/10/2021,Research Grant Expenditure,SPF W1 EMBL EBI,EMBL (European Molecular Biology Laboratory),99054704,11804.24,Research Grant Expenditure
BEIS,UKRI - BBSRC,08/10/2021,Fees (Including College Members),Innovation and Skills Group CDSU,Unspecified,99054769,170.00,Fees (Including College Members)
BEIS,UKRI - BBSRC,08/10/2021,Fees (Including College Members),Innovation and Skills Group CDSU,Unspecified,99054770,170.00,Fees (Including College Members)
BEIS,UKRI - BBSRC,08/10/2021,T&S UK - Other Charges,CIMG - Information Management,Unspecified,99054896,174.98,T&S UK - Other Charges
BEIS,UKRI - BBSRC,08/10/2021,Research Grant Expenditure,SPF W1 EMBL EBI,EMBL (European Molecular Biology Laboratory),99055658,-14165.09,Research Grant Expenditure
BEIS,UKRI - BBSRC,08/10/2021,Research Grant Expenditure,SPF W1 EMBL EBI,EMBL (European Molecular Biology Laboratory),99055661,11804.24,Research Grant Expenditure
BEIS,UKRI - BBSRC,11/10/2021,Research Institutes - Capital Grants: Minor Works,Rothamsted Research,Rothamsted Research Ltd,99054973,1721.30,Research Institutes - Capital Grants: Minor Works
BEIS,UKRI - BBSRC,11/10/2021,Research Institutes - Capital Grants: Minor Works,Rothamsted Research,Rothamsted Research Ltd,99055766,10788.00,Research Institutes - Capital Grants: Minor Works
BEIS,UKRI - BBSRC,11/10/2021,Fees (Including College Members),Science Group – Admin Function,Unspecified,99056236,170.00,Fees (Including College Members)
BEIS,UKRI - BBSRC,12/10/2021,T&S UK - Accommodation,CE - Chief Executive,Corporate Travel Management (North) Ltd,99056652,0.80,T&S UK - Accommodation
BEIS,UKRI - BBSRC,12/10/2021,T&S UK - Accommodation,CE - Chief Executive,Corporate Travel Management (North) Ltd,99056652,0.80,T&S UK - Accommodation
BEIS,UKRI - BBSRC,12/10/2021,T&S UK - Accommodation,CE - Chief Executive,Corporate Travel Management (North) Ltd,99056652,0.32,T&S UK - Accommodation
BEIS,UKRI - BBSRC,12/10/2021,T&S UK - Accommodation,CIMG - Director,Corporate Travel Management (North) Ltd,99056652,0.80,T&S UK - Accommodation
BEIS,UKRI - BBSRC,12/10/2021,T&S UK - Accommodation,CIMG - Director,Corporate Travel Management (North) Ltd,99056652,70.00,T&S UK - Accommodation
BEIS,UKRI - BBSRC,12/10/2021,T&S UK - Accommodation,CIMG - Director,Corporate Travel Management (North) Ltd,99056652,0.16,T&S UK - Accommodation
BEIS,UKRI - BBSRC,12/10/2021,T&S UK - Public Transport,CE - Chief Executive,Corporate Travel Management (North) Ltd,99056652,0.50,T&S UK - Public Transport
BEIS,UKRI - BBSRC,12/10/2021,T&S UK - Public Transport,CE - Chief Executive,Corporate Travel Management (North) Ltd,99056652,187.80,T&S UK - Public Transport
BEIS,UKRI - BBSRC,12/10/2021,T&S UK - Public Transport,CE - Chief Executive,Corporate Travel Management (North) Ltd,99056652,111.00,T&S UK - Public Transport
BEIS,UKRI - BBSRC,12/10/2021,T&S UK - Public Transport,CE - Chief Executive,Corporate Travel Management (North) Ltd,99056652,0.50,T&S UK - Public Transport
BEIS,UKRI - BBSRC,12/10/2021,T&S UK - Public Transport,CE - Chief Executive,Corporate Travel Management (North) Ltd,99056652,45.40,T&S UK - Public Transport
BEIS,UKRI - BBSRC,12/10/2021,T&S UK - Public Transport,CE - Chief Executive,Corporate Travel Management (North) Ltd,99056652,90.10,T&S UK - Public Transport
BEIS,UKRI - BBSRC,12/10/2021,T&S UK - Public Transport,CE - Chief Executive,Corporate Travel Management (North) Ltd,99056652,0.25,T&S UK - Public Transport
BEIS,UKRI - BBSRC,12/10/2021,T&S UK - Public Transport,CE - Chief Executive,Corporate Travel Management (North) Ltd,99056652,127.30,T&S UK - Public Transport
BEIS,UKRI - BBSRC,12/10/2021,T&S UK - Public Transport,CE - Chief Executive,Corporate Travel Management (North) Ltd,99056652,0.25,T&S UK - Public Transport
BEIS,UKRI - BBSRC,12/10/2021,T&S UK - Public Transport,CE - Chief Executive,Corporate Travel Management (North) Ltd,99056652,129.60,T&S UK - Public Transport
BEIS,UKRI - BBSRC,12/10/2021,T&S UK - Public Transport,CE - Chief Executive,Corporate Travel Management (North) Ltd,99056652,0.25,T&S UK - Public Transport
BEIS,UKRI - BBSRC,12/10/2021,T&S UK - Public Transport,CE - Chief Executive,Corporate Travel Management (North) Ltd,99056652,92.50,T&S UK - Public Transport
BEIS,UKRI - BBSRC,12/10/2021,T&S UK - Public Transport,CIMG - Director,Corporate Travel Management (North) Ltd,99056652,0.25,T&S UK - Public Transport
BEIS,UKRI - BBSRC,12/10/2021,T&S UK - Public Transport,CIMG - Director,Corporate Travel Management (North) Ltd,99056652,108.60,T&S UK - Public Transport
BEIS,UKRI - BBSRC,12/10/2021,T&S UK - Public Transport,Innovation and Skills Group,Corporate Travel Management (North) Ltd,99056652,0.25,T&S UK - Public Transport
BEIS,UKRI - BBSRC,12/10/2021,T&S UK - Public Transport,Innovation and Skills Group,Corporate Travel Management (North) Ltd,99056652,110.45,T&S UK - Public Transport
BEIS,UKRI - BBSRC,12/10/2021,T&S UK - Public Transport,Science Group,Corporate Travel Management (North) Ltd,99056652,0.25,T&S UK - Public Transport
BEIS,UKRI - BBSRC,12/10/2021,T&S UK - Public Transport,Science Group,Corporate Travel Management (North) Ltd,99056652,156.70,T&S UK - Public Transport
BEIS,UKRI - BBSRC,12/10/2021,T&S UK - Public Transport,Science Group,Corporate Travel Management (North) Ltd,99056652,0.25,T&S UK - Public Transport
BEIS,UKRI - BBSRC,12/10/2021,T&S UK - Public Transport,Science Group,Corporate Travel Management (North) Ltd,99056652,118.00,T&S UK - Public Transport
BEIS,UKRI - BBSRC,12/10/2021,Research Institutes - Capital Grants: Minor Works,JIC,John Innes Centre,99057240,39195.48,Research Institutes - Capital Grants: Minor Works
BEIS,UKRI - BBSRC,13/10/2021,Unspecified,Balance Sheet,HM Revenue & Customs,99050411,75523.79,PAYE Payable Salaries
BEIS,UKRI - BBSRC,13/10/2021,Unspecified,Balance Sheet,HM Revenue & Customs,99050412,6706.00,Student Loans
BEIS,UKRI - BBSRC,13/10/2021,Unspecified,Balance Sheet,HM Revenue & Customs,99050413,99314.38,NI Payable Salaries
BEIS,UKRI - BBSRC,13/10/2021,Unspecified,FG - Accounts & Business Planning,HM Revenue & Customs,99050414,2731.00,Apprenticeship Levy
BEIS,UKRI - BBSRC,13/10/2021,Unspecified,Balance Sheet,HM Revenue & Customs,99054792,1371.80,PAYE Payable Salaries
BEIS,UKRI - BBSRC,13/10/2021,Unspecified,FG - Accounts & Business Planning,HM Revenue & Customs,99054793,31.00,Apprenticeship Levy
BEIS,UKRI - BBSRC,13/10/2021,T&S UK - Parking Tolls Congestion Charges,FG - Estates,Unspecified,99058535,3.00,T&S UK - Parking Tolls Congestion Charges
BEIS,UKRI - BBSRC,13/10/2021,T&S UK - Subsistence,FG - Estates,Unspecified,99058535,13.44,T&S UK - Subsistence
BEIS,UKRI - BBSRC,14/10/2021,Union Deductions,Balance Sheet,PCS Union,99050415,59.66,Union Deductions
BEIS,UKRI - BBSRC,14/10/2021,Voluntary Deductions,Balance Sheet,Swindon Office Sports and Social Club,99050416,48.00,Voluntary Deductions
BEIS,UKRI - BBSRC,14/10/2021,Unspecified,Balance Sheet,Unspecified,99050417,21355.02,Ees Pension Deductions - JSS
BEIS,UKRI - BBSRC,14/10/2021,Unspecified,Balance Sheet,Unspecified,99050418,86901.57,Ers Pension Deductions - JSS
BEIS,UKRI - BBSRC,14/10/2021,Unspecified,Balance Sheet,Scottish Widows Life Assurance,99050419,10.00,Other Pension Deductions
BEIS,UKRI - BBSRC,14/10/2021,Unspecified,Balance Sheet,Cabinet Office RM Shared Services,99050420,10.71,Ers Pension Deductions - JSS
BEIS,UKRI - BBSRC,14/10/2021,Unspecified,Balance Sheet,Cabinet Office RM Shared Services,99050421,12317.66,Ees Pension Deductions - MyCSP
BEIS,UKRI - BBSRC,14/10/2021,Unspecified,Balance Sheet,Cabinet Office RM Shared Services,99050422,61244.84,Ers Pension Deductions - MyCSP
BEIS,UKRI - BBSRC,14/10/2021,Unspecified,Balance Sheet,Unspecified,99050424,388.26,Ees Pension Deductions - MRC
BEIS,UKRI - BBSRC,14/10/2021,Unspecified,Balance Sheet,Unspecified,99050425,955.72,Ers Pension Deductions - MRC
BEIS,UKRI - BBSRC,14/10/2021,Unspecified,Balance Sheet,Scottish Widows Life Assurance,99055788,550.36,Other Pension Deductions
BEIS,UKRI - BBSRC,14/10/2021,Research Grant Expenditure,NPIF EMBL EBI,EMBL (European Molecular Biology Laboratory),99058641,43550.00,Research Grant Expenditure
BEIS,UKRI - BBSRC,14/10/2021,Research Institutes - Capital Grants: Minor Works,Pirbright,The Pirbright Institute,99058670,240.00,Research Institutes - Capital Grants: Minor Works
BEIS,UKRI - BBSRC,14/10/2021,Research Institutes - Capital Grants: Minor Works,Pirbright,The Pirbright Institute,99058671,714.00,Research Institutes - Capital Grants: Minor Works
BEIS,UKRI - BBSRC,14/10/2021,Research Institutes - Capital Grants: Minor Works,Pirbright,The Pirbright Institute,99058672,18290.05,Research Institutes - Capital Grants: Minor Works
BEIS,UKRI - BBSRC,14/10/2021,Research Institutes - Capital Grants: Minor Works,Pirbright,The Pirbright Institute,99058675,1670.40,Research Institutes - Capital Grants: Minor Works
BEIS,UKRI - BBSRC,14/10/2021,Research Institutes - Capital Grants: Minor Works,Pirbright,The Pirbright Institute,99058676,2124.06,Research Institutes - Capital Grants: Minor Works
BEIS,UKRI - BBSRC,14/10/2021,Research Institutes - Capital Grants: Minor Works,Pirbright,The Pirbright Institute,99058678,170554.80,Research Institutes - Capital Grants: Minor Works
BEIS,UKRI - BBSRC,14/10/2021,Research Institutes - Capital Grants: Minor Works,Pirbright,The Pirbright Institute,99058684,60000.00,Research Institutes - Capital Grants: Minor Works
BEIS,UKRI - BBSRC,14/10/2021,Research Grant Expenditure,SPF W1 EMBL EBI,EMBL (European Molecular Biology Laboratory),99058696,1262.09,Research Grant Expenditure
BEIS,UKRI - BBSRC,14/10/2021,Health & Safety (inc. Medicals & Opticians),CE - CPS,Unspecified,99058819,14.99,Health & Safety (inc. Medicals & Opticians)
BEIS,UKRI - BBSRC,15/10/2021,Nursery Deductions,Balance Sheet,UKRI - Engineering & Physical Sciences Research Council,99050423,1363.00,Nursery Deductions
BEIS,UKRI - BBSRC,15/10/2021,Training Awards - Postgraduates,FG - Accounts & Business Planning,University of Newcastle Upon Tyne,99054515,-41332.19,Training Awards - Postgraduates
BEIS,UKRI - BBSRC,15/10/2021,Training Awards - Postgraduates,FG - Accounts & Business Planning,University of Warwick,99054516,-3897.99,Training Awards - Postgraduates
BEIS,UKRI - BBSRC,15/10/2021,Training Awards - Postgraduates,FG - Accounts & Business Planning,University of Newcastle Upon Tyne,99054517,-9722.99,Training Awards - Postgraduates
BEIS,UKRI - BBSRC,15/10/2021,Training Awards - Postgraduates,FG - Accounts & Business Planning,University of York,99054518,-11114.87,Training Awards - Postgraduates
BEIS,UKRI - BBSRC,15/10/2021,Training Awards - Postgraduates,FG - Accounts & Business Planning,The University of Manchester,99054519,4796.77,Training Awards - Postgraduates
BEIS,UKRI - BBSRC,15/10/2021,Training Awards - Postgraduates,FG - Accounts & Business Planning,University of Nottingham,99054520,1337.53,Training Awards - Postgraduates
BEIS,UKRI - BBSRC,15/10/2021,Training Awards - Postgraduates,FG - Accounts & Business Planning,Imperial College London,99054521,13106.46,Training Awards - Postgraduates
BEIS,UKRI - BBSRC,15/10/2021,Training Awards - Postgraduates,FG - Accounts & Business Planning,Imperial College London,99054522,3909.05,Training Awards - Postgraduates
BEIS,UKRI - BBSRC,15/10/2021,Training Awards - Postgraduates,FG - Accounts & Business Planning,University College London,99054523,-5184.91,Training Awards - Postgraduates
BEIS,UKRI - BBSRC,15/10/2021,Training Awards - Postgraduates,FG - Accounts & Business Planning,"Royal Holloway, University of London",99054524,6425.23,Training Awards - Postgraduates
BEIS,UKRI - BBSRC,15/10/2021,Training Awards - Postgraduates,FG - Accounts & Business Planning,Imperial College London,99054525,10662.15,Training Awards - Postgraduates
BEIS,UKRI - BBSRC,15/10/2021,Training Awards - Postgraduates,FG - Accounts & Business Planning,University of York,99054526,13686.00,Training Awards - Postgraduates
BEIS,UKRI - BBSRC,15/10/2021,Training Awards - Postgraduates,FG - Accounts & Business Planning,The Francis Crick Institute,99054527,10744.45,Training Awards - Postgraduates
BEIS,UKRI - BBSRC,15/10/2021,Training Awards - Postgraduates,FG - Accounts & Business Planning,The Francis Crick Institute,99054528,8439.35,Training Awards - Postgraduates
BEIS,UKRI - BBSRC,15/10/2021,Training Awards - Postgraduates,FG - Accounts & Business Planning,University of York,99054529,792.76,Training Awards - Postgraduates
BEIS,UKRI - BBSRC,15/10/2021,Training Awards - Postgraduates,FG - Accounts & Business Planning,Wellcome Trust Sanger Institute,99054530,9784.57,Training Awards - Postgraduates
BEIS,UKRI - BBSRC,15/10/2021,Training Awards - Postgraduates,FG - Accounts & Business Planning,University College London,99054531,3979.06,Training Awards - Postgraduates
BEIS,UKRI - BBSRC,15/10/2021,Training Awards - Postgraduates,FG - Accounts & Business Planning,Queen Mary University of London,99054532,6305.50,Training Awards - Postgraduates
BEIS,UKRI - BBSRC,15/10/2021,Training Awards - Postgraduates,FG - Accounts & Business Planning,Liverpool John Moores University,99054533,134.28,Training Awards - Postgraduates
BEIS,UKRI - BBSRC,15/10/2021,Training Awards - Postgraduates,FG - Accounts & Business Planning,University of Bristol GRANT,99054534,10563.23,Training Awards - Postgraduates
BEIS,UKRI - BBSRC,15/10/2021,Training Awards - Postgraduates,FG - Accounts & Business Planning,University of Cambridge,99054535,3046.64,Training Awards - Postgraduates
BEIS,UKRI - BBSRC,15/10/2021,Training Awards - Postgraduates,FG - Accounts & Business Planning,University of Reading,99054536,-516.91,Training Awards - Postgraduates
BEIS,UKRI - BBSRC,15/10/2021,Training Awards - Postgraduates,FG - Accounts & Business Planning,University of Edinburgh,99054537,3735.03,Training Awards - Postgraduates
BEIS,UKRI - BBSRC,15/10/2021,Training Awards - Postgraduates,FG - Accounts & Business Planning,University of Reading,99054538,15290.58,Training Awards - Postgraduates
BEIS,UKRI - BBSRC,15/10/2021,Training Awards - Postgraduates,FG - Accounts & Business Planning,"Royal Holloway, University of London",99054539,6440.20,Training Awards - Postgraduates
BEIS,UKRI - BBSRC,15/10/2021,Training Awards - Postgraduates,FG - Accounts & Business Planning,University of Southampton GRANT,99054540,-1962.08,Training Awards - Postgraduates
BEIS,UKRI - BBSRC,15/10/2021,Training Awards - Postgraduates,FG - Accounts & Business Planning,King's College London,99054541,8886.50,Training Awards - Postgraduates
BEIS,UKRI - BBSRC,15/10/2021,Training Awards - Postgraduates,FG - Accounts & Business Planning,University of Cambridge,99054542,-8890.99,Training Awards - Postgraduates
BEIS,UKRI - BBSRC,15/10/2021,Training Awards - Postgraduates,FG - Accounts & Business Planning,Loughborough University,99054543,2836.19,Training Awards - Postgraduates
BEIS,UKRI - BBSRC,15/10/2021,Training Awards - Postgraduates,FG - Accounts & Business Planning,The University of Manchester,99055242,6495.59,Training Awards - Postgraduates
BEIS,UKRI - BBSRC,15/10/2021,Training Awards - Postgraduates,FG - Accounts & Business Planning,The University of Manchester,99055243,6495.59,Training Awards - Postgraduates
BEIS,UKRI - BBSRC,15/10/2021,Training Awards - Postgraduates,FG - Accounts & Business Planning,University of Liverpool,99055244,6495.59,Training Awards - Postgraduates
BEIS,UKRI - BBSRC,15/10/2021,Training Awards - Postgraduates,FG - Accounts & Business Planning,University of Sheffield,99055245,6495.59,Training Awards - Postgraduates
BEIS,UKRI - BBSRC,15/10/2021,Training Awards - Postgraduates,FG - Accounts & Business Planning,University of Sheffield,99055246,6495.59,Training Awards - Postgraduates
BEIS,UKRI - BBSRC,15/10/2021,Training Awards - Postgraduates,FG - Accounts & Business Planning,The University of Manchester,99055247,6495.59,Training Awards - Postgraduates
BEIS,UKRI - BBSRC,15/10/2021,Training Awards - Postgraduates,FG - Accounts & Business Planning,University of Aberdeen,99055248,6376.56,Training Awards - Postgraduates
BEIS,UKRI - BBSRC,15/10/2021,Training Awards - Postgraduates,FG - Accounts & Business Planning,University of Cambridge,99055249,6376.62,Training Awards - Postgraduates
BEIS,UKRI - BBSRC,15/10/2021,Training Awards - Postgraduates,FG - Accounts & Business Planning,The University of Manchester,99055250,6376.62,Training Awards - Postgraduates
BEIS,UKRI - BBSRC,15/10/2021,Training Awards - Postgraduates,FG - Accounts & Business Planning,The University of Manchester,99055250,6376.62,Training Awards - Postgraduates
BEIS,UKRI - BBSRC,15/10/2021,Training Awards - Postgraduates,FG - Accounts & Business Planning,Queen Mary University of London,99055251,6876.62,Training Awards - Postgraduates
BEIS,UKRI - BBSRC,15/10/2021,Training Awards - Postgraduates,FG - Accounts & Business Planning,King's College London,99055252,6876.62,Training Awards - Postgraduates
BEIS,UKRI - BBSRC,15/10/2021,Training Awards - Postgraduates,FG - Accounts & Business Planning,University of Southampton GRANT,99055253,6376.62,Training Awards - Postgraduates
BEIS,UKRI - BBSRC,15/10/2021,Training Awards - Postgraduates,FG - Accounts & Business Planning,National Institute For Agricultural Botany (NIAB),99055254,6376.62,Training Awards - Postgraduates
BEIS,UKRI - BBSRC,15/10/2021,Training Awards - Postgraduates,FG - Accounts & Business Planning,National Institute For Agricultural Botany (NIAB),99055255,6376.62,Training Awards - Postgraduates
BEIS,UKRI - BBSRC,15/10/2021,Training Awards - Postgraduates,FG - Accounts & Business Planning,National Institute For Agricultural Botany (NIAB),99055256,6376.62,Training Awards - Postgraduates
BEIS,UKRI - BBSRC,15/10/2021,Training Awards - Postgraduates,FG - Accounts & Business Planning,National Institute For Agricultural Botany (NIAB),99055257,6376.62,Training Awards - Postgraduates
BEIS,UKRI - BBSRC,15/10/2021,Training Awards - Postgraduates,FG - Accounts & Business Planning,National Institute For Agricultural Botany (NIAB),99055258,6376.62,Training Awards - Postgraduates
BEIS,UKRI - BBSRC,15/10/2021,Training Awards - Postgraduates,FG - Accounts & Business Planning,University of Reading,99055259,6376.62,Training Awards - Postgraduates
BEIS,UKRI - BBSRC,15/10/2021,Training Awards - Postgraduates,FG - Accounts & Business Planning,University of Reading,99055260,6376.62,Training Awards - Postgraduates
BEIS,UKRI - BBSRC,15/10/2021,Training Awards - Postgraduates,FG - Accounts & Business Planning,University of Reading,99055261,6376.62,Training Awards - Postgraduates
BEIS,UKRI - BBSRC,15/10/2021,Training Awards - Postgraduates,FG - Accounts & Business Planning,Lancaster University,99055262,6376.62,Training Awards - Postgraduates
BEIS,UKRI - BBSRC,15/10/2021,Training Awards - Postgraduates,FG - Accounts & Business Planning,Lancaster University,99055262,6376.62,Training Awards - Postgraduates
BEIS,UKRI - BBSRC,15/10/2021,Training Awards - Postgraduates,FG - Accounts & Business Planning,Lancaster University,99055262,6376.62,Training Awards - Postgraduates
BEIS,UKRI - BBSRC,15/10/2021,Training Awards - Postgraduates,FG - Accounts & Business Planning,Lancaster University,99055262,6376.62,Training Awards - Postgraduates
BEIS,UKRI - BBSRC,15/10/2021,Training Awards - Postgraduates,FG - Accounts & Business Planning,Lancaster University,99055262,6376.62,Training Awards - Postgraduates
BEIS,UKRI - BBSRC,15/10/2021,Training Awards - Postgraduates,FG - Accounts & Business Planning,Lancaster University,99055263,6376.62,Training Awards - Postgraduates
BEIS,UKRI - BBSRC,15/10/2021,Training Awards - Postgraduates,FG - Accounts & Business Planning,Lancaster University,99055263,6376.62,Training Awards - Postgraduates
BEIS,UKRI - BBSRC,15/10/2021,Training Awards - Postgraduates,FG - Accounts & Business Planning,Lancaster University,99055263,6376.62,Training Awards - Postgraduates
BEIS,UKRI - BBSRC,15/10/2021,Training Awards - Postgraduates,FG - Accounts & Business Planning,Lancaster University,99055263,6376.62,Training Awards - Postgraduates
BEIS,UKRI - BBSRC,15/10/2021,Training Awards - Postgraduates,FG - Accounts & Business Planning,Lancaster University,99055263,6376.62,Training Awards - Postgraduates
BEIS,UKRI - BBSRC,15/10/2021,Training Awards - Postgraduates,FG - Accounts & Business Planning,Lancaster University,99055264,6376.62,Training Awards - Postgraduates
BEIS,UKRI - BBSRC,15/10/2021,Training Awards - Postgraduates,FG - Accounts & Business Planning,Lancaster University,99055264,6376.62,Training Awards - Postgraduates
BEIS,UKRI - BBSRC,15/10/2021,Training Awards - Postgraduates,FG - Accounts & Business Planning,Lancaster University,99055264,6376.62,Training Awards - Postgraduates
BEIS,UKRI - BBSRC,15/10/2021,Training Awards - Postgraduates,FG - Accounts & Business Planning,Lancaster University,99055264,6376.62,Training Awards - Postgraduates
BEIS,UKRI - BBSRC,15/10/2021,Training Awards - Postgraduates,FG - Accounts & Business Planning,Lancaster University,99055264,6376.62,Training Awards - Postgraduates
BEIS,UKRI - BBSRC,15/10/2021,Training Awards - Postgraduates,FG - Accounts & Business Planning,Lancaster University,99055265,6376.62,Training Awards - Postgraduates
BEIS,UKRI - BBSRC,15/10/2021,Training Awards - Postgraduates,FG - Accounts & Business Planning,Lancaster University,99055265,6376.62,Training Awards - Postgraduates
BEIS,UKRI - BBSRC,15/10/2021,Training Awards - Postgraduates,FG - Accounts & Business Planning,Lancaster University,99055265,6376.62,Training Awards - Postgraduates
BEIS,UKRI - BBSRC,15/10/2021,Training Awards - Postgraduates,FG - Accounts & Business Planning,Lancaster University,99055265,6376.62,Training Awards - Postgraduates
BEIS,UKRI - BBSRC,15/10/2021,Training Awards - Postgraduates,FG - Accounts & Business Planning,Lancaster University,99055265,6376.62,Training Awards - Postgraduates
BEIS,UKRI - BBSRC,15/10/2021,Training Awards - Postgraduates,FG - Accounts & Business Planning,University of Oxford,99055266,6376.62,Training Awards - Postgraduates
BEIS,UKRI - BBSRC,15/10/2021,Training Awards - Postgraduates,FG - Accounts & Business Planning,University of Warwick,99055267,6376.62,Training Awards - Postgraduates
BEIS,UKRI - BBSRC,15/10/2021,Training Awards - Postgraduates,FG - Accounts & Business Planning,Queen Mary University of London,99055268,6876.62,Training Awards - Postgraduates
BEIS,UKRI - BBSRC,15/10/2021,Training Awards - Postgraduates,FG - Accounts & Business Planning,King's College London,99055269,6876.62,Training Awards - Postgraduates
BEIS,UKRI - BBSRC,15/10/2021,Training Awards - Postgraduates,FG - Accounts & Business Planning,King's College London,99055270,6876.62,Training Awards - Postgraduates
BEIS,UKRI - BBSRC,15/10/2021,Training Awards - Postgraduates,FG - Accounts & Business Planning,King's College London,99055271,6876.62,Training Awards - Postgraduates
BEIS,UKRI - BBSRC,15/10/2021,Training Awards - Postgraduates,FG - Accounts & Business Planning,Imperial College London,99055272,6876.62,Training Awards - Postgraduates
BEIS,UKRI - BBSRC,15/10/2021,Training Awards - Postgraduates,FG - Accounts & Business Planning,Imperial College London,99055273,6876.62,Training Awards - Postgraduates
BEIS,UKRI - BBSRC,15/10/2021,Training Awards - Postgraduates,FG - Accounts & Business Planning,University College London,99055274,6876.62,Training Awards - Postgraduates
BEIS,UKRI - BBSRC,15/10/2021,Training Awards - Postgraduates,FG - Accounts & Business Planning,University College London,99055275,6876.62,Training Awards - Postgraduates
BEIS,UKRI - BBSRC,15/10/2021,Training Awards - Postgraduates,FG - Accounts & Business Planning,University of Reading,99055276,2584.00,Training Awards - Postgraduates
BEIS,UKRI - BBSRC,15/10/2021,Training Awards - Postgraduates,FG - Accounts & Business Planning,University of Sheffield,99055277,6376.62,Training Awards - Postgraduates
BEIS,UKRI - BBSRC,15/10/2021,Training Awards - Postgraduates,FG - Accounts & Business Planning,University of Nottingham,99055278,6376.62,Training Awards - Postgraduates
BEIS,UKRI - BBSRC,15/10/2021,Training Awards - Postgraduates,FG - Accounts & Business Planning,University of Glasgow,99055279,6376.62,Training Awards - Postgraduates
BEIS,UKRI - BBSRC,15/10/2021,Training Awards - Postgraduates,FG - Accounts & Business Planning,University of Leeds,99055280,6376.62,Training Awards - Postgraduates
BEIS,UKRI - BBSRC,15/10/2021,Training Awards - Postgraduates,FG - Accounts & Business Planning,University of Cambridge,99055281,6376.62,Training Awards - Postgraduates
BEIS,UKRI - BBSRC,15/10/2021,Training Awards - Postgraduates,FG - Accounts & Business Planning,University of Cambridge,99055282,6376.62,Training Awards - Postgraduates
BEIS,UKRI - BBSRC,15/10/2021,Training Awards - Postgraduates,FG - Accounts & Business Planning,University of Cambridge,99055283,6376.62,Training Awards - Postgraduates
BEIS,UKRI - BBSRC,15/10/2021,Training Awards - Postgraduates,FG - Accounts & Business Planning,University of Cambridge,99055284,6376.62,Training Awards - Postgraduates
BEIS,UKRI - BBSRC,15/10/2021,Training Awards - Postgraduates,FG - Accounts & Business Planning,The University of Manchester,99055285,6376.62,Training Awards - Postgraduates
BEIS,UKRI - BBSRC,15/10/2021,Training Awards - Postgraduates,FG - Accounts & Business Planning,University of Exeter,99055286,6376.62,Training Awards - Postgraduates
BEIS,UKRI - BBSRC,15/10/2021,Training Awards - Postgraduates,FG - Accounts & Business Planning,Keele University,99055287,6376.62,Training Awards - Postgraduates
BEIS,UKRI - BBSRC,15/10/2021,Training Awards - Postgraduates,FG - Accounts & Business Planning,University of Edinburgh,99055288,6376.62,Training Awards - Postgraduates
BEIS,UKRI - BBSRC,15/10/2021,Training Awards - Postgraduates,FG - Accounts & Business Planning,Wellcome Trust Sanger Institute,99055289,6376.62,Training Awards - Postgraduates
BEIS,UKRI - BBSRC,15/10/2021,Training Awards - Postgraduates,FG - Accounts & Business Planning,University of Glasgow,99055290,6376.62,Training Awards - Postgraduates
BEIS,UKRI - BBSRC,15/10/2021,Training Awards - Postgraduates,FG - Accounts & Business Planning,University of Glasgow,99055290,6376.62,Training Awards - Postgraduates
BEIS,UKRI - BBSRC,15/10/2021,Training Awards - Postgraduates,FG - Accounts & Business Planning,University of Glasgow,99055290,6376.62,Training Awards - Postgraduates
BEIS,UKRI - BBSRC,15/10/2021,Training Awards - Postgraduates,FG - Accounts & Business Planning,University of Sheffield,99055291,6376.62,Training Awards - Postgraduates
BEIS,UKRI - BBSRC,15/10/2021,Training Awards - Postgraduates,FG - Accounts & Business Planning,Queen's University Belfast GRANT,99055292,6376.62,Training Awards - Postgraduates
BEIS,UKRI - BBSRC,15/10/2021,Training Awards - Postgraduates,FG - Accounts & Business Planning,Queen's University Belfast GRANT,99055292,6376.62,Training Awards - Postgraduates
BEIS,UKRI - BBSRC,15/10/2021,Training Awards - Postgraduates,FG - Accounts & Business Planning,Queen's University Belfast GRANT,99055292,6376.62,Training Awards - Postgraduates
BEIS,UKRI - BBSRC,15/10/2021,Training Awards - Postgraduates,FG - Accounts & Business Planning,Queen's University Belfast GRANT,99055292,6376.62,Training Awards - Postgraduates
BEIS,UKRI - BBSRC,15/10/2021,Training Awards - Postgraduates,FG - Accounts & Business Planning,University of Birmingham GRANT,99055293,6376.62,Training Awards - Postgraduates
BEIS,UKRI - BBSRC,15/10/2021,Training Awards - Postgraduates,FG - Accounts & Business Planning,The University of Manchester,99055294,6376.62,Training Awards - Postgraduates
BEIS,UKRI - BBSRC,15/10/2021,Training Awards - Postgraduates,FG - Accounts & Business Planning,University of Exeter,99055295,6376.62,Training Awards - Postgraduates
BEIS,UKRI - BBSRC,15/10/2021,Training Awards - Postgraduates,FG - Accounts & Business Planning,University of Exeter,99055296,6376.62,Training Awards - Postgraduates
BEIS,UKRI - BBSRC,15/10/2021,Training Awards - Postgraduates,FG - Accounts & Business Planning,University of Cambridge,99055297,6376.62,Training Awards - Postgraduates
BEIS,UKRI - BBSRC,15/10/2021,Training Awards - Postgraduates,FG - Accounts & Business Planning,University of Cambridge,99055298,6376.62,Training Awards - Postgraduates
BEIS,UKRI - BBSRC,15/10/2021,Training Awards - Postgraduates,FG - Accounts & Business Planning,Babraham Institute,99055299,6376.62,Training Awards - Postgraduates
BEIS,UKRI - BBSRC,15/10/2021,Training Awards - Postgraduates,FG - Accounts & Business Planning,University of Nottingham,99055300,6376.62,Training Awards - Postgraduates
BEIS,UKRI - BBSRC,15/10/2021,Training Awards - Postgraduates,FG - Accounts & Business Planning,University of Huddersfield,99055301,6376.62,Training Awards - Postgraduates
BEIS,UKRI - BBSRC,15/10/2021,Training Awards - Postgraduates,FG - Accounts & Business Planning,University of Leeds,99055302,6376.62,Training Awards - Postgraduates
BEIS,UKRI - BBSRC,15/10/2021,Training Awards - Postgraduates,FG - Accounts & Business Planning,University of Leeds,99055302,6376.62,Training Awards - Postgraduates
BEIS,UKRI - BBSRC,15/10/2021,Training Awards - Postgraduates,FG - Accounts & Business Planning,University of Leeds,99055302,6376.62,Training Awards - Postgraduates
BEIS,UKRI - BBSRC,15/10/2021,Training Awards - Postgraduates,FG - Accounts & Business Planning,University of Glasgow,99055303,6376.62,Training Awards - Postgraduates
BEIS,UKRI - BBSRC,15/10/2021,Training Awards - Postgraduates,FG - Accounts & Business Planning,University of Strathclyde,99055304,6376.62,Training Awards - Postgraduates
BEIS,UKRI - BBSRC,15/10/2021,Training Awards - Postgraduates,FG - Accounts & Business Planning,University of Strathclyde,99055304,6376.62,Training Awards - Postgraduates
BEIS,UKRI - BBSRC,15/10/2021,Training Awards - Postgraduates,FG - Accounts & Business Planning,University of Strathclyde,99055304,6376.62,Training Awards - Postgraduates
BEIS,UKRI - BBSRC,15/10/2021,Training Awards - Postgraduates,FG - Accounts & Business Planning,University of Strathclyde,99055304,6376.62,Training Awards - Postgraduates
BEIS,UKRI - BBSRC,15/10/2021,Training Awards - Postgraduates,FG - Accounts & Business Planning,University of Strathclyde,99055304,6376.62,Training Awards - Postgraduates
BEIS,UKRI - BBSRC,15/10/2021,Training Awards - Postgraduates,FG - Accounts & Business Planning,University of Sheffield,99055305,6001.53,Training Awards - Postgraduates
BEIS,UKRI - BBSRC,15/10/2021,Training Awards - Postgraduates,FG - Accounts & Business Planning,University of York,99055306,6376.62,Training Awards - Postgraduates
BEIS,UKRI - BBSRC,15/10/2021,Training Awards - Postgraduates,FG - Accounts & Business Planning,The University of Manchester,99055307,6267.44,Training Awards - Postgraduates
BEIS,UKRI - BBSRC,15/10/2021,Training Awards - Postgraduates,FG - Accounts & Business Planning,The University of Manchester,99055308,6267.44,Training Awards - Postgraduates
BEIS,UKRI - BBSRC,15/10/2021,Training Awards - Postgraduates,FG - Accounts & Business Planning,The University of Manchester,99055309,6267.44,Training Awards - Postgraduates
BEIS,UKRI - BBSRC,15/10/2021,Training Awards - Postgraduates,FG - Accounts & Business Planning,University of Nottingham,99055310,6267.44,Training Awards - Postgraduates
BEIS,UKRI - BBSRC,15/10/2021,Training Awards - Postgraduates,FG - Accounts & Business Planning,University of Warwick,99055311,6267.44,Training Awards - Postgraduates
BEIS,UKRI - BBSRC,15/10/2021,Training Awards - Postgraduates,FG - Accounts & Business Planning,University of Nottingham,99055312,6267.44,Training Awards - Postgraduates
BEIS,UKRI - BBSRC,15/10/2021,Training Awards - Postgraduates,FG - Accounts & Business Planning,University of Durham,99055313,6267.44,Training Awards - Postgraduates
BEIS,UKRI - BBSRC,15/10/2021,Training Awards - Postgraduates,FG - Accounts & Business Planning,University of Cambridge,99055314,6267.44,Training Awards - Postgraduates
BEIS,UKRI - BBSRC,15/10/2021,Training Awards - Postgraduates,FG - Accounts & Business Planning,National Institute For Agricultural Botany (NIAB),99055315,6267.44,Training Awards - Postgraduates
BEIS,UKRI - BBSRC,15/10/2021,Training Awards - Postgraduates,FG - Accounts & Business Planning,National Institute For Agricultural Botany (NIAB),99055316,6267.44,Training Awards - Postgraduates
BEIS,UKRI - BBSRC,15/10/2021,Training Awards - Postgraduates,FG - Accounts & Business Planning,University of Exeter,99055317,5013.95,Training Awards - Postgraduates
BEIS,UKRI - BBSRC,15/10/2021,Training Awards - Postgraduates,FG - Accounts & Business Planning,University of Reading,99055318,6267.44,Training Awards - Postgraduates
BEIS,UKRI - BBSRC,15/10/2021,Training Awards - Postgraduates,FG - Accounts & Business Planning,National Institute For Agricultural Botany (NIAB),99055319,6267.44,Training Awards - Postgraduates
BEIS,UKRI - BBSRC,15/10/2021,Training Awards - Postgraduates,FG - Accounts & Business Planning,National Institute For Agricultural Botany (NIAB),99055320,6267.44,Training Awards - Postgraduates
BEIS,UKRI - BBSRC,15/10/2021,Training Awards - Postgraduates,FG - Accounts & Business Planning,National Institute For Agricultural Botany (NIAB),99055321,6267.44,Training Awards - Postgraduates
BEIS,UKRI - BBSRC,15/10/2021,Training Awards - Postgraduates,FG - Accounts & Business Planning,National Institute For Agricultural Botany (NIAB),99055322,6267.44,Training Awards - Postgraduates
BEIS,UKRI - BBSRC,15/10/2021,Training Awards - Postgraduates,FG - Accounts & Business Planning,Quadram Institute Bioscience,99055323,6267.44,Training Awards - Postgraduates
BEIS,UKRI - BBSRC,15/10/2021,Training Awards - Postgraduates,FG - Accounts & Business Planning,University College London,99055324,6344.49,Training Awards - Postgraduates
BEIS,UKRI - BBSRC,15/10/2021,Training Awards - Postgraduates,FG - Accounts & Business Planning,Lancaster University,99055325,6267.44,Training Awards - Postgraduates
BEIS,UKRI - BBSRC,15/10/2021,Training Awards - Postgraduates,FG - Accounts & Business Planning,University of Nottingham,99055326,6267.44,Training Awards - Postgraduates
BEIS,UKRI - BBSRC,15/10/2021,Training Awards - Postgraduates,FG - Accounts & Business Planning,University of Liverpool,99055327,6267.44,Training Awards - Postgraduates
BEIS,UKRI - BBSRC,15/10/2021,Training Awards - Postgraduates,FG - Accounts & Business Planning,University of Strathclyde,99055328,6267.44,Training Awards - Postgraduates
BEIS,UKRI - BBSRC,15/10/2021,Training Awards - Postgraduates,FG - Accounts & Business Planning,"Royal Holloway, University of London",99055329,6767.44,Training Awards - Postgraduates
BEIS,UKRI - BBSRC,15/10/2021,Training Awards - Postgraduates,FG - Accounts & Business Planning,Lancaster University,99055330,6267.44,Training Awards - Postgraduates
BEIS,UKRI - BBSRC,15/10/2021,Training Awards - Postgraduates,FG - Accounts & Business Planning,University of Reading,99055331,6267.44,Training Awards - Postgraduates
BEIS,UKRI - BBSRC,15/10/2021,Training Awards - Postgraduates,FG - Accounts & Business Planning,Lancaster University,99055332,6267.44,Training Awards - Postgraduates
BEIS,UKRI - BBSRC,15/10/2021,Training Awards - Postgraduates,FG - Accounts & Business Planning,Lancaster University,99055333,6267.44,Training Awards - Postgraduates
BEIS,UKRI - BBSRC,15/10/2021,Training Awards - Postgraduates,FG - Accounts & Business Planning,Lancaster University,99055334,6267.44,Training Awards - Postgraduates
BEIS,UKRI - BBSRC,15/10/2021,Training Awards - Postgraduates,FG - Accounts & Business Planning,University of Liverpool,99055335,6267.44,Training Awards - Postgraduates
BEIS,UKRI - BBSRC,15/10/2021,Training Awards - Postgraduates,FG - Accounts & Business Planning,Queen Mary University of London,99055336,6767.44,Training Awards - Postgraduates
BEIS,UKRI - BBSRC,15/10/2021,Training Awards - Postgraduates,FG - Accounts & Business Planning,King's College London,99055337,6767.44,Training Awards - Postgraduates
BEIS,UKRI - BBSRC,15/10/2021,Training Awards - Postgraduates,FG - Accounts & Business Planning,University of Birmingham GRANT,99055338,6267.44,Training Awards - Postgraduates
BEIS,UKRI - BBSRC,15/10/2021,Training Awards - Postgraduates,FG - Accounts & Business Planning,University of Strathclyde,99055339,6267.44,Training Awards - Postgraduates
BEIS,UKRI - BBSRC,15/10/2021,Training Awards - Postgraduates,FG - Accounts & Business Planning,University of Strathclyde,99055340,6267.44,Training Awards - Postgraduates
BEIS,UKRI - BBSRC,15/10/2021,Training Awards - Postgraduates,FG - Accounts & Business Planning,University of York,99055341,6267.44,Training Awards - Postgraduates
BEIS,UKRI - BBSRC,15/10/2021,Training Awards - Postgraduates,FG - Accounts & Business Planning,University of Newcastle Upon Tyne,99055342,6267.44,Training Awards - Postgraduates
BEIS,UKRI - BBSRC,15/10/2021,Training Awards - Postgraduates,FG - Accounts & Business Planning,University of Edinburgh,99055343,6267.44,Training Awards - Postgraduates
BEIS,UKRI - BBSRC,15/10/2021,Training Awards - Postgraduates,FG - Accounts & Business Planning,Lancaster University,99055344,6267.44,Training Awards - Postgraduates
BEIS,UKRI - BBSRC,15/10/2021,Training Awards - Postgraduates,FG - Accounts & Business Planning,University of Newcastle Upon Tyne,99055345,6267.44,Training Awards - Postgraduates
BEIS,UKRI - BBSRC,15/10/2021,Training Awards - Postgraduates,FG - Accounts & Business Planning,The University of Manchester,99055346,6267.44,Training Awards - Postgraduates
BEIS,UKRI - BBSRC,15/10/2021,Training Awards - Postgraduates,FG - Accounts & Business Planning,The Scottish Association for Marine Science (SAMS Group),99055347,6267.44,Training Awards - Postgraduates
BEIS,UKRI - BBSRC,15/10/2021,Training Awards - Postgraduates,FG - Accounts & Business Planning,University of Edinburgh,99055348,6267.44,Training Awards - Postgraduates
BEIS,UKRI - BBSRC,15/10/2021,Training Awards - Postgraduates,FG - Accounts & Business Planning,University of Edinburgh,99055349,6267.44,Training Awards - Postgraduates
BEIS,UKRI - BBSRC,15/10/2021,Training Awards - Postgraduates,FG - Accounts & Business Planning,The University of Manchester,99055350,6267.44,Training Awards - Postgraduates
BEIS,UKRI - BBSRC,15/10/2021,Training Awards - Postgraduates,FG - Accounts & Business Planning,University of Sheffield,99055351,6267.44,Training Awards - Postgraduates
BEIS,UKRI - BBSRC,15/10/2021,Training Awards - Postgraduates,FG - Accounts & Business Planning,University of Sheffield,99055352,6267.44,Training Awards - Postgraduates
BEIS,UKRI - BBSRC,15/10/2021,Training Awards - Postgraduates,FG - Accounts & Business Planning,University of Cambridge,99055353,6267.44,Training Awards - Postgraduates
BEIS,UKRI - BBSRC,15/10/2021,Training Awards - Postgraduates,FG - Accounts & Business Planning,King's College London,99055354,6767.44,Training Awards - Postgraduates
BEIS,UKRI - BBSRC,15/10/2021,Training Awards - Postgraduates,FG - Accounts & Business Planning,Sheffield Hallam University,99055355,6267.44,Training Awards - Postgraduates
BEIS,UKRI - BBSRC,15/10/2021,Training Awards - Postgraduates,FG - Accounts & Business Planning,University of Leeds,99055356,6267.44,Training Awards - Postgraduates
BEIS,UKRI - BBSRC,15/10/2021,Training Awards - Postgraduates,FG - Accounts & Business Planning,Babraham Institute,99055357,6267.44,Training Awards - Postgraduates
BEIS,UKRI - BBSRC,15/10/2021,Training Awards - Postgraduates,FG - Accounts & Business Planning,The University of Manchester,99055358,5571.05,Training Awards - Postgraduates
BEIS,UKRI - BBSRC,15/10/2021,Training Awards - Postgraduates,FG - Accounts & Business Planning,The University of Manchester,99055359,6267.44,Training Awards - Postgraduates
BEIS,UKRI - BBSRC,15/10/2021,Training Awards - Postgraduates,FG - Accounts & Business Planning,University of Nottingham,99055360,6267.44,Training Awards - Postgraduates
BEIS,UKRI - BBSRC,15/10/2021,Training Awards - Postgraduates,FG - Accounts & Business Planning,University of Nottingham,99055361,6267.44,Training Awards - Postgraduates
BEIS,UKRI - BBSRC,15/10/2021,Training Awards - Postgraduates,FG - Accounts & Business Planning,University of Nottingham,99055362,6267.44,Training Awards - Postgraduates
BEIS,UKRI - BBSRC,15/10/2021,Training Awards - Postgraduates,FG - Accounts & Business Planning,Cardiff University,99055363,6267.44,Training Awards - Postgraduates
BEIS,UKRI - BBSRC,15/10/2021,Training Awards - Postgraduates,FG - Accounts & Business Planning,Queen's University Belfast GRANT,99055364,6267.44,Training Awards - Postgraduates
BEIS,UKRI - BBSRC,15/10/2021,Training Awards - Postgraduates,FG - Accounts & Business Planning,University of Cambridge,99055365,6267.44,Training Awards - Postgraduates
BEIS,UKRI - BBSRC,15/10/2021,Training Awards - Postgraduates,FG - Accounts & Business Planning,University of Glasgow,99055366,6267.44,Training Awards - Postgraduates
BEIS,UKRI - BBSRC,15/10/2021,Training Awards - Postgraduates,FG - Accounts & Business Planning,University of Glasgow,99055367,6267.44,Training Awards - Postgraduates
BEIS,UKRI - BBSRC,15/10/2021,Training Awards - Postgraduates,FG - Accounts & Business Planning,University of Glasgow,99055368,6267.44,Training Awards - Postgraduates
BEIS,UKRI - BBSRC,15/10/2021,Training Awards - Postgraduates,FG - Accounts & Business Planning,University College London,99055369,6767.44,Training Awards - Postgraduates
BEIS,UKRI - BBSRC,15/10/2021,Training Awards - Postgraduates,FG - Accounts & Business Planning,European Bioinformatics Institute,99055370,6267.44,Training Awards - Postgraduates
BEIS,UKRI - BBSRC,15/10/2021,Training Awards - Postgraduates,FG - Accounts & Business Planning,University of Newcastle Upon Tyne,99055371,6267.44,Training Awards - Postgraduates
BEIS,UKRI - BBSRC,15/10/2021,Training Awards - Postgraduates,FG - Accounts & Business Planning,University of Newcastle Upon Tyne,99055372,6267.44,Training Awards - Postgraduates
BEIS,UKRI - BBSRC,15/10/2021,Training Awards - Postgraduates,FG - Accounts & Business Planning,University of Newcastle Upon Tyne,99055373,6267.44,Training Awards - Postgraduates
BEIS,UKRI - BBSRC,15/10/2021,Training Awards - Postgraduates,FG - Accounts & Business Planning,University of Bristol GRANT,99055374,6267.44,Training Awards - Postgraduates
BEIS,UKRI - BBSRC,15/10/2021,Training Awards - Postgraduates,FG - Accounts & Business Planning,University of Exeter,99055375,6267.44,Training Awards - Postgraduates
BEIS,UKRI - BBSRC,15/10/2021,Training Awards - Postgraduates,FG - Accounts & Business Planning,University of Birmingham GRANT,99055376,6267.44,Training Awards - Postgraduates
BEIS,UKRI - BBSRC,15/10/2021,Training Awards - Postgraduates,FG - Accounts & Business Planning,University of Birmingham GRANT,99055377,6267.44,Training Awards - Postgraduates
BEIS,UKRI - BBSRC,15/10/2021,Training Awards - Postgraduates,FG - Accounts & Business Planning,University of York,99055378,6267.44,Training Awards - Postgraduates
BEIS,UKRI - BBSRC,15/10/2021,Training Awards - Postgraduates,FG - Accounts & Business Planning,University of York,99055379,6267.44,Training Awards - Postgraduates
BEIS,UKRI - BBSRC,15/10/2021,Training Awards - Postgraduates,FG - Accounts & Business Planning,Queen Mary University of London,99055380,6767.44,Training Awards - Postgraduates
BEIS,UKRI - BBSRC,15/10/2021,Training Awards - Postgraduates,FG - Accounts & Business Planning,University of Edinburgh,99055381,6267.44,Training Awards - Postgraduates
BEIS,UKRI - BBSRC,15/10/2021,Training Awards - Postgraduates,FG - Accounts & Business Planning,University of Reading,99055382,6267.44,Training Awards - Postgraduates
BEIS,UKRI - BBSRC,15/10/2021,Training Awards - Postgraduates,FG - Accounts & Business Planning,University of Leeds,99055383,6267.44,Training Awards - Postgraduates
BEIS,UKRI - BBSRC,15/10/2021,Training Awards - Postgraduates,FG - Accounts & Business Planning,University of Durham,99055384,6267.44,Training Awards - Postgraduates
BEIS,UKRI - BBSRC,15/10/2021,Training Awards - Postgraduates,FG - Accounts & Business Planning,Keele University,99055385,6267.44,Training Awards - Postgraduates
BEIS,UKRI - BBSRC,15/10/2021,Training Awards - Postgraduates,FG - Accounts & Business Planning,King's College London,99055386,6767.44,Training Awards - Postgraduates
BEIS,UKRI - BBSRC,15/10/2021,Training Awards - Postgraduates,FG - Accounts & Business Planning,King's College London,99055387,6767.44,Training Awards - Postgraduates
BEIS,UKRI - BBSRC,15/10/2021,Training Awards - Postgraduates,FG - Accounts & Business Planning,Imperial College London,99055388,7222.95,Training Awards - Postgraduates
BEIS,UKRI - BBSRC,15/10/2021,Training Awards - Postgraduates,FG - Accounts & Business Planning,Imperial College London,99055389,6767.44,Training Awards - Postgraduates
BEIS,UKRI - BBSRC,15/10/2021,Training Awards - Postgraduates,FG - Accounts & Business Planning,Imperial College London,99055390,6767.44,Training Awards - Postgraduates
BEIS,UKRI - BBSRC,15/10/2021,Training Awards - Postgraduates,FG - Accounts & Business Planning,University of Liverpool,99055391,6267.44,Training Awards - Postgraduates
BEIS,UKRI - BBSRC,15/10/2021,Training Awards - Postgraduates,FG - Accounts & Business Planning,University of Cambridge,99055392,6267.44,Training Awards - Postgraduates
BEIS,UKRI - BBSRC,15/10/2021,Training Awards - Postgraduates,FG - Accounts & Business Planning,University of Sheffield,99055393,5571.05,Training Awards - Postgraduates
BEIS,UKRI - BBSRC,15/10/2021,Training Awards - Postgraduates,FG - Accounts & Business Planning,University of Southampton GRANT,99055394,6267.44,Training Awards - Postgraduates
BEIS,UKRI - BBSRC,15/10/2021,Training Awards - Postgraduates,FG - Accounts & Business Planning,University of Southampton GRANT,99055395,6267.44,Training Awards - Postgraduates
BEIS,UKRI - BBSRC,15/10/2021,Training Awards - Postgraduates,FG - Accounts & Business Planning,University of Hertfordshire,99055396,6267.44,Training Awards - Postgraduates
BEIS,UKRI - BBSRC,15/10/2021,Training Awards - Postgraduates,FG - Accounts & Business Planning,University of Dundee,99055397,6267.44,Training Awards - Postgraduates
BEIS,UKRI - BBSRC,15/10/2021,Training Awards - Postgraduates,FG - Accounts & Business Planning,University of Edinburgh,99055398,10057.50,Training Awards - Postgraduates
BEIS,UKRI - BBSRC,15/10/2021,Training Awards - Postgraduates,FG - Accounts & Business Planning,University of Oxford,99055399,332202.00,Training Awards - Postgraduates
BEIS,UKRI - BBSRC,15/10/2021,Training Awards - Postgraduates,FG - Accounts & Business Planning,University of Reading,99055400,287482.50,Training Awards - Postgraduates
BEIS,UKRI - BBSRC,15/10/2021,Training Awards - Postgraduates,FG - Accounts & Business Planning,University of Southampton GRANT,99055401,255540.00,Training Awards - Postgraduates
BEIS,UKRI - BBSRC,15/10/2021,Training Awards - Postgraduates,FG - Accounts & Business Planning,University of Edinburgh,99055402,102258.00,Training Awards - Postgraduates
BEIS,UKRI - BBSRC,15/10/2021,Training Awards - Postgraduates,FG - Accounts & Business Planning,University of Bristol GRANT,99055403,325813.50,Training Awards - Postgraduates
BEIS,UKRI - BBSRC,15/10/2021,Training Awards - Postgraduates,FG - Accounts & Business Planning,The University of Manchester,99055404,325813.50,Training Awards - Postgraduates
BEIS,UKRI - BBSRC,15/10/2021,Training Awards - Postgraduates,FG - Accounts & Business Planning,John Innes Centre,99055405,325813.50,Training Awards - Postgraduates
BEIS,UKRI - BBSRC,15/10/2021,Training Awards - Postgraduates,FG - Accounts & Business Planning,University College London,99055406,564857.00,Training Awards - Postgraduates
BEIS,UKRI - BBSRC,15/10/2021,Training Awards - Postgraduates,FG - Accounts & Business Planning,University of Liverpool,99055407,198043.50,Training Awards - Postgraduates
BEIS,UKRI - BBSRC,15/10/2021,Training Awards - Postgraduates,FG - Accounts & Business Planning,University of Nottingham,99055408,370533.00,Training Awards - Postgraduates
BEIS,UKRI - BBSRC,15/10/2021,Training Awards - Postgraduates,FG - Accounts & Business Planning,University of Warwick,99055409,460174.50,Training Awards - Postgraduates
BEIS,UKRI - BBSRC,15/10/2021,Training Awards - Postgraduates,FG - Accounts & Business Planning,University of Leeds,99055410,255540.00,Training Awards - Postgraduates
BEIS,UKRI - BBSRC,15/10/2021,Training Awards - Postgraduates,FG - Accounts & Business Planning,University of Edinburgh,99055411,8252.85,Training Awards - Postgraduates
BEIS,UKRI - BBSRC,15/10/2021,Training Awards - Postgraduates,FG - Accounts & Business Planning,National Institute For Agricultural Botany (NIAB),99055412,6189.63,Training Awards - Postgraduates
BEIS,UKRI - BBSRC,15/10/2021,Training Awards - Postgraduates,FG - Accounts & Business Planning,University of Cambridge,99055413,6189.63,Training Awards - Postgraduates
BEIS,UKRI - BBSRC,15/10/2021,Training Awards - Postgraduates,FG - Accounts & Business Planning,University of Oxford,99055414,6189.63,Training Awards - Postgraduates
BEIS,UKRI - BBSRC,15/10/2021,Training Awards - Postgraduates,FG - Accounts & Business Planning,University of Oxford,99055415,6189.63,Training Awards - Postgraduates
BEIS,UKRI - BBSRC,15/10/2021,Training Awards - Postgraduates,FG - Accounts & Business Planning,University of Oxford,99055416,6189.63,Training Awards - Postgraduates
BEIS,UKRI - BBSRC,15/10/2021,Training Awards - Postgraduates,FG - Accounts & Business Planning,University of Oxford,99055417,6189.63,Training Awards - Postgraduates
BEIS,UKRI - BBSRC,15/10/2021,Training Awards - Postgraduates,FG - Accounts & Business Planning,University of Cambridge,99055418,6189.63,Training Awards - Postgraduates
BEIS,UKRI - BBSRC,15/10/2021,Training Awards - Postgraduates,FG - Accounts & Business Planning,University of Cambridge,99055419,6189.63,Training Awards - Postgraduates
BEIS,UKRI - BBSRC,15/10/2021,Training Awards - Postgraduates,FG - Accounts & Business Planning,King's College London,99055420,8919.51,Training Awards - Postgraduates
BEIS,UKRI - BBSRC,15/10/2021,Training Awards - Postgraduates,FG - Accounts & Business Planning,Queen Mary University of London,99055421,6243.66,Training Awards - Postgraduates
BEIS,UKRI - BBSRC,15/10/2021,Training Awards - Postgraduates,FG - Accounts & Business Planning,London School of Hygiene & Tropical Medicine,99055422,6689.63,Training Awards - Postgraduates
BEIS,UKRI - BBSRC,15/10/2021,Training Awards - Postgraduates,FG - Accounts & Business Planning,University College London,99055423,6689.63,Training Awards - Postgraduates
BEIS,UKRI - BBSRC,15/10/2021,Training Awards - Postgraduates,FG - Accounts & Business Planning,University College London,99055424,6689.63,Training Awards - Postgraduates
BEIS,UKRI - BBSRC,15/10/2021,Training Awards - Postgraduates,FG - Accounts & Business Planning,King's College London,99055425,6689.63,Training Awards - Postgraduates
BEIS,UKRI - BBSRC,15/10/2021,Training Awards - Postgraduates,FG - Accounts & Business Planning,University of Leeds,99055426,6189.63,Training Awards - Postgraduates
BEIS,UKRI - BBSRC,15/10/2021,Training Awards - Postgraduates,FG - Accounts & Business Planning,University of Bath,99055427,6189.63,Training Awards - Postgraduates
BEIS,UKRI - BBSRC,15/10/2021,Training Awards - Postgraduates,FG - Accounts & Business Planning,University of Exeter,99055428,6189.63,Training Awards - Postgraduates
BEIS,UKRI - BBSRC,15/10/2021,Training Awards - Postgraduates,FG - Accounts & Business Planning,National Institute For Agricultural Botany (NIAB),99055429,6189.63,Training Awards - Postgraduates
BEIS,UKRI - BBSRC,15/10/2021,Training Awards - Postgraduates,FG - Accounts & Business Planning,Earlham Institute,99055430,6189.63,Training Awards - Postgraduates
BEIS,UKRI - BBSRC,15/10/2021,Training Awards - Postgraduates,FG - Accounts & Business Planning,Earlham Institute,99055431,6189.63,Training Awards - Postgraduates
BEIS,UKRI - BBSRC,15/10/2021,Training Awards - Postgraduates,FG - Accounts & Business Planning,John Innes Centre,99055432,6189.63,Training Awards - Postgraduates
BEIS,UKRI - BBSRC,15/10/2021,Training Awards - Postgraduates,FG - Accounts & Business Planning,University of York,99055433,6189.63,Training Awards - Postgraduates
BEIS,UKRI - BBSRC,15/10/2021,Training Awards - Postgraduates,FG - Accounts & Business Planning,University of East Anglia,99055434,6189.63,Training Awards - Postgraduates
BEIS,UKRI - BBSRC,15/10/2021,Training Awards - Postgraduates,FG - Accounts & Business Planning,University of Edinburgh,99055435,6189.63,Training Awards - Postgraduates
BEIS,UKRI - BBSRC,15/10/2021,Training Awards - Postgraduates,FG - Accounts & Business Planning,University of Edinburgh,99055436,6189.63,Training Awards - Postgraduates
BEIS,UKRI - BBSRC,15/10/2021,Training Awards - Postgraduates,FG - Accounts & Business Planning,University of Edinburgh,99055437,6189.63,Training Awards - Postgraduates
BEIS,UKRI - BBSRC,15/10/2021,Training Awards - Postgraduates,FG - Accounts & Business Planning,University of Nottingham,99055438,6189.63,Training Awards - Postgraduates
BEIS,UKRI - BBSRC,15/10/2021,Training Awards - Postgraduates,FG - Accounts & Business Planning,University of Aberdeen,99055439,6189.63,Training Awards - Postgraduates
BEIS,UKRI - BBSRC,15/10/2021,Training Awards - Postgraduates,FG - Accounts & Business Planning,University of Aberdeen,99055440,6189.63,Training Awards - Postgraduates
BEIS,UKRI - BBSRC,15/10/2021,Training Awards - Postgraduates,FG - Accounts & Business Planning,University of Warwick,99055441,6189.63,Training Awards - Postgraduates
BEIS,UKRI - BBSRC,15/10/2021,Training Awards - Postgraduates,FG - Accounts & Business Planning,University of Reading,99055442,6189.63,Training Awards - Postgraduates
BEIS,UKRI - BBSRC,15/10/2021,Training Awards - Postgraduates,FG - Accounts & Business Planning,University of Sheffield,99055443,6189.63,Training Awards - Postgraduates
BEIS,UKRI - BBSRC,15/10/2021,Training Awards - Postgraduates,FG - Accounts & Business Planning,Imperial College London,99055444,6689.63,Training Awards - Postgraduates
BEIS,UKRI - BBSRC,15/10/2021,Training Awards - Postgraduates,FG - Accounts & Business Planning,University of Bristol GRANT,99055445,6189.63,Training Awards - Postgraduates
BEIS,UKRI - BBSRC,15/10/2021,Training Awards - Postgraduates,FG - Accounts & Business Planning,University of Birmingham GRANT,99055446,6189.63,Training Awards - Postgraduates
BEIS,UKRI - BBSRC,15/10/2021,Training Awards - Postgraduates,FG - Accounts & Business Planning,University of Warwick,99055447,6189.63,Training Awards - Postgraduates
BEIS,UKRI - BBSRC,15/10/2021,Training Awards - Postgraduates,FG - Accounts & Business Planning,University of Glasgow,99055448,6189.63,Training Awards - Postgraduates
BEIS,UKRI - BBSRC,15/10/2021,Training Awards - Postgraduates,FG - Accounts & Business Planning,University of Nottingham,99055449,6189.63,Training Awards - Postgraduates
BEIS,UKRI - BBSRC,15/10/2021,Training Awards - Postgraduates,FG - Accounts & Business Planning,University of Cambridge,99055450,5501.89,Training Awards - Postgraduates
BEIS,UKRI - BBSRC,15/10/2021,Training Awards - Postgraduates,FG - Accounts & Business Planning,University of Leeds,99055451,6189.63,Training Awards - Postgraduates
BEIS,UKRI - BBSRC,15/10/2021,Training Awards - Postgraduates,FG - Accounts & Business Planning,The University of Manchester,99055452,3808.99,Training Awards - Postgraduates
BEIS,UKRI - BBSRC,15/10/2021,Training Awards - Postgraduates,FG - Accounts & Business Planning,Lancaster University,99055453,6189.63,Training Awards - Postgraduates
BEIS,UKRI - BBSRC,15/10/2021,Training Awards - Postgraduates,FG - Accounts & Business Planning,University of Reading,99055454,6189.63,Training Awards - Postgraduates
BEIS,UKRI - BBSRC,15/10/2021,Training Awards - Postgraduates,FG - Accounts & Business Planning,National Institute For Agricultural Botany (NIAB),99055455,6189.63,Training Awards - Postgraduates
BEIS,UKRI - BBSRC,15/10/2021,Training Awards - Postgraduates,FG - Accounts & Business Planning,National Institute For Agricultural Botany (NIAB),99055456,6189.63,Training Awards - Postgraduates
BEIS,UKRI - BBSRC,15/10/2021,Training Awards - Postgraduates,FG - Accounts & Business Planning,Sheffield Hallam University,99055457,6189.63,Training Awards - Postgraduates
BEIS,UKRI - BBSRC,15/10/2021,Training Awards - Postgraduates,FG - Accounts & Business Planning,National Institute For Agricultural Botany (NIAB),99055458,6189.63,Training Awards - Postgraduates
BEIS,UKRI - BBSRC,15/10/2021,Training Awards - Postgraduates,FG - Accounts & Business Planning,University of St Andrews,99055459,6189.63,Training Awards - Postgraduates
BEIS,UKRI - BBSRC,15/10/2021,Training Awards - Postgraduates,FG - Accounts & Business Planning,Robert Gordon University,99055460,6189.63,Training Awards - Postgraduates
BEIS,UKRI - BBSRC,15/10/2021,Training Awards - Postgraduates,FG - Accounts & Business Planning,Heriot Watt University,99055461,6189.63,Training Awards - Postgraduates
BEIS,UKRI - BBSRC,15/10/2021,Training Awards - Postgraduates,FG - Accounts & Business Planning,University of Sheffield,99055462,6189.63,Training Awards - Postgraduates
BEIS,UKRI - BBSRC,15/10/2021,Training Awards - Postgraduates,FG - Accounts & Business Planning,University of Strathclyde,99055463,6189.63,Training Awards - Postgraduates
BEIS,UKRI - BBSRC,15/10/2021,Training Awards - Postgraduates,FG - Accounts & Business Planning,University of Strathclyde,99055464,6189.63,Training Awards - Postgraduates
BEIS,UKRI - BBSRC,15/10/2021,Training Awards - Postgraduates,FG - Accounts & Business Planning,University of Surrey,99055465,6189.63,Training Awards - Postgraduates
BEIS,UKRI - BBSRC,15/10/2021,Training Awards - Postgraduates,FG - Accounts & Business Planning,University of York,99055466,6189.63,Training Awards - Postgraduates
BEIS,UKRI - BBSRC,15/10/2021,Training Awards - Postgraduates,FG - Accounts & Business Planning,University of Exeter,99055467,6189.63,Training Awards - Postgraduates
BEIS,UKRI - BBSRC,15/10/2021,Training Awards - Postgraduates,FG - Accounts & Business Planning,University of Birmingham GRANT,99055468,6189.63,Training Awards - Postgraduates
BEIS,UKRI - BBSRC,15/10/2021,Training Awards - Postgraduates,FG - Accounts & Business Planning,University of Leicester,99055469,6189.63,Training Awards - Postgraduates
BEIS,UKRI - BBSRC,15/10/2021,Training Awards - Postgraduates,FG - Accounts & Business Planning,The University of Manchester,99055470,6189.63,Training Awards - Postgraduates
BEIS,UKRI - BBSRC,15/10/2021,Training Awards - Postgraduates,FG - Accounts & Business Planning,University of Newcastle Upon Tyne,99055471,6189.63,Training Awards - Postgraduates
BEIS,UKRI - BBSRC,15/10/2021,Training Awards - Postgraduates,FG - Accounts & Business Planning,University of Nottingham,99055472,6189.63,Training Awards - Postgraduates
BEIS,UKRI - BBSRC,15/10/2021,Training Awards - Postgraduates,FG - Accounts & Business Planning,University of Oxford,99055473,6189.63,Training Awards - Postgraduates
BEIS,UKRI - BBSRC,15/10/2021,Training Awards - Postgraduates,FG - Accounts & Business Planning,University of Oxford,99055474,6189.63,Training Awards - Postgraduates
BEIS,UKRI - BBSRC,15/10/2021,Training Awards - Postgraduates,FG - Accounts & Business Planning,Cardiff University,99055475,6189.63,Training Awards - Postgraduates
BEIS,UKRI - BBSRC,15/10/2021,Training Awards - Postgraduates,FG - Accounts & Business Planning,Cardiff University,99055476,6189.63,Training Awards - Postgraduates
BEIS,UKRI - BBSRC,15/10/2021,Training Awards - Postgraduates,FG - Accounts & Business Planning,University of Kent,99055477,6189.63,Training Awards - Postgraduates
BEIS,UKRI - BBSRC,15/10/2021,Training Awards - Postgraduates,FG - Accounts & Business Planning,Imperial College London,99055478,6689.63,Training Awards - Postgraduates
BEIS,UKRI - BBSRC,15/10/2021,Training Awards - Postgraduates,FG - Accounts & Business Planning,University of Edinburgh,99055479,6189.63,Training Awards - Postgraduates
BEIS,UKRI - BBSRC,15/10/2021,Training Awards - Postgraduates,FG - Accounts & Business Planning,University of Edinburgh,99055480,6189.63,Training Awards - Postgraduates
BEIS,UKRI - BBSRC,15/10/2021,Training Awards - Postgraduates,FG - Accounts & Business Planning,University of Glasgow,99055481,6189.63,Training Awards - Postgraduates
BEIS,UKRI - BBSRC,15/10/2021,Training Awards - Postgraduates,FG - Accounts & Business Planning,University of Nottingham,99055482,6189.63,Training Awards - Postgraduates
BEIS,UKRI - BBSRC,15/10/2021,Training Awards - Postgraduates,FG - Accounts & Business Planning,University of Aberdeen,99055483,4126.41,Training Awards - Postgraduates
BEIS,UKRI - BBSRC,15/10/2021,Training Awards - Postgraduates,FG - Accounts & Business Planning,University of Liverpool,99055484,6189.63,Training Awards - Postgraduates
BEIS,UKRI - BBSRC,15/10/2021,Training Awards - Postgraduates,FG - Accounts & Business Planning,King's College London,99055485,6689.63,Training Awards - Postgraduates
BEIS,UKRI - BBSRC,15/10/2021,Training Awards - Postgraduates,FG - Accounts & Business Planning,University College London,99055486,6689.63,Training Awards - Postgraduates
BEIS,UKRI - BBSRC,15/10/2021,Training Awards - Postgraduates,FG - Accounts & Business Planning,Imperial College London,99055487,6689.63,Training Awards - Postgraduates
BEIS,UKRI - BBSRC,15/10/2021,Training Awards - Postgraduates,FG - Accounts & Business Planning,University of Southampton GRANT,99055488,6189.63,Training Awards - Postgraduates
BEIS,UKRI - BBSRC,15/10/2021,Training Awards - Postgraduates,FG - Accounts & Business Planning,University of Bristol GRANT,99055489,6189.63,Training Awards - Postgraduates
BEIS,UKRI - BBSRC,15/10/2021,Training Awards - Postgraduates,FG - Accounts & Business Planning,University of Sheffield,99055490,4733.24,Training Awards - Postgraduates
BEIS,UKRI - BBSRC,15/10/2021,Training Awards - Postgraduates,FG - Accounts & Business Planning,University of Newcastle Upon Tyne,99055491,6189.63,Training Awards - Postgraduates
BEIS,UKRI - BBSRC,15/10/2021,Training Awards - Postgraduates,FG - Accounts & Business Planning,University of Leeds,99055492,6189.63,Training Awards - Postgraduates
BEIS,UKRI - BBSRC,15/10/2021,Training Awards - Postgraduates,FG - Accounts & Business Planning,University of Leeds,99055493,6189.63,Training Awards - Postgraduates
BEIS,UKRI - BBSRC,15/10/2021,Training Awards - Postgraduates,FG - Accounts & Business Planning,King's College London,99055494,6638.25,Training Awards - Postgraduates
BEIS,UKRI - BBSRC,15/10/2021,Training Awards - Postgraduates,FG - Accounts & Business Planning,University of Nottingham,99055495,5027.00,Training Awards - Postgraduates
BEIS,UKRI - BBSRC,15/10/2021,Training Awards - Postgraduates,FG - Accounts & Business Planning,University of Nottingham,99055496,5027.00,Training Awards - Postgraduates
BEIS,UKRI - BBSRC,15/10/2021,Training Awards - Postgraduates,FG - Accounts & Business Planning,University of Nottingham,99055497,5027.00,Training Awards - Postgraduates
BEIS,UKRI - BBSRC,15/10/2021,Training Awards - Postgraduates,FG - Accounts & Business Planning,University of Nottingham,99055498,11165.25,Training Awards - Postgraduates
BEIS,UKRI - BBSRC,15/10/2021,Training Awards - Postgraduates,FG - Accounts & Business Planning,University College London,99055499,5538.00,Training Awards - Postgraduates
BEIS,UKRI - BBSRC,15/10/2021,Training Awards - Postgraduates,FG - Accounts & Business Planning,The University of Manchester,99055500,1315.35,Training Awards - Postgraduates
BEIS,UKRI - BBSRC,15/10/2021,Training Awards - Postgraduates,FG - Accounts & Business Planning,University College London,99055501,5107.00,Training Awards - Postgraduates
BEIS,UKRI - BBSRC,15/10/2021,Training Awards - Postgraduates,FG - Accounts & Business Planning,University College London,99055502,8815.00,Training Awards - Postgraduates
BEIS,UKRI - BBSRC,15/10/2021,Training Awards - Postgraduates,FG - Accounts & Business Planning,University of Edinburgh,99055503,3069.10,Training Awards - Postgraduates
BEIS,UKRI - BBSRC,15/10/2021,Training Awards - Postgraduates,FG - Accounts & Business Planning,University of Reading,99055504,5729.04,Training Awards - Postgraduates
BEIS,UKRI - BBSRC,15/10/2021,Training Awards - Postgraduates,FG - Accounts & Business Planning,University College London,99055505,5359.00,Training Awards - Postgraduates
BEIS,UKRI - BBSRC,15/10/2021,Training Awards - Postgraduates,FG - Accounts & Business Planning,The University of Manchester,99055506,5027.00,Training Awards - Postgraduates
BEIS,UKRI - BBSRC,15/10/2021,Training Awards - Postgraduates,FG - Accounts & Business Planning,The University of Manchester,99055507,5027.00,Training Awards - Postgraduates
BEIS,UKRI - BBSRC,15/10/2021,Training Awards - Postgraduates,FG - Accounts & Business Planning,Imperial College London,99055508,3989.00,Training Awards - Postgraduates
BEIS,UKRI - BBSRC,15/10/2021,Training Awards - Postgraduates,FG - Accounts & Business Planning,Imperial College London,99055509,3989.00,Training Awards - Postgraduates
BEIS,UKRI - BBSRC,15/10/2021,Training Awards - Postgraduates,FG - Accounts & Business Planning,Imperial College London,99055510,3989.00,Training Awards - Postgraduates
BEIS,UKRI - BBSRC,15/10/2021,Training Awards - Postgraduates,FG - Accounts & Business Planning,Imperial College London,99055511,3989.00,Training Awards - Postgraduates
BEIS,UKRI - BBSRC,15/10/2021,Training Awards - Postgraduates,FG - Accounts & Business Planning,Imperial College London,99055512,3989.00,Training Awards - Postgraduates
BEIS,UKRI - BBSRC,15/10/2021,Training Awards - Postgraduates,FG - Accounts & Business Planning,"Royal Holloway, University of London",99055513,5441.00,Training Awards - Postgraduates
BEIS,UKRI - BBSRC,15/10/2021,Training Awards - Postgraduates,FG - Accounts & Business Planning,National Institute For Agricultural Botany (NIAB),99055514,4988.17,Training Awards - Postgraduates
BEIS,UKRI - BBSRC,15/10/2021,Training Awards - Postgraduates,FG - Accounts & Business Planning,University of St Andrews,99055515,7805.00,Training Awards - Postgraduates
BEIS,UKRI - BBSRC,15/10/2021,Training Awards - Postgraduates,FG - Accounts & Business Planning,University of Edinburgh,99055516,6224.53,Training Awards - Postgraduates
BEIS,UKRI - BBSRC,15/10/2021,Training Awards - Postgraduates,FG - Accounts & Business Planning,University of Aberdeen,99055517,3093.00,Training Awards - Postgraduates
BEIS,UKRI - BBSRC,15/10/2021,Training Awards - Postgraduates,FG - Accounts & Business Planning,University of Leeds,99055518,5193.92,Training Awards - Postgraduates
BEIS,UKRI - BBSRC,15/10/2021,Training Awards - Postgraduates,FG - Accounts & Business Planning,University of Southampton GRANT,99055519,6138.25,Training Awards - Postgraduates
BEIS,UKRI - BBSRC,15/10/2021,Training Awards - Postgraduates,FG - Accounts & Business Planning,University of Liverpool,99055520,9281.00,Training Awards - Postgraduates
BEIS,UKRI - BBSRC,15/10/2021,Training Awards - Postgraduates,FG - Accounts & Business Planning,Queen Mary University of London,99055521,3602.00,Training Awards - Postgraduates
BEIS,UKRI - BBSRC,15/10/2021,Training Awards - Postgraduates,FG - Accounts & Business Planning,Liverpool John Moores University,99055522,3682.95,Training Awards - Postgraduates
BEIS,UKRI - BBSRC,15/10/2021,Training Awards - Postgraduates,FG - Accounts & Business Planning,Lancaster University,99055523,5319.85,Training Awards - Postgraduates
BEIS,UKRI - BBSRC,15/10/2021,Training Awards - Postgraduates,FG - Accounts & Business Planning,Quadram Institute Bioscience,99055524,6138.25,Training Awards - Postgraduates
BEIS,UKRI - BBSRC,15/10/2021,Training Awards - Postgraduates,FG - Accounts & Business Planning,University of Surrey,99055525,5027.00,Training Awards - Postgraduates
BEIS,UKRI - BBSRC,15/10/2021,Training Awards - Postgraduates,FG - Accounts & Business Planning,King's College London,99055526,6669.50,Training Awards - Postgraduates
BEIS,UKRI - BBSRC,15/10/2021,Training Awards - Postgraduates,FG - Accounts & Business Planning,University of York,99055527,5699.83,Training Awards - Postgraduates
BEIS,UKRI - BBSRC,15/10/2021,Training Awards - Postgraduates,FG - Accounts & Business Planning,University of Sheffield,99055528,623.00,Training Awards - Postgraduates
BEIS,UKRI - BBSRC,15/10/2021,Training Awards - Postgraduates,FG - Accounts & Business Planning,University of Southampton GRANT,99055529,9281.00,Training Awards - Postgraduates
BEIS,UKRI - BBSRC,15/10/2021,Training Awards - Postgraduates,FG - Accounts & Business Planning,University of Exeter,99055530,3453.42,Training Awards - Postgraduates
BEIS,UKRI - BBSRC,15/10/2021,Training Awards - Postgraduates,FG - Accounts & Business Planning,University of Nottingham,99055531,10054.00,Training Awards - Postgraduates
BEIS,UKRI - BBSRC,15/10/2021,Training Awards - Postgraduates,FG - Accounts & Business Planning,University of Newcastle Upon Tyne,99055532,2401.00,Training Awards - Postgraduates
BEIS,UKRI - BBSRC,15/10/2021,Training Awards - Postgraduates,FG - Accounts & Business Planning,Royal Veterinary College,99055533,3904.16,Training Awards - Postgraduates
BEIS,UKRI - BBSRC,15/10/2021,Training Awards - Postgraduates,FG - Accounts & Business Planning,University of Oxford,99055534,436263.50,Training Awards - Postgraduates
BEIS,UKRI - BBSRC,15/10/2021,Training Awards - Postgraduates,FG - Accounts & Business Planning,John Innes Centre,99055535,436263.50,Training Awards - Postgraduates
BEIS,UKRI - BBSRC,15/10/2021,Training Awards - Postgraduates,FG - Accounts & Business Planning,The University of Manchester,99055536,256976.00,Training Awards - Postgraduates
BEIS,UKRI - BBSRC,15/10/2021,Training Awards - Postgraduates,FG - Accounts & Business Planning,University of Cambridge,99055537,526101.50,Training Awards - Postgraduates
BEIS,UKRI - BBSRC,15/10/2021,Training Awards - Postgraduates,FG - Accounts & Business Planning,University of Newcastle Upon Tyne,99055538,141155.50,Training Awards - Postgraduates
BEIS,UKRI - BBSRC,15/10/2021,Training Awards - Postgraduates,FG - Accounts & Business Planning,Imperial College London,99055539,290384.50,Training Awards - Postgraduates
BEIS,UKRI - BBSRC,15/10/2021,Training Awards - Postgraduates,FG - Accounts & Business Planning,University of Warwick,99055540,449060.50,Training Awards - Postgraduates
BEIS,UKRI - BBSRC,15/10/2021,Training Awards - Postgraduates,FG - Accounts & Business Planning,University of Leeds,99055541,397872.50,Training Awards - Postgraduates
BEIS,UKRI - BBSRC,15/10/2021,Training Awards - Postgraduates,FG - Accounts & Business Planning,University of Edinburgh,99055542,256587.50,Training Awards - Postgraduates
BEIS,UKRI - BBSRC,15/10/2021,Training Awards - Postgraduates,FG - Accounts & Business Planning,University College London,99055543,567101.50,Training Awards - Postgraduates
BEIS,UKRI - BBSRC,15/10/2021,Training Awards - Postgraduates,FG - Accounts & Business Planning,University of Bristol GRANT,99055544,269384.50,Training Awards - Postgraduates
BEIS,UKRI - BBSRC,15/10/2021,Training Awards - Postgraduates,FG - Accounts & Business Planning,University of Nottingham,99055545,436263.50,Training Awards - Postgraduates
BEIS,UKRI - BBSRC,15/10/2021,Training Awards - Postgraduates,FG - Accounts & Business Planning,National Institute For Agricultural Botany (NIAB),99055546,6376.62,Training Awards - Postgraduates
BEIS,UKRI - BBSRC,15/10/2021,Training Awards - Postgraduates,FG - Accounts & Business Planning,University College London,99055547,6767.44,Training Awards - Postgraduates
BEIS,UKRI - BBSRC,15/10/2021,Training Awards - Postgraduates,FG - Accounts & Business Planning,University of Nottingham,99055548,5027.00,Training Awards - Postgraduates
BEIS,UKRI - BBSRC,15/10/2021,Research Institutes - Capital Grants: Minor Works,JIC,John Innes Centre,99059043,40908.12,Research Institutes - Capital Grants: Minor Works
BEIS,UKRI - BBSRC,15/10/2021,Health & Safety (inc. Medicals & Opticians),Innovation and Skills Group CDSU,Unspecified,99060184,14.99,Health & Safety (inc. Medicals & Opticians)
BEIS,UKRI - BBSRC,15/10/2021,Health & Safety (inc. Medicals & Opticians),Innovation and Skills Group,Unspecified,99060185,14.99,Health & Safety (inc. Medicals & Opticians)
BEIS,UKRI - BBSRC,15/10/2021,Health & Safety (inc. Medicals & Opticians),CE - CPS,Unspecified,99060186,14.99,Health & Safety (inc. Medicals & Opticians)
BEIS,UKRI - BBSRC,18/10/2021,Unspecified,Innovation and Skills Group CDSU,Farmers Guardian Ltd,99054365,1140.00,Legal & Professional Services
BEIS,UKRI - BBSRC,18/10/2021,Unspecified,Innovation and Skills Group CDSU,Bioindustry Association (BIA),99059872,1170.00,Legal & Professional Services
BEIS,UKRI - BBSRC,18/10/2021,Books Professional Journals & Guides,CE - CPS,The Pirbright Institute,99060264,3124.06,Books Professional Journals & Guides
BEIS,UKRI - BBSRC,18/10/2021,Research Grant Expenditure,SPF W1 EMBL EBI,EMBL (European Molecular Biology Laboratory),99060476,154345.50,Research Grant Expenditure
BEIS,UKRI - BBSRC,19/10/2021,Conferences & Seminars,Innovation and Skills Group CDSU,Cambridge Network Ltd,99054042,3000.00,Conferences & Seminars
BEIS,UKRI - BBSRC,19/10/2021,Unspecified,CE - CPS,University of Southampton,99054891,53404.00,Secondments
BEIS,UKRI - BBSRC,19/10/2021,Research Grant Expenditure,Research: Responsive,UKRI - Medical Research Council,99057988,92250.00,Research Grant Expenditure
BEIS,UKRI - BBSRC,19/10/2021,Doctoral Training Accounts,FG - Accounts & Business Planning,UKRI - Engineering & Physical Sciences Research Council,99057993,25537.50,Doctoral Training Accounts
BEIS,UKRI - BBSRC,19/10/2021,Research Institutes - Capital Grants: Minor Works,Rothamsted Research,Rothamsted Research Ltd,99058234,10623.83,Research Institutes - Capital Grants: Minor Works
BEIS,UKRI - BBSRC,19/10/2021,Conferences & Seminars,Science Group,Calder Conference Ltd,99060602,263.32,Conferences & Seminars
BEIS,UKRI - BBSRC,19/10/2021,Fees (Including College Members),Innovation and Skills Group CDSU,Unspecified,99060619,170.00,Fees (Including College Members)
BEIS,UKRI - BBSRC,19/10/2021,Fees (Including College Members),Innovation and Skills Group CDSU,Unspecified,99060620,170.00,Fees (Including College Members)
BEIS,UKRI - BBSRC,20/10/2021,Research Institutes - Competitive Strategic Grant,TGAC,Earlham Institute,99050843,163172.03,Research Institutes - Competitive Strategic Grant
BEIS,UKRI - BBSRC,20/10/2021,Research Institutes - Competitive Strategic Grant,TGAC,Earlham Institute,99050843,81239.48,Research Institutes - Competitive Strategic Grant
BEIS,UKRI - BBSRC,20/10/2021,Research Institutes - Competitive Strategic Grant,TGAC,Earlham Institute,99050843,42166.70,Research Institutes - Competitive Strategic Grant
BEIS,UKRI - BBSRC,20/10/2021,Research Institutes - Competitive Strategic Grant,TGAC,Earlham Institute,99050843,33333.36,Research Institutes - Competitive Strategic Grant
BEIS,UKRI - BBSRC,20/10/2021,Research Institutes - Competitive Strategic Grant,TGAC,Earlham Institute,99050843,121088.76,Research Institutes - Competitive Strategic Grant
BEIS,UKRI - BBSRC,20/10/2021,Research Institutes - Competitive Strategic Grant,TGAC,Earlham Institute,99050843,2916.67,Research Institutes - Competitive Strategic Grant
BEIS,UKRI - BBSRC,20/10/2021,Research Institutes - Competitive Strategic Grant,IFR,Quadram Institute Bioscience,99050848,23624.41,Research Institutes - Competitive Strategic Grant
BEIS,UKRI - BBSRC,20/10/2021,Research Institutes - Competitive Strategic Grant,IFR,Quadram Institute Bioscience,99050848,347920.37,Research Institutes - Competitive Strategic Grant
BEIS,UKRI - BBSRC,20/10/2021,Research Institutes - Competitive Strategic Grant,IFR,Quadram Institute Bioscience,99050848,46083.32,Research Institutes - Competitive Strategic Grant
BEIS,UKRI - BBSRC,20/10/2021,Research Institutes - Competitive Strategic Grant,IFR,Quadram Institute Bioscience,99050848,261521.57,Research Institutes - Competitive Strategic Grant
BEIS,UKRI - BBSRC,20/10/2021,Research Institutes - Competitive Strategic Grant,IFR,Quadram Institute Bioscience,99050848,5833.33,Research Institutes - Competitive Strategic Grant
BEIS,UKRI - BBSRC,20/10/2021,Research Institutes - Competitive Strategic Grant,Babraham Institute,Babraham Institute,99051411,352459.91,Research Institutes - Competitive Strategic Grant
BEIS,UKRI - BBSRC,20/10/2021,Research Institutes - Competitive Strategic Grant,Babraham Institute,Babraham Institute,99051411,48750.01,Research Institutes - Competitive Strategic Grant
BEIS,UKRI - BBSRC,20/10/2021,Research Institutes - Competitive Strategic Grant,Babraham Institute,Babraham Institute,99051411,395666.75,Research Institutes - Competitive Strategic Grant
BEIS,UKRI - BBSRC,20/10/2021,Research Institutes - Competitive Strategic Grant,Babraham Institute,Babraham Institute,99051411,5833.33,Research Institutes - Competitive Strategic Grant
BEIS,UKRI - BBSRC,20/10/2021,Research Institutes - Competitive Strategic Grant,JIC,John Innes Centre,99051440,21999.99,Research Institutes - Competitive Strategic Grant
BEIS,UKRI - BBSRC,20/10/2021,Research Institutes - Competitive Strategic Grant,JIC,John Innes Centre,99051440,511416.52,Research Institutes - Competitive Strategic Grant
BEIS,UKRI - BBSRC,20/10/2021,Research Institutes - Competitive Strategic Grant,JIC,John Innes Centre,99051440,65333.31,Research Institutes - Competitive Strategic Grant
BEIS,UKRI - BBSRC,20/10/2021,Research Institutes - Competitive Strategic Grant,JIC,John Innes Centre,99051440,501249.85,Research Institutes - Competitive Strategic Grant
BEIS,UKRI - BBSRC,20/10/2021,Research Institutes - Competitive Strategic Grant,JIC,John Innes Centre,99051440,7083.33,Research Institutes - Competitive Strategic Grant
BEIS,UKRI - BBSRC,20/10/2021,Other Programme Costs,FG - Accounts & Business Planning,Rothamsted Research Ltd,99051518,50000.00,Other Programme Costs
BEIS,UKRI - BBSRC,20/10/2021,Research Institutes - Competitive Strategic Grant,Rothamsted Research,Rothamsted Research Ltd,99051529,104789.47,Research Institutes - Competitive Strategic Grant
BEIS,UKRI - BBSRC,20/10/2021,Research Institutes - Competitive Strategic Grant,Rothamsted Research,Rothamsted Research Ltd,99051529,440495.03,Research Institutes - Competitive Strategic Grant
BEIS,UKRI - BBSRC,20/10/2021,Research Institutes - Competitive Strategic Grant,Rothamsted Research,Rothamsted Research Ltd,99051529,60909.50,Research Institutes - Competitive Strategic Grant
BEIS,UKRI - BBSRC,20/10/2021,Research Institutes - Competitive Strategic Grant,Rothamsted Research,Rothamsted Research Ltd,99051529,185554.21,Research Institutes - Competitive Strategic Grant
BEIS,UKRI - BBSRC,20/10/2021,Research Institutes - Competitive Strategic Grant,Rothamsted Research,Rothamsted Research Ltd,99051529,6671.79,Research Institutes - Competitive Strategic Grant
BEIS,UKRI - BBSRC,20/10/2021,Research Institutes - Competitive Strategic Grant,EBRC (Roslin),University of Edinburgh,99054546,277179.92,Research Institutes - Competitive Strategic Grant
BEIS,UKRI - BBSRC,20/10/2021,Research Institutes - Competitive Strategic Grant,EBRC (Roslin),University of Edinburgh,99054546,206087.50,Research Institutes - Competitive Strategic Grant
BEIS,UKRI - BBSRC,20/10/2021,Research Institutes - Competitive Strategic Grant,EBRC (Roslin),University of Edinburgh,99054546,5833.33,Research Institutes - Competitive Strategic Grant
BEIS,UKRI - BBSRC,20/10/2021,Research Institutes - Competitive Strategic Grant,Pirbright,The Pirbright Institute,99058710,817500.04,Research Institutes - Competitive Strategic Grant
BEIS,UKRI - BBSRC,20/10/2021,Research Institutes - Competitive Strategic Grant,Pirbright,The Pirbright Institute,99058710,231500.01,Research Institutes - Competitive Strategic Grant
BEIS,UKRI - BBSRC,20/10/2021,Research Institutes - Competitive Strategic Grant,Pirbright,The Pirbright Institute,99058710,33333.34,Research Institutes - Competitive Strategic Grant
BEIS,UKRI - BBSRC,20/10/2021,Research Institutes - Competitive Strategic Grant,Pirbright,The Pirbright Institute,99058710,201083.35,Research Institutes - Competitive Strategic Grant
BEIS,UKRI - BBSRC,20/10/2021,Research Institutes - Competitive Strategic Grant,Pirbright,The Pirbright Institute,99058710,4166.67,Research Institutes - Competitive Strategic Grant
BEIS,UKRI - BBSRC,20/10/2021,Research Institutes - Competitive Strategic Grant,IBERS,Aberystwyth University,99060219,86360.99,Research Institutes - Competitive Strategic Grant
BEIS,UKRI - BBSRC,20/10/2021,Research Institutes - Competitive Strategic Grant,IBERS,Aberystwyth University,99060219,46980.67,Research Institutes - Competitive Strategic Grant
BEIS,UKRI - BBSRC,20/10/2021,Research Institutes - Competitive Strategic Grant,IBERS,Aberystwyth University,99060219,2916.67,Research Institutes - Competitive Strategic Grant
BEIS,UKRI - BBSRC,20/10/2021,Research Grant Expenditure,SPF W1 EMBL EBI,EMBL (European Molecular Biology Laboratory),99061558,51101.88,Research Grant Expenditure
BEIS,UKRI - BBSRC,20/10/2021,Capital Grants & Equipment to HEIs,Funding Advanced Research Equipment - WCL 2020 Uplift,University of Edinburgh,99061586,10089.00,Capital Grants & Equipment to HEIs
BEIS,UKRI - BBSRC,20/10/2021,Other Programme Costs,CE - IRU,Unspecified,99062127,6280.33,Other Programme Costs
BEIS,UKRI - BBSRC,21/10/2021,Health & Safety (inc. Medicals & Opticians),CE - CPS,Unspecified,99062739,14.99,Health & Safety (inc. Medicals & Opticians)
BEIS,UKRI - BBSRC,25/10/2021,International Awards - Non Capital,GCRF Awards,Rothamsted Research Ltd,99042387,23075.03,International Awards - Non Capital
BEIS,UKRI - BBSRC,25/10/2021,Health & Safety (inc. Medicals & Opticians),CE - CPS,Unspecified,99057114,14.99,Health & Safety (inc. Medicals & Opticians)
BEIS,UKRI - BBSRC,25/10/2021,Research Institutes - Capital Grants: Minor Works,Rothamsted Research,Rothamsted Research Ltd,99063392,8676.84,Research Institutes - Capital Grants: Minor Works
BEIS,UKRI - BBSRC,25/10/2021,International Awards - Non Capital,GCRF Awards,Rothamsted Research Ltd,99063477,21293.16,International Awards - Non Capital
BEIS,UKRI - BBSRC,25/10/2021,International Awards - Non Capital,GCRF Awards,Rothamsted Research Ltd,99063478,13688.95,International Awards - Non Capital
BEIS,UKRI - BBSRC,25/10/2021,International Awards - Non Capital,GCRF Awards,Rothamsted Research Ltd,99063479,23818.35,International Awards - Non Capital
BEIS,UKRI - BBSRC,25/10/2021,Research Institutes - Capital Grants: Minor Works,Rothamsted Research,Rothamsted Research Ltd,99064119,15510.00,Research Institutes - Capital Grants: Minor Works
BEIS,UKRI - BBSRC,25/10/2021,T&S UK - Other Charges,Innovation and Skills Group CDSU,Unspecified,99064257,22.49,T&S UK - Other Charges
BEIS,UKRI - BBSRC,25/10/2021,T&S UK - Other Charges,CIMG - Information Management,Unspecified,99064258,142.00,T&S UK - Other Charges
BEIS,UKRI - BBSRC,26/10/2021,Research Institutes - Capital Grants: Minor Works,Rothamsted Research,Rothamsted Research Ltd,99063971,6420.00,Research Institutes - Capital Grants: Minor Works
BEIS,UKRI - BBSRC,26/10/2021,T&S UK - Other Charges,FG - Estates,Unspecified,99064009,16.65,T&S UK - Other Charges
BEIS,UKRI - BBSRC,26/10/2021,T&S UK - Vehicle Hire,FG - Estates,Unspecified,99064009,62.29,T&S UK - Vehicle Hire
BEIS,UKRI - BBSRC,26/10/2021,Health & Safety (inc. Medicals & Opticians),CE - IRU,Unspecified,99064010,14.99,Health & Safety (inc. Medicals & Opticians)
BEIS,UKRI - BBSRC,26/10/2021,Health & Safety (inc. Medicals & Opticians),European Initiatives,Unspecified,99064011,68.00,Health & Safety (inc. Medicals & Opticians)
BEIS,UKRI - BBSRC,26/10/2021,T&S Overseas - Public Transport,European Initiatives,Unspecified,99064011,46.42,T&S Overseas - Public Transport
BEIS,UKRI - BBSRC,26/10/2021,T&S Overseas - Public Transport,European Initiatives,Unspecified,99064011,3.21,T&S Overseas - Public Transport
BEIS,UKRI - BBSRC,26/10/2021,T&S Overseas - Subsistence,European Initiatives,Unspecified,99064011,10.00,T&S Overseas - Subsistence
BEIS,UKRI - BBSRC,26/10/2021,T&S Overseas - Subsistence,European Initiatives,Unspecified,99064011,16.43,T&S Overseas - Subsistence
BEIS,UKRI - BBSRC,26/10/2021,T&S Overseas - Subsistence,European Initiatives,Unspecified,99064011,12.66,T&S Overseas - Subsistence
BEIS,UKRI - BBSRC,26/10/2021,Fees (Including College Members),Science Group - Delivery Function,Unspecified,99064342,460.00,Fees (Including College Members)
BEIS,UKRI - BBSRC,26/10/2021,Fees (Including College Members),Innovation and Skills Group CDSU,Unspecified,99064343,170.00,Fees (Including College Members)
BEIS,UKRI - BBSRC,26/10/2021,Research Institutes - Capital Grants: Major Works,Pirbright,The Pirbright Institute,99064364,13749.73,Research Institutes - Capital Grants: Major Works
BEIS,UKRI - BBSRC,26/10/2021,Research Institutes - Capital Grants: Minor Works,Pirbright,The Pirbright Institute,99064365,8802.00,Research Institutes - Capital Grants: Minor Works
BEIS,UKRI - BBSRC,27/10/2021,Research Institutes - Capital Grants: Minor Works,Rothamsted Research,Rothamsted Research Ltd,99061309,154173.60,Research Institutes - Capital Grants: Minor Works
BEIS,UKRI - BBSRC,27/10/2021,Other Programme Costs,CE - IRU,Unspecified,99064075,7167.68,Other Programme Costs
BEIS,UKRI - BBSRC,27/10/2021,Research Grant Expenditure,SPF W1 EMBL EBI,EMBL (European Molecular Biology Laboratory),99064754,73163.95,Research Grant Expenditure
BEIS,UKRI - BBSRC,27/10/2021,Research Institutes - Capital Grants: Minor Works,Babraham Institute,Babraham Institute,99065272,47994.95,Research Institutes - Capital Grants: Minor Works
BEIS,UKRI - BBSRC,27/10/2021,Research Institutes - Capital Grants: Minor Works,Babraham Institute,Babraham Institute,99065273,37908.00,Research Institutes - Capital Grants: Minor Works
BEIS,UKRI - BBSRC,28/10/2021,T&S UK - Other Charges,Science Group,Unspecified,99049689,85.48,T&S UK - Other Charges
BEIS,UKRI - BBSRC,28/10/2021,Research Institutes - Capital Grants: Minor Works,Rothamsted Research,Rothamsted Research Ltd,99063972,93280.00,Research Institutes - Capital Grants: Minor Works
BEIS,UKRI - BBSRC,28/10/2021,T&S UK - Vehicle Hire,CIMG - Director,Enterprise Rent-A-Car UK Ltd,99065036,53.91,T&S UK - Vehicle Hire
BEIS,UKRI - BBSRC,28/10/2021,T&S UK - Vehicle Hire,CIMG - Director,Enterprise Rent-A-Car UK Ltd,99065036,10.78,T&S UK - Vehicle Hire
BEIS,UKRI - BBSRC,28/10/2021,T&S UK - Vehicle Hire,FG - Estates,Enterprise Rent-A-Car UK Ltd,99065036,91.94,T&S UK - Vehicle Hire
BEIS,UKRI - BBSRC,28/10/2021,T&S UK - Vehicle Hire,FG - Estates,Enterprise Rent-A-Car UK Ltd,99065036,18.39,T&S UK - Vehicle Hire
BEIS,UKRI - BBSRC,28/10/2021,Research Grant Expenditure,SPF W1 EMBL EBI,EMBL (European Molecular Biology Laboratory),99066190,183938.00,Research Grant Expenditure
BEIS,UKRI - BBSRC,28/10/2021,T&S UK - Mileage,CIMG - Programme Office,Unspecified,99066298,95.00,T&S UK - Mileage
BEIS,UKRI - BBSRC,28/10/2021,T&S UK - Subsistence,CIMG - Programme Office,Unspecified,99066298,32.50,T&S UK - Subsistence
BEIS,UKRI - BBSRC,28/10/2021,T&S UK - Other Charges,European Initiatives,Unspecified,99066299,34.22,T&S UK - Other Charges
BEIS,UKRI - BBSRC,29/10/2021,T&S UK - Other Charges,Science Group – Admin Function,Unspecified,99066539,12.50,T&S UK - Other Charges
BEIS,UKRI - UKRI,01/10/2021,Unspecified,UKRI - Human Resources Support,Allen Lane Ltd,98957709,33000.00,Contract Staff
BEIS,UKRI - UKRI,01/10/2021,Unspecified,UKRI - Management Reporting,Hays Specialist Recruitment Ltd,99024197,12918.84,Contract Staff
BEIS,UKRI - UKRI,01/10/2021,Purchase of non capital equipment,UKRI - Estates,Premier Farnell UK Ltd T/A Farnell Onecall,99046045,38.64,Purchase of non capital equipment
BEIS,UKRI - UKRI,01/10/2021,Unspecified,UKRI - Information Governance,Alexander Mann Solutions Ltd,99047717,3024.29,Agency Staff
BEIS,UKRI - UKRI,01/10/2021,Computer Software Licences,UKRI - Digital Data and Technology BAU Costs,Phoenix Software Ltd,99048304,22807.96,Computer Software Licences
BEIS,UKRI - UKRI,01/10/2021,Research Grant Expenditure,Sciencewise,Science Media Centre,99048543,95000.00,Research Grant Expenditure
BEIS,UKRI - UKRI,01/10/2021,Unspecified,UKRI - Management Reporting,Hays Specialist Recruitment Ltd,99048611,12317.96,Contract Staff
BEIS,UKRI - UKRI,01/10/2021,Unspecified,UKRI-SHARP,Hays Specialist Recruitment Ltd,99048635,18208.76,Contract Staff
BEIS,UKRI - UKRI,01/10/2021,Unspecified,UKRI-SHARP,Hays Specialist Recruitment Ltd,99048638,5570.16,Contract Staff
BEIS,UKRI - UKRI,01/10/2021,Unspecified,UKRI-SHARP,Hays Specialist Recruitment Ltd,99048640,11697.34,Contract Staff
BEIS,UKRI - UKRI,01/10/2021,Unspecified,UKRI - Strategic Finance Business Partners,Hays Specialist Recruitment Ltd,99048659,6360.83,Agency Staff
BEIS,UKRI - UKRI,01/10/2021,T&S Overseas - Flights,UKRI - Overseas Office China,Corporate Travel Management (North) Ltd,99049484,2.38,T&S Overseas - Flights
BEIS,UKRI - UKRI,01/10/2021,T&S Overseas - Flights,UKRI - Overseas Office China,Corporate Travel Management (North) Ltd,99049484,5699.22,T&S Overseas - Flights
BEIS,UKRI - UKRI,01/10/2021,T&S Overseas - Flights,UKRI - Overseas Office China,Corporate Travel Management (North) Ltd,99049484,2.38,T&S Overseas - Flights
BEIS,UKRI - UKRI,01/10/2021,T&S Overseas - Flights,UKRI - Overseas Office China,Corporate Travel Management (North) Ltd,99049484,5699.22,T&S Overseas - Flights
BEIS,UKRI - UKRI,01/10/2021,T&S Overseas - Flights,UKRI - Overseas Office China,Corporate Travel Management (North) Ltd,99049484,2.38,T&S Overseas - Flights
BEIS,UKRI - UKRI,01/10/2021,T&S Overseas - Flights,UKRI - Overseas Office China,Corporate Travel Management (North) Ltd,99049484,4382.22,T&S Overseas - Flights
BEIS,UKRI - UKRI,01/10/2021,T&S Overseas - Flights,UKRI - Overseas Office India,Corporate Travel Management (North) Ltd,99049484,7.00,T&S Overseas - Flights
BEIS,UKRI - UKRI,01/10/2021,T&S Overseas - Flights,UKRI - Overseas Office India,Corporate Travel Management (North) Ltd,99049484,50.40,T&S Overseas - Flights
BEIS,UKRI - UKRI,01/10/2021,T&S Overseas - Flights,UKRI - Overseas Office USA,Corporate Travel Management (North) Ltd,99049484,9.50,T&S Overseas - Flights
BEIS,UKRI - UKRI,01/10/2021,T&S Overseas - Flights,UKRI - Overseas Office USA,Corporate Travel Management (North) Ltd,99049484,1074.27,T&S Overseas - Flights
BEIS,UKRI - UKRI,01/10/2021,T&S Overseas - Flights,UKRI - Strategic Finance Business Partners,Corporate Travel Management (North) Ltd,99049484,4.50,T&S Overseas - Flights
BEIS,UKRI - UKRI,01/10/2021,T&S Overseas - Flights,UKRI - Strategic Finance Business Partners,Corporate Travel Management (North) Ltd,99049484,125.00,T&S Overseas - Flights
BEIS,UKRI - UKRI,01/10/2021,T&S UK - Accommodation,UKRI - Risk and Counter Fraud,Corporate Travel Management (North) Ltd,99049484,0.80,T&S UK - Accommodation
BEIS,UKRI - UKRI,01/10/2021,T&S UK - Accommodation,UKRI - Risk and Counter Fraud,Corporate Travel Management (North) Ltd,99049484,67.50,T&S UK - Accommodation
BEIS,UKRI - UKRI,01/10/2021,T&S UK - Accommodation,UKRI - Risk and Counter Fraud,Corporate Travel Management (North) Ltd,99049484,0.80,T&S UK - Accommodation
BEIS,UKRI - UKRI,01/10/2021,T&S UK - Accommodation,UKRI - Risk and Counter Fraud,Corporate Travel Management (North) Ltd,99049484,67.50,T&S UK - Accommodation
BEIS,UKRI - UKRI,01/10/2021,T&S UK - Accommodation,UKRI - Risk and Counter Fraud,Corporate Travel Management (North) Ltd,99049484,0.80,T&S UK - Accommodation
BEIS,UKRI - UKRI,01/10/2021,T&S UK - Accommodation,UKRI - Risk and Counter Fraud,Corporate Travel Management (North) Ltd,99049484,0.80,T&S UK - Accommodation
BEIS,UKRI - UKRI,01/10/2021,T&S UK - Accommodation,UKRI - Risk and Counter Fraud,Corporate Travel Management (North) Ltd,99049484,0.80,T&S UK - Accommodation
BEIS,UKRI - UKRI,01/10/2021,T&S UK - Accommodation,UKRI - Risk and Counter Fraud,Corporate Travel Management (North) Ltd,99049484,67.50,T&S UK - Accommodation
BEIS,UKRI - UKRI,01/10/2021,T&S UK - Accommodation,UKRI - Risk and Counter Fraud,Corporate Travel Management (North) Ltd,99049484,0.80,T&S UK - Accommodation
BEIS,UKRI - UKRI,01/10/2021,T&S UK - Accommodation,UKRI - Risk and Counter Fraud,Corporate Travel Management (North) Ltd,99049484,0.80,T&S UK - Accommodation
BEIS,UKRI - UKRI,01/10/2021,T&S UK - Accommodation,UKRI - Risk and Counter Fraud,Corporate Travel Management (North) Ltd,99049484,70.54,T&S UK - Accommodation
BEIS,UKRI - UKRI,01/10/2021,T&S UK - Accommodation,UKRI - Risk and Counter Fraud,Corporate Travel Management (North) Ltd,99049484,0.80,T&S UK - Accommodation
BEIS,UKRI - UKRI,01/10/2021,T&S UK - Accommodation,UKRI - Risk and Counter Fraud,Corporate Travel Management (North) Ltd,99049484,116.00,T&S UK - Accommodation
BEIS,UKRI - UKRI,01/10/2021,T&S UK - Accommodation,UKRI - Risk and Counter Fraud,Corporate Travel Management (North) Ltd,99049484,1.28,T&S UK - Accommodation
BEIS,UKRI - UKRI,01/10/2021,T&S UK - Accommodation,UKRI - Communication and Engagement,Corporate Travel Management (North) Ltd,99049484,0.80,T&S UK - Accommodation
BEIS,UKRI - UKRI,01/10/2021,T&S UK - Accommodation,UKRI - Communication and Engagement,Corporate Travel Management (North) Ltd,99049484,68.00,T&S UK - Accommodation
BEIS,UKRI - UKRI,01/10/2021,T&S UK - Accommodation,UKRI - Communication and Engagement,Corporate Travel Management (North) Ltd,99049484,0.16,T&S UK - Accommodation
BEIS,UKRI - UKRI,01/10/2021,T&S UK - Accommodation,UKRI - Communications Content,Corporate Travel Management (North) Ltd,99049484,0.80,T&S UK - Accommodation
BEIS,UKRI - UKRI,01/10/2021,T&S UK - Accommodation,UKRI - Communications Content,Corporate Travel Management (North) Ltd,99049484,83.66,T&S UK - Accommodation
BEIS,UKRI - UKRI,01/10/2021,T&S UK - Accommodation,UKRI - Communications Content,Corporate Travel Management (North) Ltd,99049484,0.80,T&S UK - Accommodation
BEIS,UKRI - UKRI,01/10/2021,T&S UK - Accommodation,UKRI - Communications Content,Corporate Travel Management (North) Ltd,99049484,90.00,T&S UK - Accommodation
BEIS,UKRI - UKRI,01/10/2021,T&S UK - Accommodation,UKRI - Communications Content,Corporate Travel Management (North) Ltd,99049484,2.00,T&S UK - Accommodation
BEIS,UKRI - UKRI,01/10/2021,T&S UK - Accommodation,UKRI - Communications Content,Corporate Travel Management (North) Ltd,99049484,100.00,T&S UK - Accommodation
BEIS,UKRI - UKRI,01/10/2021,T&S UK - Accommodation,UKRI - Communications Content,Corporate Travel Management (North) Ltd,99049484,0.80,T&S UK - Accommodation
BEIS,UKRI - UKRI,01/10/2021,T&S UK - Accommodation,UKRI - Communications Content,Corporate Travel Management (North) Ltd,99049484,69.00,T&S UK - Accommodation
BEIS,UKRI - UKRI,01/10/2021,T&S UK - Accommodation,UKRI - Communications Content,Corporate Travel Management (North) Ltd,99049484,0.88,T&S UK - Accommodation
BEIS,UKRI - UKRI,01/10/2021,T&S UK - Accommodation,UKRI - Governance,Corporate Travel Management (North) Ltd,99049484,0.80,T&S UK - Accommodation
BEIS,UKRI - UKRI,01/10/2021,T&S UK - Accommodation,UKRI - Governance,Corporate Travel Management (North) Ltd,99049484,0.16,T&S UK - Accommodation
BEIS,UKRI - UKRI,01/10/2021,T&S UK - Flights,Global Mobility & Employee Diversity,Corporate Travel Management (North) Ltd,99049484,2.50,T&S UK - Flights
BEIS,UKRI - UKRI,01/10/2021,T&S UK - Flights,Global Mobility & Employee Diversity,Corporate Travel Management (North) Ltd,99049484,196.96,T&S UK - Flights
BEIS,UKRI - EPSRC,01/10/2021,T&S UK - Public Transport,Exec Chair Support,Corporate Travel Management (North) Ltd,99049484,0.25,T&S UK - Public Transport
BEIS,UKRI - EPSRC,01/10/2021,T&S UK - Public Transport,Exec Chair Support,Corporate Travel Management (North) Ltd,99049484,11.50,T&S UK - Public Transport
BEIS,UKRI - Research England,01/10/2021,T&S UK - Public Transport,RE - Knowledge Exchange,Corporate Travel Management (North) Ltd,99049484,0.25,T&S UK - Public Transport
BEIS,UKRI - Research England,01/10/2021,T&S UK - Public Transport,RE - Knowledge Exchange,Corporate Travel Management (North) Ltd,99049484,100.70,T&S UK - Public Transport
BEIS,UKRI - Research England,01/10/2021,T&S UK - Public Transport,RE - Knowledge Exchange,Corporate Travel Management (North) Ltd,99049484,0.25,T&S UK - Public Transport
BEIS,UKRI - Research England,01/10/2021,T&S UK - Public Transport,RE - Knowledge Exchange,Corporate Travel Management (North) Ltd,99049484,71.15,T&S UK - Public Transport
BEIS,UKRI - UKRI,01/10/2021,T&S UK - Public Transport,UKRI - Communications Content,Corporate Travel Management (North) Ltd,99049484,0.25,T&S UK - Public Transport
BEIS,UKRI - UKRI,01/10/2021,T&S UK - Public Transport,UKRI - Communications Content,Corporate Travel Management (North) Ltd,99049484,42.70,T&S UK - Public Transport
BEIS,UKRI - UKRI,01/10/2021,T&S UK - Public Transport,UKRI - Communications Content,Corporate Travel Management (North) Ltd,99049484,0.25,T&S UK - Public Transport
BEIS,UKRI - UKRI,01/10/2021,T&S UK - Public Transport,UKRI - Communications Content,Corporate Travel Management (North) Ltd,99049484,92.80,T&S UK - Public Transport
BEIS,UKRI - UKRI,01/10/2021,T&S UK - Public Transport,UKRI - Communications Content,Corporate Travel Management (North) Ltd,99049484,0.25,T&S UK - Public Transport
BEIS,UKRI - UKRI,01/10/2021,T&S UK - Public Transport,UKRI - Communications Content,Corporate Travel Management (North) Ltd,99049484,222.50,T&S UK - Public Transport
BEIS,UKRI - UKRI,01/10/2021,T&S UK - Public Transport,UKRI - Estates,Corporate Travel Management (North) Ltd,99049484,0.25,T&S UK - Public Transport
BEIS,UKRI - UKRI,01/10/2021,T&S UK - Public Transport,UKRI - Estates,Corporate Travel Management (North) Ltd,99049484,152.60,T&S UK - Public Transport
BEIS,UKRI - UKRI,01/10/2021,T&S UK - Public Transport,UKRI - Estates,Corporate Travel Management (North) Ltd,99049484,0.25,T&S UK - Public Transport
BEIS,UKRI - UKRI,01/10/2021,T&S UK - Public Transport,UKRI - Estates,Corporate Travel Management (North) Ltd,99049484,30.00,T&S UK - Public Transport
BEIS,UKRI - UKRI,01/10/2021,T&S UK - Public Transport,UKRI - Estates,Corporate Travel Management (North) Ltd,99049484,0.25,T&S UK - Public Transport
BEIS,UKRI - UKRI,01/10/2021,T&S UK - Public Transport,UKRI - Estates,Corporate Travel Management (North) Ltd,99049484,22.30,T&S UK - Public Transport
BEIS,UKRI - UKRI,01/10/2021,T&S UK - Public Transport,UKRI - Estates,Corporate Travel Management (North) Ltd,99049484,0.25,T&S UK - Public Transport
BEIS,UKRI - UKRI,01/10/2021,T&S UK - Public Transport,UKRI - Estates,Corporate Travel Management (North) Ltd,99049484,44.70,T&S UK - Public Transport
BEIS,UKRI - UKRI,01/10/2021,T&S UK - Public Transport,UKRI - Human Resources Support,Corporate Travel Management (North) Ltd,99049484,0.25,T&S UK - Public Transport
BEIS,UKRI - UKRI,01/10/2021,T&S UK - Public Transport,UKRI - Human Resources Support,Corporate Travel Management (North) Ltd,99049484,152.60,T&S UK - Public Transport
BEIS,UKRI - UKRI,01/10/2021,T&S UK - Public Transport,UKRI - International,Corporate Travel Management (North) Ltd,99049484,0.25,T&S UK - Public Transport
BEIS,UKRI - UKRI,01/10/2021,T&S UK - Public Transport,UKRI - International,Corporate Travel Management (North) Ltd,99049484,57.20,T&S UK - Public Transport
BEIS,UKRI - UKRI,01/10/2021,T&S UK - Public Transport,UKRI - Private Office,Corporate Travel Management (North) Ltd,99049484,0.25,T&S UK - Public Transport
BEIS,UKRI - UKRI,01/10/2021,T&S UK - Public Transport,UKRI - Private Office,Corporate Travel Management (North) Ltd,99049484,14.40,T&S UK - Public Transport
BEIS,UKRI - UKRI,01/10/2021,T&S UK - Public Transport,UKRI - Private Office,Corporate Travel Management (North) Ltd,99049484,0.25,T&S UK - Public Transport
BEIS,UKRI - UKRI,01/10/2021,T&S UK - Public Transport,UKRI - Private Office,Corporate Travel Management (North) Ltd,99049484,126.20,T&S UK - Public Transport
BEIS,UKRI - UKRI,01/10/2021,T&S UK - Public Transport,UKRI - Private Office,Corporate Travel Management (North) Ltd,99049484,0.25,T&S UK - Public Transport
BEIS,UKRI - UKRI,01/10/2021,T&S UK - Public Transport,UKRI - Private Office,Corporate Travel Management (North) Ltd,99049484,122.05,T&S UK - Public Transport
BEIS,UKRI - UKRI,01/10/2021,T&S UK - Public Transport,UKRI - Strategic Finance Business Partners,Corporate Travel Management (North) Ltd,99049484,0.25,T&S UK - Public Transport
BEIS,UKRI - UKRI,01/10/2021,T&S UK - Public Transport,UKRI - Strategic Finance Business Partners,Corporate Travel Management (North) Ltd,99049484,103.20,T&S UK - Public Transport
BEIS,UKRI - UKRI,01/10/2021,T&S UK - Public Transport,UKRI - Strategy,Corporate Travel Management (North) Ltd,99049484,0.25,T&S UK - Public Transport
BEIS,UKRI - UKRI,01/10/2021,T&S UK - Public Transport,UKRI - Strategy,Corporate Travel Management (North) Ltd,99049484,76.90,T&S UK - Public Transport
BEIS,UKRI - EPSRC,01/10/2021,T&S UK - Public Transport,University Partnerships,Corporate Travel Management (North) Ltd,99049484,0.25,T&S UK - Public Transport
BEIS,UKRI - EPSRC,01/10/2021,T&S UK - Public Transport,University Partnerships,Corporate Travel Management (North) Ltd,99049484,14.30,T&S UK - Public Transport
BEIS,UKRI - EPSRC,01/10/2021,T&S UK - Public Transport,University Partnerships,Corporate Travel Management (North) Ltd,99049484,0.25,T&S UK - Public Transport
BEIS,UKRI - EPSRC,01/10/2021,T&S UK - Public Transport,University Partnerships,Corporate Travel Management (North) Ltd,99049484,96.90,T&S UK - Public Transport
BEIS,UKRI - UKRI,01/10/2021,Printing & Stationery,UKRI - JBOS,RS Components,99049517,259.20,Printing & Stationery
BEIS,UKRI - EPSRC,01/10/2021,Non-staff travel and subsistance,Exec Chair Support,Unspecified,99049519,70.30,Non-staff travel and subsistance
BEIS,UKRI - EPSRC,01/10/2021,Fees (Including College Members),Programme Delivery Infrastructure,Unspecified,99049520,160.00,Fees (Including College Members)
BEIS,UKRI - UKRI,01/10/2021,Printing & Stationery,UKRI - Estates,Ryman Ltd,99049557,82.63,Printing & Stationery
BEIS,UKRI - UKRI,01/10/2021,Printing & Stationery,UKRI - Estates,Ryman Ltd,99049557,5.52,Printing & Stationery
BEIS,UKRI - EPSRC,01/10/2021,T&S UK - Other Charges,Programme Delivery Physical Sciences,Unspecified,99049673,102.94,T&S UK - Other Charges
BEIS,UKRI - UKRI,01/10/2021,T&S UK - Other Charges,UKRI - Project Management Office,Unspecified,99049675,94.00,T&S UK - Other Charges
BEIS,UKRI - UKRI,01/10/2021,T&S UK - Subsistence,UKRI - Risk and Counter Fraud,Unspecified,99049676,9.60,T&S UK - Subsistence
BEIS,UKRI - EPSRC,01/10/2021,T&S UK - Mileage,Business Engagement,Unspecified,99049677,19.80,T&S UK - Mileage
BEIS,UKRI - UKRI,04/10/2021,Computer Software Licences,UKRI - Digital Data and Technology BAU Costs,Softcat plc,99010907,6631.46,Computer Software Licences
BEIS,UKRI - UKRI,04/10/2021,Computer Software Licences,UKRI - Digital Data and Technology Recharges,Phoenix Software Ltd,99014083,254.40,Computer Software Licences
BEIS,UKRI - UKRI,04/10/2021,Computer Software Licences,UKRI - Digital Data and Technology BAU Costs,Phoenix Software Ltd,99028292,37.14,Computer Software Licences
BEIS,UKRI - UKRI,04/10/2021,Computer Software Licences,UKRI - Digital Data and Technology BAU Costs,Phoenix Software Ltd,99028303,7.08,Computer Software Licences
BEIS,UKRI - UKRI,04/10/2021,Computer Software Licences,UKRI - Digital Data and Technology BAU Costs,Phoenix Software Ltd,99028310,3343.80,Computer Software Licences
BEIS,UKRI - UKRI,04/10/2021,Computer Software Licences,UKRI - Digital Data and Technology BAU Costs,Phoenix Software Ltd,99028313,311.16,Computer Software Licences
BEIS,UKRI - UKRI,04/10/2021,Computer Software Licences,UKRI - Digital Data and Technology BAU Costs,Phoenix Software Ltd,99028327,7906.25,Computer Software Licences
BEIS,UKRI - UKRI,04/10/2021,Computer Software Licences,UKRI - Digital Data and Technology BAU Costs,Phoenix Software Ltd,99032866,717.86,Computer Software Licences
BEIS,UKRI - UKRI,04/10/2021,Computer Software Licences,UKRI - Digital Data and Technology BAU Costs,Phoenix Software Ltd,99038204,6574.37,Computer Software Licences
BEIS,UKRI - UKRI,04/10/2021,Computer Software Licences,UKRI - Digital Data and Technology BAU Costs,Phoenix Software Ltd,99043227,7472.92,Computer Software Licences
BEIS,UKRI - UKRI,04/10/2021,Computer Software Licences,UKRI - Digital Data and Technology BAU Costs,Phoenix Software Ltd,99043277,39087.05,Computer Software Licences
BEIS,UKRI - UKRI,04/10/2021,Computer Software Licences,UKRI - Digital Data and Technology BAU Costs,Phoenix Software Ltd,99043279,159.67,Computer Software Licences
BEIS,UKRI - UKRI,04/10/2021,Computer Software Licences,UKRI - Digital Data and Technology BAU Costs,Phoenix Software Ltd,99044803,5158.93,Computer Software Licences
BEIS,UKRI - UKRI,04/10/2021,Unspecified,UKRI - Digital Data and Technology BAU Costs,Alexander Mann Solutions Ltd,99047721,2835.24,Contract Staff
BEIS,UKRI - UKRI,04/10/2021,Unspecified,UKRI - Digital Data and Technology Project Costs,Alexander Mann Solutions Ltd,99047728,4003.56,Contract Staff
BEIS,UKRI - UKRI,04/10/2021,Unspecified,UKRI - Digital Data and Technology Project Costs,Alexander Mann Solutions Ltd,99047735,3387.66,Contract Staff
BEIS,UKRI - UKRI,04/10/2021,Unspecified,UKRI - Digital Data and Technology Project Costs,Alexander Mann Solutions Ltd,99047743,3465.30,Contract Staff
BEIS,UKRI - UKRI,04/10/2021,Unspecified,UKRI - Digital Data and Technology BAU Costs,LA International Computer Consultants Ltd,99048249,3593.40,Contract Staff
BEIS,UKRI - UKRI,04/10/2021,Computer Software Licences,UKRI - Digital Data and Technology BAU Costs,Phoenix Software Ltd,99048302,30403.43,Computer Software Licences
BEIS,UKRI - UKRI,04/10/2021,Computer Software Licences,UKRI - Digital Data and Technology BAU Costs,Phoenix Software Ltd,99049705,37.14,Computer Software Licences
BEIS,UKRI - UKRI,04/10/2021,IT / Computing Support Services,UKRI - Digital Data and Technology BAU Costs,Natterbox Ltd,99049711,5.73,IT / Computing Support Services
BEIS,UKRI - UKRI,04/10/2021,IT / Computing Support Services,UKRI - Digital Data and Technology BAU Costs,Natterbox Ltd,99049712,9.87,IT / Computing Support Services
BEIS,UKRI - UKRI,04/10/2021,IT / Computing Support Services,UKRI - Digital Data and Technology BAU Costs,Natterbox Ltd,99049713,11.73,IT / Computing Support Services
BEIS,UKRI - UKRI,04/10/2021,IT / Computing Support Services,UKRI - Digital Data and Technology BAU Costs,Natterbox Ltd,99049714,10345.97,IT / Computing Support Services
BEIS,UKRI - UKRI,04/10/2021,IT / Computing Support Services,UKRI - Digital Data and Technology BAU Costs,Natterbox Ltd,99049717,8.22,IT / Computing Support Services
BEIS,UKRI - UKRI,04/10/2021,Computer Software Licences,UKRI - Digital Data and Technology BAU Costs,Phoenix Software Ltd,99049721,7.08,Computer Software Licences
BEIS,UKRI - UKRI,04/10/2021,Design services,UKRI - JRS,Dreaming Fish Productions Ltd,99049877,1170.00,Design services
BEIS,UKRI - UKRI,04/10/2021,Design services,UKRI - JRS,Dreaming Fish Productions Ltd,99049881,4998.00,Design services
BEIS,UKRI - UKRI,04/10/2021,Finance Lease Expense,UKRI - JRS,Dreaming Fish Productions Ltd,99049885,4998.00,Finance Lease Expense
BEIS,UKRI - UKRI,04/10/2021,Design services,UKRI - JRS,Dreaming Fish Productions Ltd,99049886,4998.00,Design services
BEIS,UKRI - UKRI,04/10/2021,Unspecified,"UKRI People, Policies and Management",Alexander Mann Solutions Ltd,99049892,822.96,Agency Staff
BEIS,UKRI - UKRI,04/10/2021,Unspecified,UKRI - Digital Data and Technology Project Costs,Alexander Mann Solutions Ltd,99049893,4003.56,Contract Staff
BEIS,UKRI - UKRI,04/10/2021,Unspecified,UKRI - Digital Data and Technology Project Costs,Alexander Mann Solutions Ltd,99049903,3387.66,Contract Staff
BEIS,UKRI - UKRI,04/10/2021,Unspecified,"UKRI People, Policies and Management",Alexander Mann Solutions Ltd,99049908,4410.36,Agency Staff
BEIS,UKRI - UKRI,04/10/2021,Unspecified,UKRI - Strategic Finance Business Partners,Alexander Mann Solutions Ltd,99049910,1008.10,Agency Staff
BEIS,UKRI - UKRI,04/10/2021,Unspecified,UKRI People and Organisation Development,Alexander Mann Solutions Ltd,99049920,2155.80,Contract Staff
BEIS,UKRI - UKRI,04/10/2021,Unspecified,"UKRI People, Policies and Management",Alexander Mann Solutions Ltd,99049924,2047.66,Contract Staff
BEIS,UKRI - UKRI,04/10/2021,Unspecified,UKRI - Digital Data and Technology BAU Costs,Alexander Mann Solutions Ltd,99049928,3465.30,Contract Staff
BEIS,UKRI - UKRI,04/10/2021,Unspecified,UKRI People and Organisation Development,Alexander Mann Solutions Ltd,99049937,2520.24,Contract Staff
BEIS,UKRI - UKRI,04/10/2021,Unspecified,UKRI - Digital Data and Technology Project Costs,Alexander Mann Solutions Ltd,99049939,2772.24,Contract Staff
BEIS,UKRI - UKRI,04/10/2021,Consultancy Services,UKRI - Digital Data and Technology BAU Costs,JC Web Services Ltd,99049942,10200.00,Consultancy Services
BEIS,UKRI - UKRI,04/10/2021,Unspecified,UKRI - Digital Data and Technology Project Costs,Alexander Mann Solutions Ltd,99049949,2205.18,Contract Staff
BEIS,UKRI - UKRI,04/10/2021,Unspecified,UKRI - Digital Data and Technology BAU Costs,Alexander Mann Solutions Ltd,99049950,2835.24,Contract Staff
BEIS,UKRI - UKRI,04/10/2021,Unspecified,UKRI - JRS,Alexander Mann Solutions Ltd,99049973,4792.37,Contract Staff
BEIS,UKRI - UKRI,04/10/2021,Unspecified,UKRI - Executive Group,University of Cambridge,99050034,76155.95,Secondments
BEIS,UKRI - UKRI,04/10/2021,T&S UK - Public Transport,UKRI - Estates,Addison Lee Plc,99050050,244.42,T&S UK - Public Transport
BEIS,UKRI - UKRI,04/10/2021,Computer Software Licences,UKRI - Digital Data and Technology BAU Costs,Phoenix Software Ltd,99050105,16502.26,Computer Software Licences
BEIS,UKRI - UKRI,04/10/2021,Computer Software Licences,UKRI - Digital Data and Technology BAU Costs,Phoenix Software Ltd,99050326,3343.80,Computer Software Licences
BEIS,UKRI - UKRI,04/10/2021,Unspecified,UKRI-SHARP,Alexander Mann Solutions Ltd,99050332,2771.70,Contract Staff
BEIS,UKRI - UKRI,04/10/2021,Unspecified,UKRI - Funding Service,Alexander Mann Solutions Ltd,99050365,3980.88,Contract Staff
BEIS,UKRI - UKRI,04/10/2021,Unspecified,UKRI - Digital Data and Technology Project Costs,Alexander Mann Solutions Ltd,99050368,1732.68,Contract Staff
BEIS,UKRI - UKRI,04/10/2021,Unspecified,UKRI - Digital Data and Technology Project Costs,Alexander Mann Solutions Ltd,99050372,3387.66,Contract Staff
BEIS,UKRI - UKRI,04/10/2021,Consumables,UKRI - JRS,Presco UK Ltd,99050410,87.48,Consumables
BEIS,UKRI - UKRI,04/10/2021,Consumables,UKRI - JRS,Presco UK Ltd,99050410,162.24,Consumables
BEIS,UKRI - EPSRC,04/10/2021,Fees (Including College Members),Business Improvement,Unspecified,99050430,400.00,Fees (Including College Members)
BEIS,UKRI - EPSRC,04/10/2021,Fees (Including College Members),Programme Delivery Energy,Unspecified,99050431,80.00,Fees (Including College Members)
BEIS,UKRI - EPSRC,04/10/2021,Fees (Including College Members),Programme Delivery Infrastructure,Unspecified,99050432,160.00,Fees (Including College Members)
BEIS,UKRI - EPSRC,04/10/2021,Fees (Including College Members),Business Improvement,Unspecified,99050433,80.00,Fees (Including College Members)
BEIS,UKRI - EPSRC,04/10/2021,Non-staff travel and subsistance,Business Improvement,Unspecified,99050434,58.50,Non-staff travel and subsistance
BEIS,UKRI - EPSRC,04/10/2021,Fees (Including College Members),Business Improvement,Unspecified,99050435,160.00,Fees (Including College Members)
BEIS,UKRI - EPSRC,04/10/2021,Fees (Including College Members),Governance and Planning,Unspecified,99050436,160.00,Fees (Including College Members)
BEIS,UKRI - EPSRC,04/10/2021,Fees (Including College Members),Programme Delivery Infrastructure,Unspecified,99050437,160.00,Fees (Including College Members)
BEIS,UKRI - UKRI,04/10/2021,T&S UK - Other Charges,UKRI Strategic HR Business Partners,Unspecified,99051207,11.65,T&S UK - Other Charges
BEIS,UKRI - UKRI,04/10/2021,T&S UK - Parking Tolls Congestion Charges,UKRI Strategic HR Business Partners,Unspecified,99051208,34.99,T&S UK - Parking Tolls Congestion Charges
BEIS,UKRI - UKRI,04/10/2021,T&S UK - Subsistence,UKRI Strategic HR Business Partners,Unspecified,99051208,50.00,T&S UK - Subsistence
BEIS,UKRI - UKRI,04/10/2021,T&S UK - Subsistence,UKRI Strategic HR Business Partners,Unspecified,99051208,19.59,T&S UK - Subsistence
BEIS,UKRI - UKRI,04/10/2021,T&S UK - Subsistence,UKRI Strategic HR Business Partners,Unspecified,99051208,10.00,T&S UK - Subsistence
BEIS,UKRI - UKRI,04/10/2021,UK - Professional Memberships & Subscriptions,UKRI People and Organisation Development,Unspecified,99051210,163.00,UK - Professional Memberships & Subscriptions
BEIS,UKRI - UKRI,04/10/2021,Health & Safety (inc. Medicals & Opticians),UKRI - Project Management Office,Unspecified,99051211,14.99,Health & Safety (inc. Medicals & Opticians)
BEIS,UKRI - UKRI,04/10/2021,T&S UK - Other Charges,UKRI - Project Management Office,Unspecified,99051211,278.52,T&S UK - Other Charges
BEIS,UKRI - EPSRC,04/10/2021,Health & Safety (inc. Medicals & Opticians),Managing Our Portfolio and Priorities,Unspecified,99051214,469.71,Health & Safety (inc. Medicals & Opticians)
BEIS,UKRI - UKRI,04/10/2021,Health & Safety (inc. Medicals & Opticians),UKRI - Strategy,Unspecified,99051215,14.99,Health & Safety (inc. Medicals & Opticians)
BEIS,UKRI - UKRI,04/10/2021,T&S UK - Mileage,UKRI - Legal,Unspecified,99051217,274.50,T&S UK - Mileage
BEIS,UKRI - UKRI,04/10/2021,T&S UK - Subsistence,UKRI - Legal,Unspecified,99051217,9.58,T&S UK - Subsistence
BEIS,UKRI - UKRI,04/10/2021,T&S UK - Subsistence,UKRI - Legal,Unspecified,99051217,8.58,T&S UK - Subsistence
BEIS,UKRI - UKRI,05/10/2021,Computer Software Licences,UKRI - Digital Data and Technology BAU Costs,Phoenix Software Ltd,99029650,334.03,Computer Software Licences
BEIS,UKRI - UKRI,05/10/2021,Computer Software,UKRI - Digital Data and Technology BAU Costs,LeanIX GmbH,99042697,28971.61,Computer Software
BEIS,UKRI - UKRI,05/10/2021,Computer Software,UKRI - Digital Data and Technology Project Costs,LeanIX GmbH,99042697,16131.92,Computer Software
BEIS,UKRI - UKRI,05/10/2021,Advertising & Promotion,UKRI - Communications Content,Unspecified,99044280,5000.00,Advertising & Promotion
BEIS,UKRI - UKRI,05/10/2021,Recruitment Costs,UKRI People and Organisation Development,Onefix Recruitment Ltd,99046500,990.00,Recruitment Costs
BEIS,UKRI - UKRI,05/10/2021,Recruitment Costs,UKRI People and Organisation Development,Onefix Recruitment Ltd,99046501,960.00,Recruitment Costs
BEIS,UKRI - UKRI,05/10/2021,Recruitment Costs,UKRI People and Organisation Development,Onefix Recruitment Ltd,99046518,150.00,Recruitment Costs
BEIS,UKRI - UKRI,05/10/2021,Recruitment Costs,UKRI People and Organisation Development,Onefix Recruitment Ltd,99046520,540.00,Recruitment Costs
BEIS,UKRI - UKRI,05/10/2021,Unspecified,UKRI - GCRF Challenge Leaders,UKRI - Economic & Social Research Council,99046963,6198.06,Recharges From Councils - Salary
BEIS,UKRI - UKRI,05/10/2021,Recruitment Costs,UKRI People and Organisation Development,Onefix Recruitment Ltd,99046998,918.00,Recruitment Costs
BEIS,UKRI - UKRI,05/10/2021,Unspecified,UKRI - GCRF Challenge Leaders,UKRI - Economic & Social Research Council,99048221,5445.99,Recharges From Councils - Salary
BEIS,UKRI - UKRI,05/10/2021,Unspecified,UKRI - GCRF Challenge Leaders,UKRI - Economic & Social Research Council,99048222,6926.00,Recharges From Councils - Salary
BEIS,UKRI - UKRI,05/10/2021,Unspecified,UKRI - GCRF Delivery,UKRI - Economic & Social Research Council,99048223,19236.00,Recharges From Councils - Salary
BEIS,UKRI - UKRI,05/10/2021,Unspecified,UKRI - GCRF Delivery,UKRI - Economic & Social Research Council,99048226,26195.45,Recharges From Councils - Salary
BEIS,UKRI - UKRI,05/10/2021,Unspecified,UKRI - GCRF Delivery,UKRI - Economic & Social Research Council,99048232,17995.00,Recharges From Councils - Salary
BEIS,UKRI - UKRI,05/10/2021,Unspecified,UKRI - GCRF Challenge Leaders,UKRI - Economic & Social Research Council,99048233,6877.76,Recharges From Councils - Salary
BEIS,UKRI - UKRI,05/10/2021,Recruitment Costs,UKRI People and Organisation Development,Onefix Recruitment Ltd,99049298,360.00,Recruitment Costs
BEIS,UKRI - UKRI,05/10/2021,Recruitment Costs,UKRI People and Organisation Development,Onefix Recruitment Ltd,99049299,954.00,Recruitment Costs
BEIS,UKRI - EPSRC,05/10/2021,Research Grant Expenditure,Healthcare Healthcare,UKRI - Economic & Social Research Council,99049414,88733.59,Research Grant Expenditure
BEIS,UKRI - UKRI,05/10/2021,Advertising & Promotion,UKRI - External Communications,American Association for the Advancement of Science (AAAS),99049628,984.14,Advertising & Promotion
BEIS,UKRI - UKRI,05/10/2021,Consumables,UKRI - JRS,Banner Group Ltd,99049816,4.32,Consumables
BEIS,UKRI - UKRI,05/10/2021,Recruitment Costs,UKRI-CPO,Onefix Recruitment Ltd,99050192,594.00,Recruitment Costs
BEIS,UKRI - EPSRC,05/10/2021,Research Grant Expenditure,Healthcare Healthcare,UKRI - Economic & Social Research Council,99050257,21141.07,Research Grant Expenditure
BEIS,UKRI - EPSRC,05/10/2021,Research Grant Expenditure,Healthcare Healthcare,UKRI - Economic & Social Research Council,99050257,24702.09,Research Grant Expenditure
BEIS,UKRI - EPSRC,05/10/2021,Research Grant Expenditure,Healthcare Healthcare,UKRI - Economic & Social Research Council,99050257,24179.30,Research Grant Expenditure
BEIS,UKRI - EPSRC,05/10/2021,Research Grant Expenditure,Healthcare Healthcare,UKRI - Economic & Social Research Council,99050257,25515.19,Research Grant Expenditure
BEIS,UKRI - EPSRC,05/10/2021,Research Grant Expenditure,NC Engineering,UKRI - Economic & Social Research Council,99050259,11869.59,Research Grant Expenditure
BEIS,UKRI - UKRI,05/10/2021,Unspecified,UKRI - GCRF Challenge Leaders,UKRI - Arts & Humanities Research Council,99050260,6099.59,Recharges From Councils - Salary
BEIS,UKRI - UKRI,05/10/2021,Unspecified,UKRI - GCRF Challenge Leaders,UKRI - Arts & Humanities Research Council,99050261,6797.06,Recharges From Councils - Salary
BEIS,UKRI - UKRI,05/10/2021,Recharges From Councils - Non-Salary,UKRI - GCRF Delivery,UKRI - Arts & Humanities Research Council,99050262,4947.30,Recharges From Councils - Non-Salary
BEIS,UKRI - UKRI,05/10/2021,Unspecified,UKRI - GCRF Delivery,UKRI - Arts & Humanities Research Council,99050262,19859.70,Recharges From Councils - Salary
BEIS,UKRI - UKRI,05/10/2021,Unspecified,UKRI - GCRF Delivery,UKRI - Arts & Humanities Research Council,99050263,4943.00,Recharges From Councils - Salary
BEIS,UKRI - UKRI,05/10/2021,Unspecified,UKRI - BEIS ODA,UKRI - Arts & Humanities Research Council,99050264,8773.98,Recharges From Councils - Salary
BEIS,UKRI - UKRI,05/10/2021,Unspecified,UKRI - GCRF Delivery,UKRI - Arts & Humanities Research Council,99050292,3295.25,Recharges From Councils - Salary
BEIS,UKRI - UKRI,05/10/2021,Unspecified,UKRI - GCRF Challenge Leaders,UKRI - Arts & Humanities Research Council,99050294,4073.60,Recharges From Councils - Salary
BEIS,UKRI - UKRI,05/10/2021,Unspecified,UKRI - GCRF Challenge Leaders,UKRI - Arts & Humanities Research Council,99050295,4540.51,Recharges From Councils - Salary
BEIS,UKRI - UKRI,05/10/2021,Staff Training,UKRI - International,Working With Cancer,99050311,150.00,Staff Training
BEIS,UKRI - UKRI,05/10/2021,Unspecified,UKRI - Information Governance,Alexander Mann Solutions Ltd,99050334,3780.36,Agency Staff
BEIS,UKRI - UKRI,05/10/2021,Marketing & PR,UKRI - Communications Themes and Partnerships,Adam Sewell Media Ltd,99050460,2381.25,Marketing & PR
BEIS,UKRI - UKRI,05/10/2021,Mechanical & Electrical Maintenance,UKRI - JBOS,Screenlink Sound and Vision,99050523,556.34,Mechanical & Electrical Maintenance
BEIS,UKRI - UKRI,05/10/2021,Consumables,UKRI - JRS,Kennedy Grinding Ltd,99050773,36.00,Consumables
BEIS,UKRI - UKRI,05/10/2021,Consumables,UKRI - JRS,Presco UK Ltd,99050779,21.77,Consumables
BEIS,UKRI - UKRI,05/10/2021,Consumables,UKRI - JRS,Presco UK Ltd,99050779,28.86,Consumables
BEIS,UKRI - UKRI,05/10/2021,Consumables,UKRI - JRS,Presco UK Ltd,99050779,35.48,Consumables
BEIS,UKRI - UKRI,05/10/2021,Consumables,UKRI - JRS,Presco UK Ltd,99050779,55.82,Consumables
BEIS,UKRI - UKRI,05/10/2021,Staff Training,UKRI - Culture Leadership and Learning,Visionsports Ltd,99050872,720.00,Staff Training
BEIS,UKRI - UKRI,05/10/2021,Other Bought In Services,UKRI - UK CDR,Wellcome Trust,99051079,1028.19,Other Bought In Services
BEIS,UKRI - UKRI,05/10/2021,Staff Training,UKRI - JRS,Corinium Human Resource Management Ltd,99051233,900.00,Staff Training
BEIS,UKRI - UKRI,05/10/2021,Computer Software Licences,UKRI - Information Governance,Fivium Ltd,99051380,180.00,Computer Software Licences
BEIS,UKRI - UKRI,05/10/2021,Computer Software Licences,UKRI - Information Governance,Fivium Ltd,99051380,3360.00,Computer Software Licences
BEIS,UKRI - UKRI,05/10/2021,Computer Software Licences,UKRI - Information Governance,Fivium Ltd,99051381,11221.80,Computer Software Licences
BEIS,UKRI - UKRI,05/10/2021,Advertising & Promotion,UKRI - Communications Themes and Partnerships,McDaid Public Relations Ltd,99051403,1050.00,Advertising & Promotion
BEIS,UKRI - EPSRC,05/10/2021,Fees (Including College Members),Programme Delivery Healthcare,Unspecified,99051424,55.00,Fees (Including College Members)
BEIS,UKRI - UKRI,05/10/2021,Computer Software Licences,UKRI - Digital Data and Technology BAU Costs,Phoenix Software Ltd,99051426,312.96,Computer Software Licences
BEIS,UKRI - UKRI,05/10/2021,Computer Software Licences,UKRI - Digital Data and Technology BAU Costs,Phoenix Software Ltd,99051429,7906.25,Computer Software Licences
BEIS,UKRI - UKRI,05/10/2021,Rates,UKRI - Estates,Stamford Street Tenant Ltd T/A Weework,99051461,57754.80,Rates
BEIS,UKRI - UKRI,05/10/2021,T&S UK - Other Charges,UKRI - Digital Data and Technology BAU Costs,Unspecified,99051640,313.16,T&S UK - Other Charges
BEIS,UKRI - Research England,05/10/2021,Health & Safety (inc. Medicals & Opticians),RE - Knowledge Exchange,Unspecified,99051641,14.99,Health & Safety (inc. Medicals & Opticians)
BEIS,UKRI - Research England,05/10/2021,T&S UK - Other Charges,RE - Knowledge Exchange,Unspecified,99051641,291.84,T&S UK - Other Charges
BEIS,UKRI - UKRI,05/10/2021,T&S UK - Subsistence,UKRI Strategic HR Business Partners,Unspecified,99051642,25.00,T&S UK - Subsistence
BEIS,UKRI - UKRI,05/10/2021,T&S UK - Subsistence,UKRI Strategic HR Business Partners,Unspecified,99051642,15.50,T&S UK - Subsistence
BEIS,UKRI - UKRI,05/10/2021,T&S UK - Subsistence,UKRI Strategic HR Business Partners,Unspecified,99051642,5.00,T&S UK - Subsistence
BEIS,UKRI - UKRI,05/10/2021,T&S UK - Other Charges,EDI,Unspecified,99051643,159.99,T&S UK - Other Charges
BEIS,UKRI - UKRI,05/10/2021,T&S UK - Mileage,UKRI - Strategic Finance Business Partners,Unspecified,99051644,38.70,T&S UK - Mileage
BEIS,UKRI - UKRI,05/10/2021,T&S UK - Other Charges,UKRI - Procurement and Commercial,Unspecified,99051645,295.01,T&S UK - Other Charges
BEIS,UKRI - Research England,05/10/2021,T&S UK - Other Charges,RE - Operations and Private Office,Unspecified,99051646,129.00,T&S UK - Other Charges
BEIS,UKRI - UKRI,05/10/2021,T&S UK - Public Transport,UKRI - Public Engagement,Unspecified,99051647,28.00,T&S UK - Public Transport
BEIS,UKRI - UKRI,05/10/2021,T&S UK - Other Charges,UKRI - Corporate Services,Unspecified,99051648,260.95,T&S UK - Other Charges
BEIS,UKRI - UKRI,05/10/2021,Health & Safety (inc. Medicals & Opticians),UKRI - Newton Delivery,Unspecified,99051649,15.49,Health & Safety (inc. Medicals & Opticians)
BEIS,UKRI - UKRI,06/10/2021,Unspecified,UKRI - Digital Data and Technology BAU Costs,Interfolio UK Ltd,99018626,114309.30,IT Cloud Services
BEIS,UKRI - UKRI,06/10/2021,Unspecified,UKRI - Digital Data and Technology Project Costs,Sanderson Government and Defence Ltd,99038218,11754.00,Contract Staff
BEIS,UKRI - UKRI,06/10/2021,Unspecified,UKRI - Digital Data and Technology Project Costs,Alexander Mann Solutions Ltd,99038674,2710.13,Contract Staff
BEIS,UKRI - UKRI,06/10/2021,Unspecified,UKRI - Digital Data and Technology BAU Costs,Alexander Mann Solutions Ltd,99038701,9639.82,Contract Staff
BEIS,UKRI - UKRI,06/10/2021,Unspecified,UKRI - Digital Data and Technology BAU Costs,Alexander Mann Solutions Ltd,99038705,2835.25,Contract Staff
BEIS,UKRI - UKRI,06/10/2021,Unspecified,UKRI - Digital Data and Technology Project Costs,Alexander Mann Solutions Ltd,99041528,2772.24,Contract Staff
BEIS,UKRI - UKRI,06/10/2021,Unspecified,UKRI - Digital Data and Technology Project Costs,Alexander Mann Solutions Ltd,99041539,2268.19,Contract Staff
BEIS,UKRI - UKRI,06/10/2021,Advertising & Promotion,UKRI - Communications Themes and Partnerships,McDaid Public Relations Ltd,99042998,960.00,Advertising & Promotion
BEIS,UKRI - UKRI,06/10/2021,Unspecified,UKRI - Digital Data and Technology BAU Costs,Alexander Mann Solutions Ltd,99043940,6237.54,Contract Staff
BEIS,UKRI - UKRI,06/10/2021,Unspecified,UKRI - Digital Data and Technology Project Costs,Alexander Mann Solutions Ltd,99043953,3465.30,Contract Staff
